Workbook

Sheet Copyright

Sheet Cover
E5: Ecotoxicity Data Quality Assessment Method V2
F6: To be used to assess the quality of data used for the Australian and New Zealand Guidelines for Fresh and Marine Water Quality (including sediment) and the Australian National Environment Protection (Assessment of Site Contamination) Measure
G10: Developed by
G13: Zoe Zhang
G14: Dr. Michael Warne
G15: Alison Vieritz
G19: Water Quality & Investigations
F20: Department of Science,Information Technology and Innovation

Sheet All Result
A2: Nitrate (Freshwater)
A3: ='FW nonmetal plant'!C2 -> Category | B3: ='FW nonmetal plant'!C3 -> Paper and data unique identifier(eg. 1-1,10-150) | C3: ='FW nonmetal plant'!C70 -> Total score | D3: ='FW nonmetal plant'!C72 -> Quality Score | E3: Comment | F3: ='FW nonmetal plant'!G3 -> Species (Scientific name) | G3: ='FW nonmetal plant'!G4 -> Lifestage | H3: ='FW nonmetal plant'!G5 -> Exposure duration | I3: ='FW nonmetal plant'!G6 -> Measure of toxicity | J3: ='FW nonmetal plant'!G7 -> Toxicity endpoint | K3: ='FW nonmetal plant'!G8 -> Toxicity value | L3: ='FW nonmetal plant'!J2 -> Taxonomic group | M3: ='FW nonmetal plant'!J3 -> Phylum | N3: Media | O3: ='FW nonmetal plant'!J6 -> Temperature | P3: ='FW nonmetal plant'!J7 -> Acute Or Chronic | Q3: ='FW nonmetal plant'!J8 -> PH | R3: Hardness, mg/L CaCO3 | S3: REFERENCE | T3: ='Reference list'!A62N26 -> 
A4: Freshwater/non-metal/non- plant | B4: N06-1 | C4: 71 | D4: 0.8068181818 | E4: No hardness data | F4: Astacus astacus | G4: Juvenile | H4: 7 d | I4: NOAEL | J4: Mortality | K4: >14.0 | L4: Invertebrate | M4: Arthropoda | N4: Freshwater | O4: 15 | P4: Chronic | Q4: 8.3 | R4: NR | S4: Jensen, F.B. (1996). Uptake, elimination and effects of nitrite and nitrate in freshwater crayfish (Astacus astacus). Aquatic Toxicology 34: 94-104. | T4: N06 | V4: =B4 -> N06-1
A5: Freshwater/non-metal/non- plant | B5: N03-1 | C5: 81 | D5: 0.9204545455 | E5: No hardness data | F5: Bufo americanus | G5: Egg | H5: 23 d | I5: NOEC | J5: Hatched | K5: >9.3 | L5: Amphibian | M5: Chordata | N5: Freshwater | O5: 25 | P5: Chronic | Q5: 6.5 | R5: NR | S5: Laposata, M.M.; Dunson, W.A. (1998). Effects of boron and nitrate on hatching success of amphibian eggs. Archives of Environmental and Contamination Toxicology 35: 615-619. | T5: N03 | V5: =B5 -> N03-1
A6: Freshwater/non-metal/non- plant | B6: N07-1 | C6: 81 | D6: 0.9204545455 | F6: Ceriodaphnia dubia | G6: Neonates | H6: 7 d | I6: NOEC | J6: Reproduction | K6: 7.1 | L6: Invertebrate | M6: Arthropoda | N6: Freshwater | O6: 25 | P6: Chronic | Q6: 7.89-8.25 | R6: 156-172 | S6: Scott, G.; Crunkilton, R.L. (2000). Acute and chronic toxicity of nitrate to fathead minnows (Pimephales promelas), Ceriodaphnia dubia, and Daphnia magna. Environmental Toxicology and Chemistry 19: 2918-2922. | T6: N07 | V6: N07-1
A7: Freshwater/non-metal/non- plant | B7: N07-2 | C7: 81 | D7: 0.9204545455 | F7: Ceriodaphnia dubia | G7: Neonates | H7: 7 d | I7: NOEC | J7: Reproduction | K7: 56.5 | L7: Invertebrate | M7: Arthropoda | N7: Freshwater | O7: 25 | P7: Chronic | Q7: 7.89-8.25 | R7: 156-172 | S7: Scott, G.; Crunkilton, R.L. (2000). Acute and chronic toxicity of nitrate to fathead minnows (Pimephales promelas), Ceriodaphnia dubia, and Daphnia magna. Environmental Toxicology and Chemistry 19: 2918-2922. | T7: N07 | V7: N07-2
A8: Freshwater/non-metal/non- plant | B8: N07-3 | C8: 81 | D8: 0.9204545455 | F8: Ceriodaphnia dubia | G8: Neonates | H8: 7 d | I8: NOEC | J8: Reproduction | K8: 7.1 | L8: Invertebrate | M8: Arthropoda | N8: Freshwater | O8: 25 | P8: Chronic | Q8: 7.89-8.25 | R8: 156-172 | S8: Scott, G.; Crunkilton, R.L. (2000). Acute and chronic toxicity of nitrate to fathead minnows (Pimephales promelas), Ceriodaphnia dubia, and Daphnia magna. Environmental Toxicology and Chemistry 19: 2918-2922. | T8: N07 | V8: N07-3
A9: Freshwater/non-metal/non- plant | B9: N07-4 | C9: 81 | D9: 0.9204545455 | F9: Ceriodaphnia dubia | G9: Neonates | H9: 7 d | I9: NOEC | J9: Reproduction | K9: 17.9 | L9: Invertebrate | M9: Arthropoda | N9: Freshwater | O9: 25 | P9: Chronic | Q9: 7.89-8.25 | R9: 156-172 | S9: Scott, G.; Crunkilton, R.L. (2000). Acute and chronic toxicity of nitrate to fathead minnows (Pimephales promelas), Ceriodaphnia dubia, and Daphnia magna. Environmental Toxicology and Chemistry 19: 2918-2922. | T9: N07 | V9: N07-4
A10: Freshwater/non-metal/non- plant | B10: N07-5 | C10: 81 | D10: 0.9204545455 | F10: Ceriodaphnia dubia | G10: Neonates | H10: 7 d | I10: NOEC | J10: Reproduction | K10: 17.9 | L10: Invertebrate | M10: Arthropoda | N10: Freshwater | O10: 25 | P10: Chronic | Q10: 7.89-8.25 | R10: 156-172 | S10: Scott, G.; Crunkilton, R.L. (2000). Acute and chronic toxicity of nitrate to fathead minnows (Pimephales promelas), Ceriodaphnia dubia, and Daphnia magna. Environmental Toxicology and Chemistry 19: 2918-2922. | T10: N07 | V10: N07-5
B11: N09-2-1b | C11: 83 | D11: 0.9431818182 | F11: Ceriodaphnia dubia | G11: Neonates | H11: 7 d | I11: IC10 | J11: Reproduction | K11: 28.5 | L11: Invertebrate | M11: Arthropoda | N11: Freshwater | O11: 25 | P11: Chronic | Q11: 6.9-7.5 | R11: 166 | S11: Nautilus Environmental (2011b). Evaluation of the role of hardness in modifying the toxicity of nitrate to freshwater organisms. No. Final Report Submitted to Mining Association of BC, Vancouver, B.C. 4 April 2011. pp. 216.
A12: Freshwater/non-metal/non- plant | B12: NO9-2-1b | C12: 83 | D12: 0.9431818182 | F12: Ceriodaphnia dubia | G12: Neonates | H12: 7 d | I12: IC10 | J12: Reproduction | K12: 1.94 | L12: Invertebrate | M12: Arthropoda | N12: Freshwater | O12: 25 | P12: Chronic | Q12: 6.9-7.5 | R12: 44 | S12: Nautilus Environmental (2011b). Evaluation of the role of hardness in modifying the toxicity of nitrate to freshwater organisms. No. Final Report Submitted to Mining Association of BC, Vancouver, B.C. 4 April 2011. pp. 216. | T12: N09 | V12: =B12 -> NO9-2-1b
A13: Freshwater/non-metal/non- plant | B13: NO9-2-1b | C13: 83 | D13: 0.9431818182 | F13: Ceriodaphnia dubia | G13: Neonates | H13: 7 d | I13: IC10 | J13: Reproduction | K13: 4.9 | L13: Invertebrate | M13: Arthropoda | N13: Freshwater | O13: 25 | P13: Chronic | Q13: 6.9-7.5 | R13: 98 | S13: Nautilus Environmental (2011b). Evaluation of the role of hardness in modifying the toxicity of nitrate to freshwater organisms. No. Final Report Submitted to Mining Association of BC, Vancouver, B.C. 4 April 2011. pp. 216. | T13: N09 | V13: NO9-2-1b
A14: Freshwater/non-metal/non- plant | B14: N09-1 | C14: 83 | D14: 0.9431818182 | F14: Ceriodaphnia dubia | G14: Neonates | H14: 7 d | I14: NOEC | J14: Survival and reproduction | K14: 10 | L14: Invertebrate | M14: Arthropoda | N14: Freshwater | O14: 25 | P14: Chronic | Q14: 6.9-7.5 | R14: 44 | S14: Nautilus Environmental (2011b). Evaluation of the role of hardness in modifying the toxicity of nitrate to freshwater organisms. No. Final Report Submitted to Mining Association of BC, Vancouver, B.C. 4 April 2011. pp. 216. | T14: N09 | V14: N09-1
A15: Freshwater/non-metal/non- plant | B15: N09-2 | C15: 83 | D15: 0.9431818182 | F15: Ceriodaphnia dubia | G15: Neonates | H15: 7 d | I15: NOEC | J15: Survival and reproduction | K15: 20 | L15: Invertebrate | M15: Arthropoda | N15: Freshwater | O15: 25 | P15: Chronic | Q15: 6.9-7.5 | R15: 44 | S15: Nautilus Environmental (2011b). Evaluation of the role of hardness in modifying the toxicity of nitrate to freshwater organisms. No. Final Report Submitted to Mining Association of BC, Vancouver, B.C. 4 April 2011. pp. 216. | T15: N09 | V15: N09-2
A16: Freshwater/non-metal/non- plant | B16: N09-3 | C16: 83 | D16: 0.9431818182 | F16: Ceriodaphnia dubia | G16: Neonates | H16: 7 d | I16: NOEC | J16: Survival and reproduction | K16: 40 | L16: Invertebrate | M16: Arthropoda | N16: Freshwater | O16: 25 | P16: Chronic | Q16: 6.9-7.5 | R16: 98 | S16: Nautilus Environmental (2011b). Evaluation of the role of hardness in modifying the toxicity of nitrate to freshwater organisms. No. Final Report Submitted to Mining Association of BC, Vancouver, B.C. 4 April 2011. pp. 216. | T16: N09 | V16: N09-3
A17: Freshwater/non-metal/non- plant | B17: N09-2-2 | C17: 83 | D17: 0.9431818182 | F17: Ceriodaphnia dubia | G17: Neonates | H17: 7 d | I17: EC20 | J17: Reproduction | K17: 80 | L17: Invertebrate | M17: Arthropoda | N17: Freshwater | O17: 25 | P17: Chronic | Q17: 6.9-7.5 | R17: 98 | S17: Nautilus Environmental (2011b). Evaluation of the role of hardness in modifying the toxicity of nitrate to freshwater organisms. No. Final Report Submitted to Mining Association of BC, Vancouver, B.C. 4 April 2011. pp. 216. | T17: N09 | V17: N09-2-2
A18: Freshwater/non-metal/non- plant | B18: N21-1 | C18: 82 | D18: 0.9318181818 | E18: Used Ca(NO3)2 | F18: Ceriodaphnia silvestrii | G18: Neonate | H18: 7 d | I18: IC25 | J18: Reproduction | K18: 5.05 | L18: Cladoceran | M18: Arthropoda | N18: Freshwater | O18: 25 | P18: Chronic | Q18: 7.23 | R18: 58.5 | S18: Sueitt APE, Yamada-Ferraz TM, Oliveira AF, Botta CMR, Fadini PS, Nascimento MRL, Faria BM, Mozeto AA. 2015. Ecotoxicological risks of calcium nitrate exposure to freshwater tropical organisms: Laboratory and field experiments. Ecotox Environ Safety 117:155-163. | T18: N21 | V18: N21-1
A19: Freshwater/non-metal/non- plant | B19: N9-4b | C19: 83 | D19: 0.9431818182 | F19: Chironomus dilutus | G19: Larvae | H19: 10 d | I19: IC10 | J19: Growth (weight) | K19: 5.8 | L19: Invertebrate | M19: Arthropoda | N19: Reconstituted water | O19: 23 | P19: Chronic | Q19: 6.9-7.5 | R19: 46 | S19: Nautilus Environmental (2011b). Evaluation of the role of hardness in modifying the toxicity of nitrate to freshwater organisms. No. Final Report Submitted to Mining Association of BC, Vancouver, B.C. 4 April 2011. pp. 216. | T19: N09 | V19: N9-4b
A20: Freshwater/non-metal/non- plant | B20: N09-4 | C20: 83 | D20: 0.9431818182 | F20: Chironomus dilutus | G20: Larvae | H20: 10 d | I20: EC20 | J20: Biomass | K20: 9.5 | L20: Invertebrate | M20: Arthropoda | N20: Reconstituted water | O20: 23 | P20: Chronic | Q20: 6.9-7.5 | R20: 105 | S20: Nautilus Environmental (2011b). Evaluation of the role of hardness in modifying the toxicity of nitrate to freshwater organisms. No. Final Report Submitted to Mining Association of BC, Vancouver, B.C. 4 April 2011. pp. 216. | T20: N09 | V20: N09-4
A21: Freshwater/non-metal/non- plant | B21: N09-4 | C21: 83 | D21: 0.9431818182 | F21: Chironomus dilutus | G21: Larvae | H21: 10 d | I21: NOEC | J21: Growth (weight) | K21: 40 | L21: Invertebrate | M21: Arthropoda | N21: Reconstituted water | O21: 23 | P21: Chronic | Q21: 6.9-7.5 | R21: 46 | S21: Nautilus Environmental (2011b). Evaluation of the role of hardness in modifying the toxicity of nitrate to freshwater organisms. No. Final Report Submitted to Mining Association of BC, Vancouver, B.C. 4 April 2011. pp. 216. | T21: N09 | V21: N09-4
A22: Freshwater/non-metal/non- plant | B22: N09-5 | C22: 83 | D22: 0.9431818182 | F22: Chironomus dilutus | G22: Larvae | H22: 10 d | I22: IC10 | J22: Growth (weight) | K22: 80 | L22: Invertebrate | M22: Arthropoda | N22: Reconstituted water | O22: 23 | P22: Chronic | Q22: 6.9-7.5 | R22: 86 | S22: Nautilus Environmental (2011b). Evaluation of the role of hardness in modifying the toxicity of nitrate to freshwater organisms. No. Final Report Submitted to Mining Association of BC, Vancouver, B.C. 4 April 2011. pp. 216. | T22: N09 | V22: N09-5
A23: Freshwater/non-metal/non- plant | B23: N09-6 | C23: 83 | D23: 0.9431818182 | F23: Chironomus dilutus | G23: Larvae | H23: 10 d | I23: IC10 | J23: Growth | K23: 120 | L23: Invertebrate | M23: Arthropoda | N23: Freshwater | O23: 23 | P23: Chronic | Q23: N.A. | R23: 172 | S23: Nautilus Environmental (2011b). Evaluation of the role of hardness in modifying the toxicity of nitrate to freshwater organisms. No. Final Report Submitted to Mining Association of BC, Vancouver, B.C. 4 April 2011. pp. 216. | T23: N09 | V23: N09-6
A24: Freshwater/non-metal/non- plant | B24: N21-2 | C24: 82 | D24: 0.9318181818 | E24: Used Ca(NO3)2 | F24: Chironomus xanthus | G24: Larvae | H24: 20 d | I24: IC25 | J24: Hatching | K24: 56.7 | L24: Invertebrate | M24: Arthropoda | N24: Freshwater | O24: 25 | P24: Chronic | Q24: 7.23 | R24: 184 | S24: Sueitt APE, Yamada-Ferraz TM, Oliveira AF, Botta CMR, Fadini PS, Nascimento MRL, Faria BM, Mozeto AA. 2015. Ecotoxicological risks of calcium nitrate exposure to freshwater tropical organisms: Laboratory and field experiments. Ecotox Environ Safety 117:155-163. | T24: N21 | V24: N21-2
A25: Freshwater/non-metal/plant | B25: N27-4 | C25: 84 | D25: 0.9545454545 | F25: Chlorella sp. | G25: Exponential growth phase | H25: 72 h | I25: IC10 | J25: Growth inhibition: cell count | K25: 1600 | L25: Microalga | M25: Chlorophyta | N25: Freshwater | O25: 25 | P25: Chronic | Q25: 8 | R25: 376 | S25: van Dam RA 2019. Analysis of nitrate toxicity data for algae and generation of species sensitivity distribution. Report prepared for Rio Tinto, Perth, WA, December 2019. | T25: N28 | V25: N27-4
A26: Freshwater/non-metal/non- plant | B26: N01-2 | C26: 83 | D26: 0.9431818182 | F26: Coregonus clupeaformis | G26: Embryo-Alevin-Fry | H26: 126 d | I26: NOEC | J26: Development | K26: 6.25 | L26: Fish | M26: Chlorophyta | N26: Dechlorinated tapwater | O26: 7.5 | P26: Chronic | Q26: 6-7.4 | R26: 10-16 | S26: McGurk, M.D.; Landry, F.; Tang, A.; Hanks, C.C. (2006). Acute and chronic toxicity of nitrate to early life stages of lake trout (Salvelinus namaycush) and lake whitefish (Coregonus clupeaformis). Environmental Toxicology and Chemistry 25: 2187-2196. | T26: N01 | V26: N01-2
A27: Freshwater/non-metal/non- plant | B27: N23-1-1 | C27: 82 | D27: 0.9318181818 | F27: Danio rerio | G27: Juvenile | H27: 29 d | I27: NOEC | J27: Mortality | K27: 200 | L27: Fish | M27: Chordata | N27: Dechlorinated tapwater | O27: 28 | P27: Chronic | Q27: 8.1-8.3 | R27: 107-142 | S27: Learmonth C, Carvalho AP. 2015. Acute and Chronic Toxicity of Nitrate to Early Life Stages of Zebrafish-Setting Nitrate Safety Levels for Zebrafish Rearing. Zebrafish 12:305-311. | T27: N23 | V27: N23-1-1
A28: Freshwater/non-metal/non- plant | B28: N23-1-2 | C28: 82 | D28: 0.9318181818 | F28: Danio rerio | G28: Juvenile | H28: 29 d | I28: NOEC | J28: Growth (weight) | K28: 200 | L28: Fish | M28: Chordata | N28: Freshwater | O28: 28 | P28: Chronic | R28: 107-142 | S28: Learmonth C, Carvalho AP. 2015. Acute and Chronic Toxicity of Nitrate to Early Life Stages of Zebrafish-Setting Nitrate Safety Levels for Zebrafish Rearing. Zebrafish 12:305-311. | T28: N23 | V28: N23-1-2
A29: Freshwater/non-metal/non- plant | B29: N07-8 | C29: 74 | D29: 0.8409090909 | F29: Daphnia magna | G29: Neonates | H29: 7 d | I29: NOEC | J29: Reproduction | K29: 358 | L29: Invertebrate | M29: Arthropoda | N29: Freshwater | O29: 25 | P29: Chronic | Q29: 7.52-8.60 | R29: 156-172 | S29: Scott, G.; Crunkilton, R.L. (2000). Acute and chronic toxicity of nitrate to fathead minnows (Pimephales promelas), Ceriodaphnia dubia, and Daphnia magna. Environmental Toxicology and Chemistry 19: 2918-2922. | T29: N07 | V29: N07-8
A30: Freshwater/non-metal/non- plant | B30: N10-1 | C30: 88 | D30: 1 | F30: Deleatidium sp. | G30: Larvae | H30: 20 d | I30: NOEC | J30: Mortality | K30: 20.3 | L30: Invertebrate | M30: Arthropoda | N30: Freshwater | O30: 15 | P30: Chronic | Q30: 7.51-7.79 | R30: 44 | S30: Martin, M.L.; Thompson, K.J. (2012). Chronic sensitivity of two native New Zealand species (freshwater fish – Inanga Galaxias maculatus and mayfly – Deleatidium sp.) to nitrate. No. HBR12230. NIWA report for Hawke's Bay Regional Council, Hamilton. pp. 26. | T30: N10 | V30: N10-1
A31: Freshwater/non-metal/non- plant | B31: N04-1 | C31: 84 | D31: 0.9545454545 | F31: Galaxias maculatus | G31: Juvenile | H31: 40 d | I31: NOEC | J31: Mortality | K31: 6 | L31: Fish | M31: Chordata | N31: Springfed river water | O31: 15 | P31: Chronic | Q31: 7.21-7.47 | R31: 14 | S31: Hickey, C.W.; Thompson, K.J.; Albert, A.; Martin, M.L. (2013). Chronic sensitivity of juvenile inanga (Galaxias maculatus) and early life-stage rainbow trout (Oncorhynchus mykiss) to nitrate. No. HBR13207; HAM2013-012. NIWA report for Hawke's Bay Regional Council | T31: N04 | V31: N04-1
A32: Freshwater/non-metal/non- plant | B32: N4-1-2 | C32: 84 | D32: 0.9545454545 | F32: Galaxias maculatus | G32: Juvenile | H32: 40 d | I32: NOEC | J32: Growth (weight) | K32: 6 | L32: Fish | M32: Chordata | N32: Springfed river water | O32: 15 | P32: Chronic | Q32: 7.21-7.47 | R32: 14 | S32: Hickey, C.W.; Thompson, K.J.; Albert, A.; Martin, M.L. (2013). Chronic sensitivity of juvenile inanga (Galaxias maculatus) and early life-stage rainbow trout (Oncorhynchus mykiss) to nitrate. No. HBR13207; HAM2013-012. NIWA report for Hawke's Bay Regional Council | T32: N04 | V32: N4-1-2
A33: Freshwater/non-metal/non- plant | B33: N-4-1-2 | C33: 84 | D33: 0.9545454545 | F33: Galaxias maculatus | G33: Juvenile | H33: 40 d | I33: LC10 | J33: Mortality | K33: 6.1 | L33: Fish | M33: Chordata | N33: Springfed river water | O33: 15 | P33: Chronic | Q33: 7.21-7.47 | R33: 14 | S33: Hickey, C.W.; Thompson, K.J.; Albert, A.; Martin, M.L. (2013). Chronic sensitivity of juvenile inanga (Galaxias maculatus) and early life-stage rainbow trout (Oncorhynchus mykiss) to nitrate. No. HBR13207; HAM2013-012. NIWA report for Hawke's Bay Regional Council | T33: N04 | V33: N-4-1-2
A34: Freshwater/non-metal/non- plant | B34: N-4-1-2 | C34: 84 | D34: 0.9545454545 | F34: Galaxias maculatus | G34: Juvenile | H34: 40 d | I34: EC10 | J34: Growth (weight) | K34: 2 | L34: Fish | M34: Chordata | N34: Springfed river water | O34: 15 | P34: Chronic | Q34: 7.21-7.47 | R34: 14 | S34: Hickey, C.W.; Thompson, K.J.; Albert, A.; Martin, M.L. (2013). Chronic sensitivity of juvenile inanga (Galaxias maculatus) and early life-stage rainbow trout (Oncorhynchus mykiss) to nitrate. No. HBR13207; HAM2013-012. NIWA report for Hawke's Bay Regional Council | T34: N04 | V34: N-4-1-2
A35: Freshwater/non-metal/non- plant | B35: N04-2 | C35: 84 | D35: 0.9545454545 | F35: Galaxias maculatus | G35: Juvenile | H35: 40 d | I35: NOEC | J35: Mortality and growth | K35: 20.3 | L35: Fish | M35: Chordata | N35: Springfed river water | O35: 15 | P35: Chronic | Q35: 7.50-7.59 | R35: 39 | S35: Hickey, C.W.; Thompson, K.J.; Albert, A.; Martin, M.L. (2013). Chronic sensitivity of juvenile inanga (Galaxias maculatus) and early life-stage rainbow trout (Oncorhynchus mykiss) to nitrate. No. HBR13207; HAM2013-012. NIWA report for Hawke's Bay Regional Council | T35: N04 | V35: N04-2
A36: Freshwater/non-metal/non- plant | B36: N10-2 | C36: 88 | D36: 1 | F36: Galaxias maculatus | G36: sub-adult | H36: 31 d | I36: NOEC | J36: Mortality | K36: >103 | L36: Fish | M36: Chordata | N36: Freshwater | O36: 14 | P36: Chronic | Q36: 7.48-7.74 | R36: 40 | S36: Martin, M.L.; Thompson, K.J. (2012). Chronic sensitivity of two native New Zealand species (freshwater fish – Inanga Galaxias maculatus and mayfly – Deleatidium sp.) to nitrate. No. HBR12230. NIWA report for Hawke's Bay Regional Council, Hamilton. pp. 26. | T36: N10 | V36: N10-2
A37: Freshwater/non-metal/non- plant | B37: N04-2-2 | C37: 88 | D37: 1 | F37: Galaxias maculatus | G37: Juvenile | H37: 40 d | I37: EC10 | J37: Growth (weight) | K37: 32.6 | L37: Fish | M37: Chordata | N37: Springfed river water | O37: 15 | P37: Chronic | Q37: 7.50-7.59 | R37: 39 | S37: Hickey, C.W.; Thompson, K.J.; Albert, A.; Martin, M.L. (2013). Chronic sensitivity of juvenile inanga (Galaxias maculatus) and early life-stage rainbow trout (Oncorhynchus mykiss) to nitrate. No. HBR13207; HAM2013-012. NIWA report for Hawke's Bay Regional Council | T37: N04 | V37: N04-2-2
A38: Freshwater/non-metal/non- plant | B38: NO4-2-3 | C38: 88 | D38: 1 | F38: Galaxias maculatus | G38: Juvenile | H38: 40 d | I38: EC10 | J38: Growth (length) | K38: 108 | L38: Fish | M38: Chordata | N38: Springfed river water | O38: 15 | P38: Chronic | Q38: 7.50-7.59 | R38: 39 | S38: Hickey, C.W.; Thompson, K.J.; Albert, A.; Martin, M.L. (2013). Chronic sensitivity of juvenile inanga (Galaxias maculatus) and early life-stage rainbow trout (Oncorhynchus mykiss) to nitrate. No. HBR13207; HAM2013-012. NIWA report for Hawke's Bay Regional Council | T38: N04
A39: Freshwater/non-metal/non- plant | B39: NO4-2-4 | C39: 88 | D39: 1 | F39: Galaxias maculatus | G39: Juvenile | H39: 40 d | I39: LC10 | J39: Mortality | K39: 26.6 | L39: Fish | M39: Chordata | N39: Springfed river water | O39: 15 | P39: Chronic | Q39: 7.50-7.59 | R39: 39 | S39: Hickey, C.W.; Thompson, K.J.; Albert, A.; Martin, M.L. (2013). Chronic sensitivity of juvenile inanga (Galaxias maculatus) and early life-stage rainbow trout (Oncorhynchus mykiss) to nitrate. No. HBR13207; HAM2013-012. NIWA report for Hawke's Bay Regional Council | T39: N04
A40: Freshwater/non-metal/non- plant | B40: N19-1 | C40: 82 | D40: 0.9318181818 | E40: Hardness reported as conductivity | F40: Gammarus pseudolimnaeus | G40: Juvenile | H40: 21 d | I40: EC10 | J40: Mortality and growth | K40: 127 | L40: Amphipod | M40: Arthropoda | N40: Freshwater | O40: 15 | P40: Chronic | Q40: 8.55 | R40: NR | S40: Stelzer RS, Joachim BL. 2010. Effects of Elevated Nitrate Concentration on Mortality, Growth, and Egestion Rates of Gammarus pseudolimnaeus Amphipods. Arch Environ Contam Toxicol 58:694-699. | T40: N19 | V40: N19-1
A41: Freshwater/non-metal/non- plant | B41: N19-2 | C41: 82 | D41: 0.9318181818 | F41: Gammarus pseudolimnaeus | G41: Juvenile | H41: 21 d | I41: NOEC | J41: Mortality and growth | K41: 126 | L41: Amphipod | M41: Arthropoda | N41: Freshwater | O41: 21 | P41: Chronic | Q41: 8.55 | R41: NR | S41: Stelzer RS, Joachim BL. 2010. Effects of Elevated Nitrate Concentration on Mortality, Growth, and Egestion Rates of Gammarus pseudolimnaeus Amphipods. Arch Environ Contam Toxicol 58:694-699. | T41: N19 | V41: N19-2
A42: Freshwater/non-metal/non- plant | B42: N18-1-2 | C42: 82 | D42: 0.9318181818 | F42: Gobiomorphus cotidianus | G42: Juvenile | H42: 21 d | I42: LC10 | J42: Mortality | K42: 27 | L42: Fish | M42: Chordata | N42: Freshwater | O42: 15 | P42: Chronic | Q42: 7.8 | R42: 11 | S42: Hickey CW, Thompson KJ, Martin ML, Albert A, Bell S, Raymond M. 2016. Data report for chronic nitrate toxicity to freshwater species: common bully, sphaeriid bivalve, freshwater crayfish and snail. FWWQ1703. NIWA data report. | T42: N18 | V42: N18-1-2
A43: Freshwater/non-metal/non- plant | B43: N18-1 | C43: 82 | D43: 0.9318181818 | F43: Gobiomorphus cotidianus | G43: Juvenile | H43: 21 d | I43: EC10 | J43: Growth (weight) | K43: 22.5 | L43: Fish | M43: Chordata | N43: Freshwater | O43: 15 | P43: Chronic | Q43: 7.8 | R43: 11 | S43: Hickey CW, Thompson KJ, Martin ML, Albert A, Bell S, Raymond M. 2016. Data report for chronic nitrate toxicity to freshwater species: common bully, sphaeriid bivalve, freshwater crayfish and snail. FWWQ1703. NIWA data report. | T43: N18 | V43: N18-1
A44: Freshwater/non-metal/non- plant | B44: N18-1-1 | C44: 82 | D44: 0.9318181818 | F44: Gobiomorphus cotidianus | G44: Juvenile | H44: 21 d | I44: LC10 | J44: Mortality | K44: 24.9 | L44: Fish | M44: Chordata | N44: Dechlorinated tapwater | O44: 15 | P44: Chronic | Q44: 7.8 | R44: 39 | S44: Hickey CW, Thompson KJ, Martin ML, Albert A, Bell S, Raymond M. 2016. Data report for chronic nitrate toxicity to freshwater species: common bully, sphaeriid bivalve, freshwater crayfish and snail. FWWQ1703. NIWA data report. | T44: N18 | V44: N18-1-1
A45: Freshwater/non-metal/non- plant | B45: N09-7 | C45: 83 | D45: 0.9431818182 | F45: Hyalella azteca | G45: Juvenile | H45: 14 d | I45: NOEC | J45: Growth | K45: 10 | L45: Invertebrate | M45: Arthropoda | N45: Freshwater | O45: 23 | P45: Chronic | Q45: 6.9-7.5 | R45: 46 | S45: Nautilus Environmental (2011b). Evaluation of the role of hardness in modifying the toxicity of nitrate to freshwater organisms. No. Final Report Submitted to Mining Association of BC, Vancouver, B.C. 4 April 2011. pp. 216. | T45: N09 | V45: N09-7
A46: Freshwater/non-metal/non- plant | B46: N09-8 | C46: 83 | D46: 0.9431818182 | F46: Hyalella azteca | G46: Juvenile | H46: 14 d | I46: NOEC | J46: Growth | K46: 80 | L46: Invertebrate | M46: Arthropoda | N46: Freshwater | O46: 23 | P46: Chronic | Q46: 6.9-7.5 | R46: 86 | S46: Nautilus Environmental (2011b). Evaluation of the role of hardness in modifying the toxicity of nitrate to freshwater organisms. No. Final Report Submitted to Mining Association of BC, Vancouver, B.C. 4 April 2011. pp. 216. | T46: N09 | V46: N09-8
A47: Freshwater/non-metal/non- plant | B47: N24-2-4-1 | C47: 82 | D47: 0.9318181818 | F47: Hyalella azteca | G47: Juvenile | H47: 42 d | I47: EC20 | J47: Biomass | K47: 11 | L47: Invertebrate | M47: Arthropoda | N47: Freshwater | O47: 22.9 | P47: Chronic | Q47: 8 | R47: 94 | S47: Soucek DJ, Dickinson A. 2016. Influence of chloride on the chronic toxicity of sodium nitrate to Ceriodaphnia dubia and Hyalella azteca. Ecotoxicology 25:1406-1416. | T47: N24 | V47: N24-2-4-1
A48: Freshwater/non-metal/non- plant | B48: N24-2-3-2 | C48: 82 | D48: 0.9318181818 | F48: Hyalella azteca | G48: Juvenile | H48: 42 d | I48: EC20 | J48: Growth (weight) | K48: 19 | L48: Invertebrate | M48: Arthropoda | N48: Freshwater | O48: 22.9 | P48: Chronic | Q48: 8 | R48: 94 | S48: Soucek DJ, Dickinson A. 2016. Influence of chloride on the chronic toxicity of sodium nitrate to Ceriodaphnia dubia and Hyalella azteca. Ecotoxicology 25:1406-1416. | T48: N24 | V48: N24-2-3-2
A49: Freshwater/non-metal/non- plant | B49: N9-9b | C49: 83 | D49: 0.9431818182 | F49: Hyalella azteca | G49: Juvenile | H49: 14 d | I49: IC10 | J49: Growth | K49: 102 | L49: Invertebrate | M49: Arthropoda | N49: Freshwater | O49: 23 | P49: Chronic | Q49: 6.9-7.5 | R49: 172 | S49: Nautilus Environmental (2011b). Evaluation of the role of hardness in modifying the toxicity of nitrate to freshwater organisms. No. Final Report Submitted to Mining Association of BC, Vancouver, B.C. 4 April 2011. pp. 216. | T49: N09 | V49: N9-9b
A50: Freshwater/non-metal/non- plant | B50: N09-9 | C50: 83 | D50: 0.9431818182 | F50: Hyalella azteca | G50: Juvenile | H50: 14 d | I50: IC10 | J50: Growth | K50: 120 | L50: Invertebrate | M50: Arthropoda | N50: Freshwater | O50: 23 | P50: Chronic | Q50: 6.9-7.5 | R50: 172 | S50: Nautilus Environmental (2011b). Evaluation of the role of hardness in modifying the toxicity of nitrate to freshwater organisms. No. Final Report Submitted to Mining Association of BC, Vancouver, B.C. 4 April 2011. pp. 216. | T50: N09 | V50: N09-9
A51: Freshwater/non-metal/non- plant | B51: N12-2 | C51: 81 | D51: 0.9204545455 | F51: Hyalella azteca | G51: Juvenile | H51: 10d | I51: NOEC | J51: Growth | K51: 470 | L51: Invertebrate | M51: Arthropoda | N51: Freshwater | O51: 23 | P51: Chronic | Q51: 6.9-7.5 | R51: 310 | S51: Stantec Consulting Ltd. (2006). Report on the toxicity of nitrate to Canadian fish and aquatic invertebrate species. No. Stantec Project No. 162704276. Prepared for: Environment Canada, National Guidelines Standards Office, pp. 110. | T51: N12 | V51: N12-2
A52: Freshwater/non-metal/non- plant | B52: N26-2 | C52: 82 | D52: 0.9010989011 | F52: Hydra viridissima | G52: Adult | H52: 96 h | I52: IC10 | J52: Growth | K52: 220 | L52: Macroinvertebrate | M52: Cnidaria | N52: ATSM hardwater | O52: 27 | P52: Chronic | Q52: 8.1 | R52: 376 | S52: ESA [Ecotox Services Australia] 2019a. Toxicity Assessment of Nitrate using Cultured Local Species – Rio Tinto Iron Ore, Test Report, September 2019. | T52: N28 | V52: N26-2
A53: Freshwater/non-metal/non- plant | B53: N23-4 | C53: 80 | D53: 0.8791208791 | F53: Hyla versicolor | G53: embryo | H53: 52 d | I53: EC20 | J53: Development (metamorphosis) | K53: 47 | L53: Amphibian | M53: Chordata | N53: CERC undiluted well water | O53: 25 | P53: Chronic | Q53: 8.2 | R53: 300 | S53: Wang N, Dorman RA, Ivey CD, Soucek DJ, Dickinson A, Kunz BK, Steevens JA, Hammer EJ & Bauer CR 2020. Acute and chronic toxicity of sodium nitrate and sodium sulfate to several freshwater organisms in water-only exposures. Environ Toxicol Chem 39:1071–1085. | T53: N23 | V53: N23-4
A54: Freshwater/non-metal/non- plant | B54: N25-1 | C54: 88 | D54: 0.932 | F54: Lampsilis siliquoidea | G54: Juvenile | H54: 42 d | I54: EC20 | J54: Growth (weight) | K54: 17 | L54: Bivalve | M54: Mollusca | N54: Diluted well water | O54: 23 | P54: Chronic | Q54: 8 | R54: 105 | S54: Wang N, Dorman RA, Ivey CD, Soucek DJ, Dickinson A, Kunz BK, Steevens JA, Hammer EJ and Bauer CR. (2020). Acute and chronic toxicity of sodium nitrate and sodium sulfate to several freshwater organisms in water-only exposures. Environmental Toxicology and Chemistry, 39, 1071-1085. | T54: N25 | V54: N25-1
A55: Freshwater/non-metal/non- plant | B55: N13-2 | C55: 76 | D55: 0.8636363636 | E55: No hardness data | F55: Macrobrachium rosenbergii | G55: Juvenile | H55: 21 d | I55: LC50 | J55: Growth | K55: 160 | L55: Invertebrate | M55: Arthropoda | N55: Freshwater | O55: 28 | P55: Chronic | Q55: 7.0-7.4 | R55: NR | S55: Wickins, J. (1976). The tolerance of warm-water prawns to recirculated water. Aquaculture 9: 19-37. | T55: N13 | V55: N13-2
A56: Freshwater/non-metal/non- plant | B56: N15-2 | C56: 81 | D56: 0.9204545455 | F56: Notropis topeka | G56: Juvenile | H56: 30 d | I56: NOEC | J56: Growth | K56: 268 | L56: Fish | M56: Chordata | N56: Freshwater | O56: 23.4 | P56: Chronic | Q56: 8.25 | R56: 210-230 | S56: Adelman, I.R.; Kusilek, L.I.; Koehle, J.; Hess, J. (2009). Acute and chronic toxicity of ammonia, nitrite, and nitrate to the endangered Topeka shiner (Notropis topeka) and fathead minnows (Pimephales promelas). Environmental Toxicology and Chemistry 28: 2216-2223. | T56: N15 | V56: N15-2
A57: Freshwater/non-metal/non- plant | B57: N08-1-1 | C57: 80 | D57: 0.9090909091 | F57: Oncorhynchus mykiss | G57: Embryo-Alevin-Fry | H57: 37-40 d | I57: NOEC | J57: Mortality | K57: 45 | L57: Fish | M57: Chordata | N57: Tap water | O57: 14 | P57: Chronic | Q57: 6.9-7.3 | R57: 10 | S57: Nautilus Environmental (2011a). Evaluation of the role of hardness in modifying the toxicity of nitrate to rainbow trout. No. Final Report Submitted to Mining Association of BC. , Vancouver, BC. 12 September 2011. pp. 252. | T57: N08 | V57: N08-1-1
A58: Freshwater/non-metal/non- plant | B58: N08-1-2 | C58: 80 | D58: 0.9090909091 | F58: Oncorhynchus mykiss | G58: Embryo-Alevin-Fry | H58: 37-40 d | I58: NOEC | J58: Growth (weight) | K58: 45 | L58: Fish | M58: Chordata | N58: Tap water | O58: 14 | P58: Chronic | Q58: 6.9-7.3 | R58: 10 | S58: Nautilus Environmental (2011a). Evaluation of the role of hardness in modifying the toxicity of nitrate to rainbow trout. No. Final Report Submitted to Mining Association of BC. , Vancouver, BC. 12 September 2011. pp. 252. | T58: N08 | V58: N08-1-2
A59: Freshwater/non-metal/non- plant | B59: N08-1-3 | C59: 80 | D59: 0.9090909091 | F59: Oncorhynchus mykiss | G59: Embryo-Alevin-Fry | H59: 37-40 d | I59: NOEC | J59: Growth (length) | K59: 15 | L59: Fish | M59: Chordata | N59: Tap water | O59: 14 | P59: Chronic | Q59: 6.9-7.3 | R59: 10 | S59: Nautilus Environmental (2011a). Evaluation of the role of hardness in modifying the toxicity of nitrate to rainbow trout. No. Final Report Submitted to Mining Association of BC. , Vancouver, BC. 12 September 2011. pp. 252. | T59: N08 | V59: N08-1-3
A60: Freshwater/non-metal/non- plant | B60: N08-1-4 | C60: 80 | D60: 0.9090909091 | F60: Oncorhynchus mykiss | G60: Embryo-Alevin-Fry | H60: 37-40 d | I60: LC10 | J60: Mortality | K60: 147 | L60: Fish | M60: Chordata | N60: Tap water | O60: 14 | P60: Chronic | Q60: 6.9-7.3 | R60: 10 | S60: Nautilus Environmental (2011a). Evaluation of the role of hardness in modifying the toxicity of nitrate to rainbow trout. No. Final Report Submitted to Mining Association of BC. , Vancouver, BC. 12 September 2011. pp. 252. | T60: N08 | V60: N08-1-4
A61: Freshwater/non-metal/non- plant | B61: N08-1-5 | C61: 80 | D61: 0.9090909091 | F61: Oncorhynchus mykiss | G61: Embryo-Alevin-Fry | H61: 37-40 d | I61: IC10 | J61: Growth (weight) | K61: 95 | L61: Fish | M61: Chordata | N61: Tap water | O61: 14 | P61: Chronic | Q61: 6.9-7.3 | R61: 10 | S61: Nautilus Environmental (2011a). Evaluation of the role of hardness in modifying the toxicity of nitrate to rainbow trout. No. Final Report Submitted to Mining Association of BC. , Vancouver, BC. 12 September 2011. pp. 252. | T61: N08 | V61: N08-1-5
A62: Freshwater/non-metal/non- plant | B62: N02-4 | C62: 83 | D62: 0.9431818182 | F62: Oncorhynchus mykiss | G62: Fry | H62: 30 d | I62: NOEC | J62: Mortality | K62: 1.1 | L62: Fish | M62: Chordata | N62: Freshwater | O62: 10 | P62: Chronic | Q62: 6.2 | R62: 10 | S62: Kincheloe, J.W.; Wedemeyer, G.A.; Koch, D.L. (1979). Tolerance of developing salmonid eggs and fry to nitrate exposure. Bulletin of Environmental Contamination and Toxicology 23: 575-578. | T62: N02 | V62: N02-4
A63: Freshwater/non-metal/non- plant | B63: N02-5 | C63: 83 | D63: 0.9431818182 | F63: Oncorhynchus mykiss | G63: Fry | H63: 30 d | I63: NOEC | J63: Mortality | K63: >4.5 | L63: Fish | M63: Chordata | N63: Freshwater | O63: 10 | P63: Chronic | Q63: 6.2 | R63: 8-10 | S63: Kincheloe, J.W.; Wedemeyer, G.A.; Koch, D.L. (1979). Tolerance of developing salmonid eggs and fry to nitrate exposure. Bulletin of Environmental Contamination and Toxicology 23: 575-578. | T63: N02 | V63: N02-5
A64: Freshwater/non-metal/non- plant | B64: N08-2 | C64: 80 | D64: 0.9090909091 | F64: Oncorhynchus mykiss | G64: Embryo-Alevin-Fry | H64: 42 d | I64: IC10 | J64: Yolk development | K64: 120 | L64: Fish | M64: Chordata | N64: Dechlorinated tapwater | O64: 14 | P64: Chronic | Q64: 6.9-7.3 | R64: 39 | S64: Nautilus Environmental (2011a). Evaluation of the role of hardness in modifying the toxicity of nitrate to rainbow trout. No. Final Report Submitted to Mining Association of BC. , Vancouver, BC. 12 September 2011. pp. 252. | T64: N08 | V64: N08-2
A65: Freshwater/non-metal/non- plant | B65: N08-3 | C65: 80 | D65: 0.9090909091 | F65: Oncorhynchus mykiss | G65: Embryo-Alevin-Fry | H65: 37-40 d | I65: NOEC | J65: Growth weight (and length) | K65: 45 | L65: Fish | M65: Chordata | N65: Dechlorinated tapwater | O65: 14 | P65: Chronic | Q65: 6.9-7.3 | R65: 92 | S65: Nautilus Environmental (2011a). Evaluation of the role of hardness in modifying the toxicity of nitrate to rainbow trout. No. Final Report Submitted to Mining Association of BC. , Vancouver, BC. 12 September 2011. pp. 252. | T65: N08 | V65: N08-3
A66: Freshwater/non-metal/non- plant | B66: N08-4 | C66: 80 | D66: 0.9090909091 | F66: Oncorhynchus mykiss | G66: Embryo-Alevin-Fry | H66: 37-40 d | I66: NOEC | J66: Mortality | K66: 405 | L66: Fish | M66: Chordata | N66: Dechlorinated tapwater | O66: 14 | P66: Chronic | Q66: 6.9-7.3 | R66: 50 and 92 | S66: Nautilus Environmental (2011a). Evaluation of the role of hardness in modifying the toxicity of nitrate to rainbow trout. No. Final Report Submitted to Mining Association of BC. , Vancouver, BC. 12 September 2011. pp. 252. | T66: N08 | V66: N08-4
B67: N08-4 | C67: 80 | D67: 0.9090909091 | F67: Oncorhynchus mykiss | G67: Embryo-Alevin-Fry | H67: 37-40 d | I67: IC10 | J67: Growth | K67: 335 | L67: Fish | M67: Chordata | N67: Dechlorinated tapwater | O67: 14 | P67: Chronic | Q67: 6.9-7.3 | R67: 176 | S67: Nautilus Environmental (2011a). Evaluation of the role of hardness in modifying the toxicity of nitrate to rainbow trout. No. Final Report Submitted to Mining Association of BC. , Vancouver, BC. 12 September 2011. pp. 252. | T67: N08 | V67: N08-3
A68: Freshwater/non-metal/non- plant | B68: N08-3 | C68: 80 | D68: 0.9090909091 | F68: Oncorhynchus mykiss | G68: Embryo-Alevin-Fry | H68: 37-40 d | I68: NOEC | J68: Growth | K68: 45 | L68: Fish | M68: Chordata | N68: Dechlorinated tapwater | O68: 14 | P68: Chronic | Q68: 6.9-7.3 | R68: 176 | S68: Nautilus Environmental (2011a). Evaluation of the role of hardness in modifying the toxicity of nitrate to rainbow trout. No. Final Report Submitted to Mining Association of BC. , Vancouver, BC. 12 September 2011. pp. 252. | T68: N08 | V68: N08-3
A69: Freshwater/non-metal/non- plant | B69: N08-4 | C69: 80 | D69: 0.9090909091 | F69: Oncorhynchus mykiss | G69: Embryo-Alevin-Fry | H69: 37-40 d | I69: NOEC | J69: Growth | K69: 405 | L69: Fish | M69: Chordata | N69: Dechlorinated tapwater | O69: 14 | P69: Chronic | Q69: 6.9-7.3 | R69: 176 | S69: Nautilus Environmental (2011a). Evaluation of the role of hardness in modifying the toxicity of nitrate to rainbow trout. No. Final Report Submitted to Mining Association of BC. , Vancouver, BC. 12 September 2011. pp. 252. | T69: N08 | V69: N08-4
A70: Freshwater/non-metal/non- plant | B70: N12-1 | C70: 86 | D70: 0.9772727273 | F70: Oncorhynchus mykiss | G70: Embryo-Alevin-Fry | H70: 64-68 d | I70: NOEC | J70: Growth | K70: 115 | L70: Fish | M70: Chordata | N70: Dechlorinated tapwater | O70: 14 | P70: Chronic | Q70: 6.9-7.3 | R70: 310 | S70: Stantec Consulting Ltd. (2006). Report on the toxicity of nitrate to Canadian fish and aquatic invertebrate species. No. Stantec Project No. 162704276. Prepared for: Environment Canada, National Guidelines Standards Office, pp. 110. | T70: N12 | V70: N12-1
A71: Freshwater/non-metal/non- plant | B71: N02-1 | C71: 83 | D71: 0.9431818182 | F71: Oncorhynchus tshawytscha | G71: Fry | H71: 30 d | I71: NOEC | J71: Mortality | K71: 2.3 | L71: Fish | M71: Chordata | N71: Freshwater | O71: 10 | P71: Chronic | Q71: 6.2 | R71: 8-10 | S71: Kincheloe, J.W.; Wedemeyer, G.A.; Koch, D.L. (1979). Tolerance of developing salmonid eggs and fry to nitrate exposure. Bulletin of Environmental Contamination and Toxicology 23: 575-578. | T71: N02 | V71: N02-1
A72: Freshwater/non-metal/plant | B72: N27-3 | C72: 84 | D72: 0.9545454545 | F72: Oocystis solitaria | G72: Exponential growth phase | H72: 72 h | I72: IC10 | J72: Cell yield | K72: 1700 | L72: Microalga | M72: Chlorophyta | N72: Freshwater | O72: 25 | P72: Chronic | Q72: 7.9 | R72: 376 | S72: van Dam RA 2019. Analysis of nitrate toxicity data for algae and generation of species sensitivity distribution. Report prepared for Rio Tinto, Perth, WA, December 2019. | T72: N28 | V72: N27-3
A73: Freshwater/non-metal/non- plant | B73: N18-4-1 | C73: 82 | D73: 0.9318181818 | F73: Paranephrops planifrons | G73: Juvenile | H73: 60 d | I73: LC10 | J73: Mortality | K73: 17.4 | L73: Crayfish | M73: Arthropoda | N73: Spring water | O73: 20 | P73: Chronic | Q73: 7.8-8.2 | R73: 14 | S73: Hickey CW, Thompson KJ, Martin ML, Albert A, Bell S and Raymond M. (2016). Data report for chronic nitrate toxicity to freshwater species: common bully, sphaeriid bivalve, freshwater crayfish and snail. FWWQ1703. NIWA data report, | T73: N18 | V73: N18-4-1
A74: Freshwater/non-metal/non- plant | B74: N18-4-2 | C74: 82 | D74: 0.9318181818 | F74: Paranephrops planifrons | G74: Juvenile | H74: 60 d | I74: LC10 | J74: Growth (weight) | K74: 2.3 | L74: Crayfish | M74: Arthropoda | N74: Spring water | O74: 20 | P74: Chronic | Q74: 7.8-8.2 | R74: 14 | S74: Hickey CW, Thompson KJ, Martin ML, Albert A, Bell S and Raymond M. (2016). Data report for chronic nitrate toxicity to freshwater species: common bully, sphaeriid bivalve, freshwater crayfish and snail. FWWQ1703. NIWA data report, | T74: N18 | V74: N18-4-2
A75: Freshwater/non-metal/non- plant | B75: N-18-4-3 | C75: 82 | D75: 0.9318181818 | F75: Paranephrops planifrons | G75: Juvenile | H75: 60 d | I75: EC10 | J75: Growth (length) | K75: 2.2 | L75: Crayfish | M75: Arthropoda | N75: Spring water | O75: 20 | P75: Chronic | Q75: 7.8-8.2 | R75: 14 | S75: Hickey CW, Thompson KJ, Martin ML, Albert A, Bell S and Raymond M. (2016). Data report for chronic nitrate toxicity to freshwater species: common bully, sphaeriid bivalve, freshwater crayfish and snail. FWWQ1703. NIWA data report, | T75: N18 | V75: N-18-4-3
A76: Freshwater/non-metal/non- plant | B76: N07-6 | C76: 79 | D76: 0.8977272727 | F76: Pimephales promelas | G76: Embryo-larvae | H76: 7 d | I76: NOEC | J76: Growth and mortality | K76: 358 | L76: Fish | M76: Chordata | N76: Freshwater | O76: 25 | P76: N | Q76: 7.34-8.27 | R76: 140-170 | S76: Scott, G.; Crunkilton, R.L. (2000). Acute and chronic toxicity of nitrate to fathead minnows (Pimephales promelas), Ceriodaphnia dubia, and Daphnia magna. Environmental Toxicology and Chemistry 19: 2918-2922. | T76: N07 | V76: N07-6
A77: Freshwater/non-metal/non- plant | B77: N9-10-1 | C77: 83 | D77: 0.9431818182 | F77: Pimephales promelas | G77: Larvae | H77: 7 d | I77: NOEC | J77: Mortality | K77: 50 | L77: Fish | M77: Chordata | N77: Freshwater | O77: 25 | P77: Chronic | Q77: 6.9-7.5 | R77: 12 | S77: Nautilus Environmental (2011b). Evaluation of the role of hardness in modifying the toxicity of nitrate to freshwater organisms. No. Final Report Submitted to Mining Association of BC, Vancouver, B.C. 4 April 2011. pp. 216. | T77: N09 | V77: N9-10-1
A78: Freshwater/non-metal/non- plant | B78: N9-10-1b | C78: 83 | D78: 0.9431818182 | F78: Pimephales promelas | G78: Larvae | H78: 7 d | I78: EC10 | J78: Growth weight | K78: 52 | L78: Fish | M78: Chordata | N78: Freshwater | O78: 25 | P78: Chronic | Q78: 6.9-7.5 | R78: 12 | S78: Nautilus Environmental (2011b). Evaluation of the role of hardness in modifying the toxicity of nitrate to freshwater organisms. No. Final Report Submitted to Mining Association of BC, Vancouver, B.C. 4 April 2011. pp. 216. | T78: N09 | V78: N9-10-1b
A79: Freshwater/non-metal/non- plant | B79: N09-10 | C79: 83 | D79: 0.9431818182 | F79: Pimephales promelas | G79: Larvae | H79: 7 d | I79: NOEC | J79: Growth weight | K79: 50 | L79: Fish | M79: Chordata | N79: Freshwater | O79: 25 | P79: Chronic | Q79: 6.9-7.5 | R79: 12 | S79: Nautilus Environmental (2011b). Evaluation of the role of hardness in modifying the toxicity of nitrate to freshwater organisms. No. Final Report Submitted to Mining Association of BC, Vancouver, B.C. 4 April 2011. pp. 216. | T79: N09 | V79: N09-10
A80: Freshwater/non-metal/non- plant | B80: N9-14-1 | C80: 83 | D80: 0.9431818182 | F80: Pimephales promelas | G80: Larvae | H80: 7 d | I80: NOEC | J80: Growth (weight) | K80: 100 | L80: Fish | M80: Chordata | N80: Reconstituted water | O80: 25 | P80: Chronic | Q80: 6.9-7.5 | R80: 50 | S80: Nautilus Environmental (2011b). Evaluation of the role of hardness in modifying the toxicity of nitrate to freshwater organisms. No. Final Report Submitted to Mining Association of BC, Vancouver, B.C. 4 April 2011. pp. 216. | T80: N09 | V80: N9-14-1
A81: Freshwater/non-metal/non- plant | B81: N9-14-1b | C81: 83 | D81: 0.9431818182 | F81: Pimephales promelas | G81: Larvae | H81: 7 d | I81: IC10 | J81: Growth (weight) | K81: 6.6 | L81: Fish | M81: Chordata | N81: Reconstituted water | O81: 25 | P81: Chronic | Q81: 6.9-7.5 | R81: 50 | S81: Nautilus Environmental (2011b). Evaluation of the role of hardness in modifying the toxicity of nitrate to freshwater organisms. No. Final Report Submitted to Mining Association of BC, Vancouver, B.C. 4 April 2011. pp. 216. | T81: N09 | V81: N9-14-1b
A82: Freshwater/non-metal/non- plant | B82: N9-11-2b | C82: 83 | D82: 0.9431818182 | F82: Pimephales promelas | G82: Larvae | H82: 7 d | I82: IC10 | J82: Growth (weight) | K82: 20.7 | L82: Fish | M82: Chordata | N82: Reconstituted water | O82: 25 | P82: Chronic | Q82: 6.9-7.5 | R82: 94 | S82: Nautilus Environmental (2011b). Evaluation of the role of hardness in modifying the toxicity of nitrate to freshwater organisms. No. Final Report Submitted to Mining Association of BC, Vancouver, B.C. 4 April 2011. pp. 216. | T82: N09 | V82: N9-11-2b
A83: Freshwater/non-metal/non- plant | B83: N09-12 | C83: 83 | D83: 0.9431818182 | F83: Pimephales promelas | G83: Larvae | H83: 7 d | I83: NOEC | J83: Growth (weight) | K83: 200 | L83: Fish | M83: Chordata | N83: Reconstituted water | O83: 25 | P83: Chronic | Q83: N.A. | R83: 94 | S83: Nautilus Environmental (2011b). Evaluation of the role of hardness in modifying the toxicity of nitrate to freshwater organisms. No. Final Report Submitted to Mining Association of BC, Vancouver, B.C. 4 April 2011. pp. 216. | T83: N09 | V83: N09-12
A84: Freshwater/non-metal/non- plant | B84: N09-14 | C84: 83 | D84: 0.9431818182 | F84: Pimephales promelas | G84: Larvae | H84: 7 d | I84: NOEC | J84: mortality growth | K84: 100 | L84: Fish | M84: Chordata | N84: Freshwater | O84: 25 | P84: Chronic | Q84: N.A. | S84: Nautilus Environmental (2011b). Evaluation of the role of hardness in modifying the toxicity of nitrate to freshwater organisms. No. Final Report Submitted to Mining Association of BC, Vancouver, B.C. 4 April 2011. pp. 216. | T84: N09 | V84: N09-14
A85: Freshwater/non-metal/non- plant | B85: N15-1 | C85: 81 | D85: 0.9204545455 | F85: Pimephales promelas | G85: Juvenile | H85: 32 d | I85: NOEC | J85: Mortality | K85: 58 | L85: Fish | M85: Chordata | N85: Freshwater | O85: 23.1 | P85: Chronic | Q85: 8.25 | R85: 210-230 | S85: Adelman, I.R.; Kusilek, L.I.; Koehle, J.; Hess, J. (2009). Acute and chronic toxicity of ammonia, nitrite, and nitrate to the endangered Topeka shiner (Notropis topeka) and fathead minnows (Pimephales promelas). Environmental Toxicology and Chemistry 28: 2216-2223. | T85: N15 | V85: N15-1
A86: Freshwater/non-metal/non- plant | B86: N15-2 | C86: 81 | D86: 0.9204545455 | F86: Pimephales promelas | G86: Juvenile | H86: 32 d | I86: NOEC | J86: Growth | K86: 157 | L86: Fish | M86: Chordata | N86: Freshwater | O86: 23.1 | P86: Chronic | Q86: 8.25 | R86: 210-230 | S86: Adelman, I.R.; Kusilek, L.I.; Koehle, J.; Hess, J. (2009). Acute and chronic toxicity of ammonia, nitrite, and nitrate to the endangered Topeka shiner (Notropis topeka) and fathead minnows (Pimephales promelas). Environmental Toxicology and Chemistry 28: 2216-2223. | T86: N15 | V86: N15-2
A87: Freshwater/non-metal/non- plant | B87: N16-2 | C87: 81 | D87: 0.9204545455 | F87: Pimephales promelas | G87: Juvenile | H87: 32 d | I87: IC10 | J87: Growth (weight) | K87: 46.7 | L87: Fish | M87: Chordata | N87: Freshwater | O87: 25 | P87: Chronic | Q87: 7.34-8.27 | R87: 132-180
A88: Freshwater/non-metal/non- plant | B88: N16-2 | C88: 81 | D88: 0.9204545455 | F88: Pimephales promelas | G88: Juvenile | H88: 32 d | I88: EC20 | J88: Growth | K88: 59.8 | L88: Fish | M88: Chordata | N88: Freshwater | O88: 25 | P88: Chronic | Q88: 7.34-8.27 | R88: 132-180 | S88: U.S. EPA (2010). Final report on acute and chronic toxicity of nitrate, nitrite, boron, manganese, fluoride, chloride and sulphate to several aquatic animal species. No. EPA 905-R-10-002. United States Environmental Protection Agency, Chicago, IL. pp. 174. | T88: N16 | V88: N16-2
A89: Freshwater/non-metal/non- plant | B89: N16-1 | C89: 81 | D89: 0.9204545455 | F89: Pimephales promelas | G89: Embryo-larvae | H89: 32 d | I89: NOEC | J89: Growth and mortality | K89: 49 | L89: Fish | M89: Chordata | N89: Freshwater | O89: 25 | P89: Chronic | Q89: 7.97-8.32 | R89: 132-180 | S89: U.S. EPA (2010). Final report on acute and chronic toxicity of nitrate, nitrite, boron, manganese, fluoride, chloride and sulphate to several aquatic animal species. No. EPA 905-R-10-002. United States Environmental Protection Agency, Chicago, IL. pp. 174. | T89: N16 | V89: N16-1
A90: Freshwater/non-metal/non- plant | B90: N11-1 | C90: 75 | D90: 0.8522727273 | E90: No hardness data | F90: Pomacea paludosa | G90: Juvenile | H90: 14 d | I90: EC50 | J90: Mortality | K90: 831 | L90: Invertebrate | M90: Mollusca | N90: Freshwater | O90: 21-24 | P90: Chronic | Q90: 7.5-8.5 | R90: NR | S90: Corrao, N.; Darby, P.; Pomory, C. (2006). Nitrate impacts on the Florida apple snail, Pomacea paludosa. Hydrobiologia 568: 135-143. | T90: N11 | V90: N11-1
A91: Freshwater/non-metal/non- plant | B91: N11-2 | C91: 75 | D91: 0.8522727273 | F91: Pomacea paludosa | G91: Juvenile | H91: 14 d | I91: EC50 | J91: Mortality | K91: 826 | L91: Invertebrate | M91: Mollusca | N91: Freshwater | O91: 21-24 | P91: Chronic | Q91: 7.5-8.5 | R91: NR | S91: ---------------------------------------------------------------------------------------------------------------------------------------------------------------------------------------------------------------------------------------------------------------------------------------------------------------------------------------------------------------------------------------------------------------------------------------------------------------------------------------------------------------------------------------------------------------------------------------------------------------------------------------------------------------------------------------------------------------------------------------------------------------------------------------------------------------------------------------------------------------------------------------------------------------------------------------------------------------------------------------------------------------------------------------------------------------------------------------------------------------------------------------------------------------------------------------------------------------------------------------------------------------------------------------------------------------------------------------------------------------------------------------------------------------------------------------------------------------------------------------------------------------------------------------------------------------------------------------------------------------------------------------------------------------------------------------------------------------------------------------------------------------------------------------------------------------------------------------------------------------------------------------------------------------------------------------------------------------------------------------------------------------------------------------------------------------------------------------------------------------------------------------------------------------------------------------------------------------------------------------------------------------------------------------------------------------------------------------------------------------------------------------------------------------------------------------------------------------------------------------------------------------------------------------------------------------------------------------------------------------------------------------------------------------------------------------------------------------------------------------------------------------------------------------------------------------------------------------------------------------------------------------------------------------------------------------------------------------------------------------------------------------------------------------------------------------------------------------------------------------------------------------------------------------------------------------------------------------------------------------------------------------------------------------------------------------------------------------------------------------------------------------------------------------------------------------------------------------------------------------------------------------------------------------------------------------------------------------------------------------------------------------------------------------------------------------------------------------------------------------------------------------------------------------------------------------------------------------------------------------------------------------------------------------------------------------------------------------------------------------------------------------------------------------------------------------------------------------------------------------------------------------------------------------------------------------------------------------------------------------------------------------------------------------------------------------------------------------------------------------------------------------------------------------------------------------------------------------------------------------------------------------------------------------------------------------------------------------------------------------------------------------------------------------------------------------------------------------------------------------------------------------------------------------------------------------------------------------------------------------------------------------------------------------------------------------------------------------------------------------------------------------------------------------------------------------- | T91: N11 | V91: N11-2
A92: Freshwater/non-metal/non- plant | B92: N20-1 | C92: 82 | D92: 0.9318181818 | F92: Potamopyrgus antipodarum | G92: Juvenile | H92: 35 d | I92: LOEC | J92: Reproduction | K92: 21.4 | L92: Mollusc | M92: Mollusca | N92: Freshwater | O92: 18.5 | P92: Chronic | Q92: 7.8-8.2 | R92: 92 | S92: Alonso Á, Camargo J. 2013. Nitrate causes deleterious effects on the behaviour and reproduction of the aquatic snail Potamopyrgus antipodarum (Hydrobiidae, Mollusca). Environmental Science and Pollution Research 20:5388-5396. | T92: N20 | V92: N20-1
A93: Freshwater/non-metal/non- plant | B93: N18-3-4 | C93: 82 | D93: 0.9318181818 | F93: Potamopyrgus antipodarum | G93: Juvenile | H93: 40 d | I93: EC10 | J93: Morbidity | K93: 1.2 | L93: Mollusc | M93: Mollusca | N93: Freshwater | O93: 20 | P93: Chronic | Q93: 7.8-8.2 | R93: 6 | S93: Hickey CW, Thompson KJ, Martin ML, Albert A, Bell S and Raymond M. (2016). Data report for chronic nitrate toxicity to freshwater species: common bully, sphaeriid bivalve, freshwater crayfish and snail. FWWQ1703. NIWA data report, | T93: N18 | V93: N18-3-4
A94: Freshwater/non-metal/non- plant | B94: N18-3-2 | C94: 82 | D94: 0.9318181818 | F94: Potamopyrgus antipodarum | G94: Juvenile | H94: 40 d | I94: EC10 | J94: Growth (length) | K94: 0.88 | L94: Mollusc | M94: Mollusca | N94: Freshwater | O94: 20 | P94: Chronic | Q94: 7.8-8.2 | R94: 11 | S94: Hickey CW, Thompson KJ, Martin ML, Albert A, Bell S and Raymond M. (2016). Data report for chronic nitrate toxicity to freshwater species: common bully, sphaeriid bivalve, freshwater crayfish and snail. FWWQ1703. NIWA data report, | T94: N18 | V94: N18-3-2
A95: Freshwater/non-metal/non- plant | B95: N18-3-6 | C95: 82 | D95: 0.9318181818 | F95: Potamopyrgus antipodarum | G95: Juvenile | H95: 40 d | I95: LC10 | J95: Mortality | K95: 3 | L95: Mollusc | M95: Mollusca | N95: Freshwater | O95: 20 | P95: Chronic | Q95: 7.8-8.2 | R95: 11 | S95: Hickey CW, Thompson KJ, Martin ML, Albert A, Bell S and Raymond M. (2016). Data report for chronic nitrate toxicity to freshwater species: common bully, sphaeriid bivalve, freshwater crayfish and snail. FWWQ1703. NIWA data report, | T95: N18 | V95: N18-3-6
A96: Freshwater/non-metal/non- plant | B96: N18-3-7 | C96: 82 | D96: 0.9318181818 | F96: Potamopyrgus antipodarum | G96: Juvenile | H96: 40 d | I96: EC10 | J96: Morbidity | K96: 2.9 | L96: Mollusc | M96: Mollusca | N96: Freshwater | O96: 20 | P96: Chronic | Q96: 7.8-8.2 | R96: 11 | S96: Hickey CW, Thompson KJ, Martin ML, Albert A, Bell S and Raymond M. (2016). Data report for chronic nitrate toxicity to freshwater species: common bully, sphaeriid bivalve, freshwater crayfish and snail. FWWQ1703. NIWA data report, | T96: N18 | V96: N18-3-7
A97: Freshwater/non-metal/non- plant | B97: N18-3-8 | C97: 82 | D97: 0.9318181818 | F97: Potamopyrgus antipodarum | G97: Juvenile | H97: 40 d | I97: EC10 | J97: Growth (length) | K97: 2.3 | L97: Mollusc | M97: Mollusca | N97: Freshwater | O97: 20 | P97: Chronic | Q97: 7.8-8.2 | R97: 11 | S97: Hickey CW, Thompson KJ, Martin ML, Albert A, Bell S and Raymond M. (2016). Data report for chronic nitrate toxicity to freshwater species: common bully, sphaeriid bivalve, freshwater crayfish and snail. FWWQ1703. NIWA data report, | T97: N18 | V97: N18-3-8
A98: Freshwater/non-metal/non- plant | B98: N05-1 (2) | C98: 88 | D98: 1 | F98: Pseudacris regilla | G98: Tadpole | H98: 10 d | I98: LOEC | J98: Growth (weight) | K98: ≤30.1 | L98: Amphibian | M98: Chordata | N98: Freshwater | O98: 22 | P98: Chronic | Q98: 7.0-7.6 | R98: 58.4 | S98: Schuytema, G.S.; Nebeker, A.V. (1999c). Comparative toxicity of ammonium and nitrate compounds to Pacific tree frog and clawed frog tadpoles. Environmental Toxicology and Chemistry 18: 2251-2257 | T98: N05 | V98: N05-1 (2)
A99: Freshwater/non-metal/non- plant | B99: N05-1 | C99: 76 | D99: 0.8636363636 | F99: Pseudacris regilla | G99: Embryo | H99: 10 d | I99: NOEC | J99: Growth (length, weight) | K99: 56.7 | L99: Amphibian | M99: Chordata | N99: Freshwater | O99: 22 | P99: Chronic | Q99: 6.6-6.7 | R99: 75 | S99: Schuytema, G.S.; Nebeker, A.V. (1999a). Comparative effects of ammonium and nitrate compounds on Pacific treefrog and African clawed frog embryos. Archives of Environmental and Contamination Toxicology 36: 200-206. | T99: N05 | V99: N05-1
A100: Freshwater/non-metal/non- plant | B100: N14-2 | C100: 68 | D100: 0.7727272727 | F100: Pseudacris regilla | G100: Tadpole | H100: 10 d | I100: NOEC | J100: Growth (length) | K100: 126.3 | L100: Amphibian | M100: Chordata | N100: Freshwater | O100: 22 | P100: Chronic | Q100: 7.0-7.6 | R100: 58.4 | S100: Schuytema, G.S.; Nebeker, A.V. (1999c). Comparative toxicity of ammonium and nitrate compounds to Pacific tree frog and clawed frog tadpoles. Environmental Toxicology and Chemistry 18: 2251-2257 | T100: N14 | V100: N14-2
A101: Freshwater/non-metal/plant | B101: N09-13 | C101: 83 | D101: 0.9431818182 | F101: Pseudokirchneriella subcapitata | G101: exponential | H101: 3 d | I101: IC10 | J101: Growth | K101: 247 | L101: Alga | M101: Chlorophyta | N101: Reconstituted water | O101: 24 | P101: Chronic | Q101: 6.9-7.5 | R101: 10 | S101: Nautilus Environmental (2011b). Evaluation of the role of hardness in modifying the toxicity of nitrate to freshwater organisms. No. Final Report Submitted to Mining Association of BC, Vancouver, B.C. 4 April 2011. pp. 216. | T101: N09 | V101: N09-13
A102: Freshwater/non-metal/non- plant | B102: N17-1 | C102: 72 | D102: 0.8181818182 | F102: Rana aurora | G102: Embryo-larvae | H102: 16 d | I102: NOEC | J102: Growth (weight) | K102: 116.8 | L102: Amphibian | M102: Chordata | N102: Deep well water | O102: 15 | P102: Chronic | Q102: 6.8 | R102: 25.5 | S102: Schuytema, G.S.; Nebeker, A.V. (1999b). Effects of ammonium nitrate, sodium nitrate amd urea on red-legged frogs, Pacific tree frog and African clawed frogs. Bulletin of Envrionmental and Contamination Toxicology 63: 357-364 | T102: N17 | V102: N17-1
A103: Freshwater/non-metal/non- plant | B103: N17-1-2 | C103: 72 | D103: 0.8181818182 | F103: Rana aurora | G103: Embryo-larvae | H103: 16 d | I103: LOEC | J103: Growth (length) | K103: <29.1 | L103: Amphibian | M103: Chordata | N103: Deep well water | O103: 15 | P103: Chronic | Q103: 6.8 | R103: 25.5 | S103: Schuytema, G.S.; Nebeker, A.V. (1999b). Effects of ammonium nitrate, sodium nitrate amd urea on red-legged frogs, Pacific tree frog and African clawed frogs. Bulletin of Envrionmental and Contamination Toxicology 63: 357-364 | T103: N17 | V103: N17-1-2
A104: Freshwater/non-metal/non- plant | B104: N02-2 | C104: 83 | D104: 0.9431818182 | F104: Salmo clarki | G104: Fry | H104: 30 d | I104: NOEC | J104: Mortality | K104: 4.5 | L104: Fish | M104: Chordata | N104: Well water | O104: 13 | P104: Chronic | Q104: 7.6 | R104: 6-9 | S104: Kincheloe, J.W.; Wedemeyer, G.A.; Koch, D.L. (1979). Tolerance of developing salmonid eggs and fry to nitrate exposure. Bulletin of Environmental Contamination and Toxicology 23: 575-578. | T104: N02 | V104: N02-2
A105: Freshwater/non-metal/non- plant | B105: N01-1 | C105: 85 | D105: 0.966 | F105: Salvelinus namaycush | G105: Embryo-Alevin-Fry | H105: 146 d | I105: NOEC | J105: Growth (weight) | K105: 1.6 | L105: Fish | M105: Chordata | N105: Dechlorinated water | O105: 7.5 | P105: Chronic | Q105: 6-7.4 | R105: 10-16 | S105: McGurk, M.D.; Landry, F.; Tang, A.; Hanks, C.C. (2006). Acute and chronic toxicity of nitrate to early life stages of lake trout (Salvelinus namaycush) and lake whitefish (Coregonus clupeaformis). Environmental Toxicology and Chemistry 25: 2187-2196. | T105: N01 | V105: N01-1
A106: Freshwater/non-metal/non- plant | B106: N-1-1-2 | C106: 85 | D106: 0.966 | F106: Salvelinus namaycush | G106: Embryo-Alevin-Fry | H106: 146 d | I106: NOEC | J106: Growth (length) | K106: 25 | L106: Fish | M106: Chordata | N106: Dechlorinated water | O106: 7.5 | P106: Chronic | Q106: 6-7.4 | R106: 10-16 | S106: McGurk, M.D.; Landry, F.; Tang, A.; Hanks, C.C. (2006). Acute and chronic toxicity of nitrate to early life stages of lake trout (Salvelinus namaycush) and lake whitefish (Coregonus clupeaformis). Environmental Toxicology and Chemistry 25: 2187-2196. | T106: N01 | V106: N-1-1-2
A107: Freshwater/non-metal/non- plant | B107: N22-2 | C107: 82 | D107: 0.9318181818 | E107: No hardness data | F107: Sander lucioperca | G107: Juvenile | H107: 42 d | I107: NOEC | J107: Growth (wt) | K107: 359 | L107: Fish | M107: Chordata | N107: Freshwater | O107: 24 | P107: Chronic | Q107: 7.1-7.98 | R107: NR | S107: Schram E, Roques JAC, van Kuijk T, Abbink W, van de Heul J, de Vries P, Bierman S, van de Vis H, Flik G. 2014. The impact of elevated water ammonia and nitrate concentrations on physiology, growth and feed intake of pikeperch (Sander lucioperca). Aquaculture 420–421:95-104. | T107: N22 | V107: N22-2
A108: Freshwater/non-metal/non- plant | B108: N27-1 | C108: 79 | D108: 0.8681318681 | F108: Simocephalus heilongjiangensis | G108: Neonate | H108: 13 d | I108: IC10 | J108: Reproduction | K108: 45 | L108: Microinvertebrate | M108: Arthropoda | N108: ATSM hardwater | O108: 25 | P108: Chronic | Q108: 8.1 | R108: 376 | S108: ESA [Ecotox Services Australia] 2019a. Toxicity Assessment of Nitrate using Cultured Local Species – Rio Tinto Iron Ore, Test Report, September 2019. | T108: N28 | V108: N27-1
A109: Freshwater/non-metal/non- plant | B109: N18-2 | C109: 82 | D109: 0.9318181818 | F109: Sphaerium novaezelandiae | G109: Juvenile | H109: 60 d | I109: LC10 | J109: Mortality | K109: 8.6 | L109: Mollusc | M109: Mollusca | N109: Spring water | O109: 20 | P109: Chronic | Q109: 7.8-8.2 | R109: 14 | S109: Hickey CW, Thompson KJ, Martin ML, Albert A, Bell S, Raymond M. 2016. Data report for chronic nitrate toxicity to freshwater species: common bully, sphaeriid bivalve, freshwater crayfish and snail. FWWQ1703. NIWA data report. | T109: N18 | V109: N18-2
A110: Freshwater/non-metal/non- plant | B110: N18-2-2 | C110: 82 | D110: 0.9318181818 | F110: Sphaerium novaezelandiae | G110: Juvenile | H110: 60 d | I110: EC10 | J110: Growth (length) | K110: 46.6 | L110: Mollusc | M110: Mollusca | N110: Spring water | O110: 20 | P110: Chronic | Q110: 7.8-8.2 | R110: 14 | S110: Hickey CW, Thompson KJ, Martin ML, Albert A, Bell S, Raymond M. 2016. Data report for chronic nitrate toxicity to freshwater species: common bully, sphaeriid bivalve, freshwater crayfish and snail. FWWQ1703. NIWA data report. | T110: N18 | V110: N18-2-2
A111: Freshwater/non-metal/non- plant | B111: N14-1 | C111: 68 | D111: 0.7727272727 | F111: Xenopus laevis | G111: Tadpole | H111: 10 d | I111: NOEC | J111: Growth (weight) | K111: 24.8 | L111: Amphibian | M111: Chordata | N111: Freshwater | O111: 22 | P111: Chronic | Q111: 7.0-7.6 | R111: 21-36 | S111: Schuytema, G.S.; Nebeker, A.V. (1999a). Comparative effects of ammonium and nitrate compounds on Pacific treefrog and African clawed frog embryos. Archives of Environmental and Contamination Toxicology 36: 200-206. | T111: N14 | V111: N14-1
A112: Freshwater/non-metal/non- plant | B112: N14-1 | C112: 68 | D112: 0.7727272727 | F112: Xenopus laevis | G112: Tadpole | H112: 10 d | I112: NOEC | J112: Growth (length) | K112: 56.7 | L112: Amphibian | M112: Chordata | N112: Freshwater | O112: 22 | P112: Chronic | Q112: 7.0-7.6 | R112: 21-36 | S112: Schuytema, G.S.; Nebeker, A.V. (1999a). Comparative effects of ammonium and nitrate compounds on Pacific treefrog and African clawed frog embryos. Archives of Environmental and Contamination Toxicology 36: 200-206. | T112: N14 | V112: N14-1
D115: Highlight legend:
E117: No hardness data
E118: Low hardness
E119: Moderate hardness
E120: High hardness

Sheet Instruction
B3: Click here to see "All Result" --> | C3: All Result
E6: Freshwater | J6: Freshwater
B8: Tabs contain questionaries --> | C8: Freshwater/metal/nonplant | E8: Freshwater/non-metal/non-plant | H8: Freshwater/metal/plant | J8: Freshwater/non-metal/plant
B12: Tabs contain score of paper and short answers to questions --> | C12: Freshwater/metal/nonplant Worksheet | E12: Freshwater/non-metal/non-plant Worksheet | H12: Freshwater/metal/plant Worksheet | J12: Freshwater/non-metal/plant/ Worksheet
C15: Marine | G15: Terrestrial | J15: Sediment
B17: Tab contain questionaries --> | C17: Marine or estuarine/non-plant | E17: Marine or estuarine/Plant | H17: Terrestrial Data QA | J17: Sediment Data QA
B21: Tab Contains all scores of paper --> | C21: Marine or estuarine/non-Plant Worksheet | E21: Marine or estuarine/Plant_Worksheet | H21: Terrestrial Quality | J21: Sediment Quality

Sheet Sheet1 (hidden)
A2: =#REF! ->  | B2: =#REF! ->  | C2: =#REF! ->  | D2: =#REF! ->  | E2: =#REF! ->  | F2: =#REF! ->  | G2: =#REF! ->  | H2: =#REF! ->  | I2: =#REF! ->  | J2: =#REF! ->  | K2: =#REF! ->  | L2: =#REF! ->  | M2: =#REF! ->  | N2: =#REF! ->  | O2: =#REF! ->  | P2: =#REF! ->  | Q2: =#REF! ->  | R2: =#REF! ->  | S2: =#REF! ->  | T2: =#REF! ->  | U2: =#REF! ->  | V2: =#REF! ->  | W2: =#REF! ->  | X2: =#REF! ->  | Y2: =#REF! ->  | Z2: =#REF! -> 
A3: =#REF! ->  | B3: =#REF! ->  | C3: =#REF! ->  | D3: =#REF! -> 
A4: =#REF! ->  | B4: =#REF! ->  | C4: =#REF! ->  | D4: =#REF! ->  | E4: =#REF! ->  | F4: =#REF! ->  | G4: =#REF! ->  | H4: =#REF! ->  | I4: =#REF! ->  | J4: =#REF! ->  | K4: =#REF! ->  | L4: =#REF! ->  | M4: =#REF! ->  | N4: =#REF! ->  | O4: =#REF! ->  | P4: =#REF! ->  | Q4: =#REF! ->  | R4: =#REF! ->  | S4: =#REF! ->  | T4: =#REF! ->  | U4: =#REF! ->  | V4: =#REF! ->  | W4: =#REF! ->  | X4: =#REF! ->  | Y4: =#REF! ->  | Z4: =#REF! -> 
A5: Answers | B5: =IF(#REF!=0,"",#REF!) ->  | C5: =IF(#REF!=0,"",#REF!) ->  | D5: =IF(#REF!=0,"",#REF!) ->  | E5: =IF(#REF!=0,"",#REF!) ->  | F5: =IF(#REF!=0,"",#REF!) ->  | G5: =IF(#REF!=0,"",#REF!) ->  | H5: =IF(#REF!=0,"",#REF!) ->  | I5: =IF(#REF!=0,"",#REF!) ->  | J5: =IF(#REF!=0,"",#REF!) ->  | K5: =IF(#REF!=0,"",#REF!) ->  | L5: =IF(#REF!=0,"",#REF!) ->  | M5: =IF(#REF!=0,"",#REF!) ->  | N5: =IF(#REF!=0,"",#REF!) ->  | O5: =IF(#REF!=0,"",#REF!) ->  | P5: =IF(#REF!=0,"",#REF!) ->  | Q5: =IF(#REF!=0,"",#REF!) ->  | R5: =IF(#REF!=0,"",#REF!) ->  | S5: =IF(#REF!=0,"",#REF!) ->  | T5: =IF(#REF!=0,"",#REF!) ->  | U5: =IF(#REF!=0,"",#REF!) ->  | V5: =IF(#REF!=0,"",#REF!) ->  | W5: =IF(#REF!=0,"",#REF!) ->  | X5: =IF(#REF!=0,"",#REF!) -> 
A6: =#REF! ->  | B6: =#REF! ->  | C6: =#REF! ->  | D6: =#REF! ->  | E6: =#REF! ->  | F6: =#REF! ->  | G6: =#REF! ->  | H6: =#REF! -> 
A7: =#REF! ->  | B7: =#REF! ->  | C7: =#REF! ->  | D7: =#REF! ->  | E7: =#REF! ->  | F7: =IF(#REF!=0,"",#REF!) ->  | G7: =IF(#REF!=0,"",#REF!) ->  | H7: =IF(#REF!=0,"",#REF!) -> 
A11: =#REF! ->  | B11: =#REF! ->  | C11: =#REF! ->  | D11: =#REF! ->  | E11: =#REF! ->  | F11: =#REF! ->  | G11: =#REF! ->  | H11: =#REF! ->  | I11: =#REF! ->  | J11: =#REF! ->  | K11: =#REF! ->  | L11: =#REF! ->  | M11: =#REF! ->  | N11: =#REF! ->  | O11: =#REF! ->  | P11: =#REF! ->  | Q11: =#REF! ->  | R11: =#REF! ->  | S11: =#REF! ->  | T11: =#REF! ->  | U11: =#REF! ->  | V11: =#REF! ->  | W11: =#REF! ->  | X11: =#REF! ->  | Y11: =#REF! ->  | Z11: =#REF! ->  | AA11: =#REF! -> 
A12: =#REF! ->  | B12: =#REF! ->  | C12: =#REF! ->  | D12: =#REF! -> 
A13: =#REF! ->  | B13: =#REF! ->  | C13: =#REF! ->  | D13: =#REF! ->  | E13: =#REF! ->  | F13: =#REF! ->  | G13: =#REF! ->  | H13: =#REF! ->  | I13: =#REF! ->  | J13: =#REF! ->  | K13: =#REF! ->  | L13: =#REF! ->  | M13: =#REF! ->  | N13: =#REF! ->  | O13: =#REF! ->  | P13: =#REF! ->  | Q13: =#REF! ->  | R13: =#REF! ->  | S13: =#REF! ->  | T13: =#REF! ->  | U13: =#REF! ->  | V13: =#REF! ->  | W13: =#REF! ->  | X13: =#REF! ->  | Y13: =#REF! ->  | Z13: =#REF! ->  | AA13: =#REF! -> 
A14: =#REF! ->  | B14: =IF(#REF!=0,"",#REF!) ->  | C14: =IF(#REF!=0,"",#REF!) ->  | D14: =IF(#REF!=0,"",#REF!) ->  | E14: =IF(#REF!=0,"",#REF!) ->  | G14: =IF(#REF!=0,"",#REF!) ->  | H14: =IF(#REF!=0,"",#REF!) ->  | I14: =IF(#REF!=0,"",#REF!) ->  | J14: =IF(#REF!=0,"",#REF!) ->  | K14: =IF(#REF!=0,"",#REF!) ->  | L14: =IF(#REF!=0,"",#REF!) ->  | M14: =IF(#REF!=0,"",#REF!) ->  | N14: =IF(#REF!=0,"",#REF!) ->  | O14: =IF(#REF!=0,"",#REF!) ->  | P14: =IF(#REF!=0,"",#REF!) ->  | Q14: =IF(#REF!=0,"",#REF!) ->  | R14: =IF(#REF!=0,"",#REF!) ->  | S14: =IF(#REF!=0,"",#REF!) ->  | T14: =IF(#REF!=0,"",#REF!) ->  | U14: =IF(#REF!=0,"",#REF!) ->  | V14: =IF(#REF!=0,"",#REF!) ->  | W14: =IF(#REF!=0,"",#REF!) ->  | X14: =IF(#REF!=0,"",#REF!) ->  | Y14: =IF(#REF!=0,"",#REF!) -> 
A15: =#REF! ->  | B15: =#REF! ->  | C15: =#REF! ->  | D15: =#REF! ->  | E15: =#REF! ->  | F15: =#REF! ->  | G15: =#REF! ->  | H15: =#REF! -> 
A16: =#REF! ->  | B16: =#REF! ->  | C16: =#REF! ->  | D16: =#REF! ->  | E16: =#REF! ->  | F16: =IF(#REF!=0,"",#REF!) ->  | G16: =IF(#REF!=0,"",#REF!) ->  | H16: =IF(#REF!=0,"",#REF!) -> 
A20: =#REF! ->  | B20: =#REF! ->  | C20: =#REF! ->  | D20: =#REF! ->  | E20: =#REF! ->  | F20: =#REF! ->  | G20: =#REF! ->  | H20: =#REF! ->  | I20: =#REF! ->  | J20: =#REF! ->  | K20: =#REF! ->  | L20: =#REF! ->  | M20: =#REF! ->  | N20: =#REF! ->  | O20: =#REF! ->  | P20: =#REF! ->  | Q20: =#REF! ->  | R20: =#REF! ->  | S20: =#REF! ->  | T20: =#REF! ->  | U20: =#REF! ->  | V20: =#REF! ->  | W20: =#REF! ->  | X20: =#REF! ->  | Y20: =#REF! ->  | Z20: =#REF! -> 
A21: =#REF! ->  | B21: =#REF! ->  | C21: =#REF! ->  | D21: =#REF! -> 
A22: =#REF! ->  | B22: =#REF! ->  | C22: =#REF! ->  | D22: =#REF! ->  | E22: =#REF! ->  | F22: =#REF! ->  | G22: =#REF! ->  | H22: =#REF! ->  | I22: =#REF! ->  | J22: =#REF! ->  | K22: =#REF! ->  | L22: =#REF! ->  | M22: =#REF! ->  | N22: =#REF! ->  | O22: =#REF! ->  | P22: =#REF! ->  | Q22: =#REF! ->  | R22: =#REF! ->  | S22: =#REF! ->  | T22: =#REF! ->  | U22: =#REF! ->  | V22: =#REF! ->  | W22: =#REF! ->  | X22: =#REF! ->  | Y22: =#REF! ->  | Z22: =#REF! -> 
A23: =#REF! ->  | B23: =IF(#REF!=0,"",#REF!) ->  | C23: =IF(#REF!=0,"",#REF!) ->  | D23: =IF(#REF!=0,"",#REF!) ->  | E23: =IF(#REF!=0,"",#REF!) ->  | F23: =IF(#REF!=0,"",#REF!) ->  | G23: =IF(#REF!=0,"",#REF!) ->  | H23: =IF(#REF!=0,"",#REF!) ->  | I23: =IF(#REF!=0,"",#REF!) ->  | J23: =IF(#REF!=0,"",#REF!) ->  | K23: =IF(#REF!=0,"",#REF!) ->  | L23: =IF(#REF!=0,"",#REF!) ->  | M23: =IF(#REF!=0,"",#REF!) ->  | N23: =IF(#REF!=0,"",#REF!) ->  | O23: =IF(#REF!=0,"",#REF!) ->  | P23: =IF(#REF!=0,"",#REF!) ->  | Q23: =IF(#REF!=0,"",#REF!) ->  | R23: =IF(#REF!=0,"",#REF!) ->  | S23: =IF(#REF!=0,"",#REF!) ->  | T23: =IF(#REF!=0,"",#REF!) ->  | U23: =IF(#REF!=0,"",#REF!) ->  | V23: =IF(#REF!=0,"",#REF!) ->  | W23: =IF(#REF!=0,"",#REF!) ->  | X23: =IF(#REF!=0,"",#REF!) -> 
A24: =#REF! ->  | B24: =#REF! ->  | C24: =#REF! ->  | D24: =#REF! ->  | E24: =#REF! ->  | F24: =#REF! ->  | G24: =#REF! ->  | H24: =#REF! -> 
A25: =#REF! ->  | B25: =#REF! ->  | C25: =#REF! ->  | D25: =#REF! ->  | E25: =#REF! ->  | F25: =IF(#REF!=0,"",#REF!) ->  | G25: =IF(#REF!=0,"",#REF!) ->  | H25: =IF(#REF!=0,"",#REF!) -> 
A29: =#REF! ->  | B29: =#REF! ->  | C29: =#REF! ->  | D29: =#REF! ->  | E29: =#REF! ->  | F29: =#REF! ->  | G29: =#REF! ->  | H29: =#REF! ->  | I29: =#REF! ->  | J29: =#REF! ->  | K29: =#REF! ->  | L29: =#REF! ->  | M29: =#REF! ->  | N29: =#REF! ->  | O29: =#REF! ->  | P29: =#REF! ->  | Q29: =#REF! ->  | R29: =#REF! ->  | S29: =#REF! ->  | T29: =#REF! ->  | U29: =#REF! ->  | V29: =#REF! ->  | W29: =#REF! ->  | X29: =#REF! ->  | Y29: =#REF! ->  | Z29: =#REF! ->  | AA29: =#REF! ->  | AB29: =#REF! ->  | AC29: =#REF! -> 
A30: =#REF! ->  | B30: =#REF! ->  | C30: =#REF! ->  | D30: =#REF! -> 
A31: =#REF! ->  | B31: =#REF! ->  | C31: =#REF! ->  | D31: =#REF! ->  | E31: =#REF! ->  | F31: =#REF! ->  | G31: =#REF! ->  | H31: =#REF! ->  | I31: =#REF! ->  | J31: =#REF! ->  | K31: =#REF! ->  | L31: =#REF! ->  | M31: =#REF! ->  | N31: =#REF! ->  | O31: =#REF! ->  | P31: =#REF! ->  | Q31: =#REF! ->  | R31: =#REF! ->  | S31: =#REF! ->  | T31: =#REF! ->  | U31: =#REF! ->  | V31: =#REF! ->  | W31: =#REF! ->  | X31: =#REF! ->  | Y31: =#REF! ->  | Z31: =#REF! ->  | AA31: =#REF! ->  | AB31: =#REF! ->  | AC31: =#REF! -> 
A32: =#REF! ->  | B32: =IF(#REF!="","",#REF!) ->  | C32: =IF(#REF!="","",#REF!) ->  | D32: =IF(#REF!="","",#REF!) ->  | E32: =IF(#REF!="","",#REF!) ->  | F32: =IF(#REF!="","",#REF!) ->  | G32: =IF(#REF!="","",#REF!) ->  | H32: =IF(#REF!="","",#REF!) ->  | I32: =IF(#REF!="","",#REF!) ->  | J32: =IF(#REF!="","",#REF!) ->  | K32: =IF(#REF!="","",#REF!) ->  | L32: =IF(#REF!="","",#REF!) ->  | M32: =IF(#REF!="","",#REF!) ->  | N32: =IF(#REF!="","",#REF!) ->  | O32: =IF(#REF!="","",#REF!) ->  | P32: =IF(#REF!="","",#REF!) ->  | Q32: =IF(#REF!="","",#REF!) ->  | R32: =IF(#REF!="","",#REF!) ->  | S32: =IF(#REF!="","",#REF!) ->  | T32: =IF(#REF!="","",#REF!) ->  | U32: =IF(#REF!="","",#REF!) ->  | V32: =IF(#REF!="","",#REF!) ->  | W32: =IF(#REF!="","",#REF!) ->  | X32: =IF(#REF!="","",#REF!) ->  | Y32: =IF(#REF!="","",#REF!) ->  | Z32: =IF(#REF!="","",#REF!) ->  | AA32: =IF(#REF!="","",#REF!) -> 
A33: =#REF! ->  | B33: =#REF! ->  | C33: =#REF! ->  | D33: =#REF! ->  | E33: =#REF! ->  | F33: =#REF! ->  | G33: =#REF! ->  | H33: =#REF! -> 
A34: =#REF! ->  | B34: =#REF! ->  | C34: =#REF! ->  | D34: =#REF! ->  | E34: =#REF! ->  | F34: =IF(#REF!="","",#REF!) ->  | G34: =IF(#REF!="","",#REF!) ->  | H34: =IF(#REF!="","",#REF!) -> 
A35: ='FW nonmetal plant'!B11 -> No. | B35: ='FW nonmetal plant'!B13 -> 1 | C35: ='FW nonmetal plant'!B16 -> 2 | D35: ='FW nonmetal plant'!B19 -> 3 | E35: ='FW nonmetal plant'!B21 -> 4 | F35: ='FW nonmetal plant'!B23 -> 5 | G35: ='FW nonmetal plant'!B26 -> 6 | H35: ='FW nonmetal plant'!B29 -> 7 | I35: ='FW nonmetal plant'!B32 -> 8 | J35: ='FW nonmetal plant'!B35 -> 9 | K35: ='FW nonmetal plant'!B39 -> 10 | L35: ='FW nonmetal plant'!B42 -> 11 | M35: ='FW nonmetal plant'!B45 -> 12 | N35: ='FW nonmetal plant'!B48 -> 13 | O35: ='FW nonmetal plant'!B51 -> 14 | P35: ='FW nonmetal plant'!B53 -> 15 | Q35: ='FW nonmetal plant'!B58 -> 16.1 | R35: ='FW nonmetal plant'!B62 -> 17 | S35: ='FW nonmetal plant'!B65 -> 18 | T35: ='FW nonmetal plant'!C70 -> Total score | U35: ='FW nonmetal plant'!C72 -> Quality Score
A36: ='FW nonmetal plant'!C2 -> Category | B36: ='FW nonmetal plant'!E2 -> Freshwater/non-metal/plant | C36: ='FW nonmetal plant'!C3 -> Paper and data unique identifier(eg. 1-1,10-150) | D36: ='FW nonmetal plant'!E3 -> N-25-1
A37: ='FW nonmetal plant'!G11 -> Scores | B37: ='FW nonmetal plant'!G12 -> 10 | C37: ='FW nonmetal plant'!G15 -> 10 | D37: ='FW nonmetal plant'!G18 -> 5 | E37: ='FW nonmetal plant'!G21 -> 5 | F37: ='FW nonmetal plant'!G23 -> 5 | G37: ='FW nonmetal plant'!G26 -> 5 | H37: ='FW nonmetal plant'!G29 -> 5 | I37: ='FW nonmetal plant'!G32 -> 5 | J37: ='FW nonmetal plant'!G35 -> 5 | K37: ='FW nonmetal plant'!G38 -> 4 | L37: ='FW nonmetal plant'!G41 -> 2 | M37: ='FW nonmetal plant'!G44 -> 0 | N37: ='FW nonmetal plant'!G47 -> 4 | O37: ='FW nonmetal plant'!G50 -> 4 | P37: ='FW nonmetal plant'!G53 -> 4 | Q37: ='FW nonmetal plant'!G57 -> 3 | R37: ='FW nonmetal plant'!G61 -> 3 | S37: ='FW nonmetal plant'!G64 -> 3 | T37: ='FW nonmetal plant'!G70 -> 82 | U37: ='FW nonmetal plant'!G72 -> 0.9318181818 | V37: ='FW nonmetal plant'!H72 -> 
A38: ='FW nonmetal plant'!H11 -> Answers | B38: =IF('FW nonmetal plant'!H12="","",'FW nonmetal plant'!H12) ->  | C38: =IF('FW nonmetal plant'!H15="","",'FW nonmetal plant'!H15) ->  | D38: =IF('FW nonmetal plant'!H18="","",'FW nonmetal plant'!H18) ->  | E38: =IF('FW nonmetal plant'!H21="","",'FW nonmetal plant'!H21) ->  | F38: =IF('FW nonmetal plant'!H23="","",'FW nonmetal plant'!H23) ->  | G38: =IF('FW nonmetal plant'!H26="","",'FW nonmetal plant'!H26) ->  | H38: =IF('FW nonmetal plant'!H29="","",'FW nonmetal plant'!H29) ->  | I38: =IF('FW nonmetal plant'!H32="","",'FW nonmetal plant'!H32) ->  | J38: =IF('FW nonmetal plant'!H35="","",'FW nonmetal plant'!H35) ->  | K38: =IF('FW nonmetal plant'!H38="","",'FW nonmetal plant'!H38) ->  | L38: =IF('FW nonmetal plant'!H41="","",'FW nonmetal plant'!H41) ->  | M38: =IF('FW nonmetal plant'!H44="","",'FW nonmetal plant'!H44) ->  | N38: =IF('FW nonmetal plant'!H47="","",'FW nonmetal plant'!H47) ->  | O38: =IF('FW nonmetal plant'!H53="","",'FW nonmetal plant'!H53) ->  | P38: =IF('FW nonmetal plant'!H53="","",'FW nonmetal plant'!H53) ->  | Q38: =IF('FW nonmetal plant'!H57="","",'FW nonmetal plant'!H57) ->  | R38: =IF('FW nonmetal plant'!H61="","",'FW nonmetal plant'!H61) ->  | S38: =IF('FW nonmetal plant'!H64="","",'FW nonmetal plant'!H64) -> 
A39: ='FW nonmetal plant'!G3 -> Species (Scientific name) | B39: ='FW nonmetal plant'!G4 -> Lifestage | C39: ='FW nonmetal plant'!G5 -> Exposure duration | D39: ='FW nonmetal plant'!G6 -> Measure of toxicity | E39: ='FW nonmetal plant'!G7 -> Toxicity endpoint | F39: ='FW nonmetal plant'!G8 -> Toxicity value | G39: ='FW nonmetal plant'!J2 -> Taxonomic group | H39: ='FW nonmetal plant'!J3 -> Phylum | I39: ='FW nonmetal plant'!J4 -> Class | J39: ='FW nonmetal plant'!J5 -> Media | K39: ='FW nonmetal plant'!J6 -> Temperature | L39: ='FW nonmetal plant'!J7 -> Acute Or Chronic | M39: ='FW nonmetal plant'!J8 -> PH | N39: ='FW nonmetal plant'!J9 -> Salinity/Conductivity | O39: ='FW nonmetal plant'!C4 -> Citation | P39: ='FW nonmetal plant'!G2 -> Citation No.
A40: ='FW nonmetal plant'!Q3 -> Hyalella azteca | B40: ='FW nonmetal plant'!T3 -> Juveniles | C40: ='FW nonmetal plant'!W3 -> 42 d | D40: ='FW nonmetal plant'!Z3 -> EC20 | E40: ='FW nonmetal plant'!AC3 -> Mortality, growth, reproduction | F40: =IF('FW nonmetal plant'!H8="","",'FW nonmetal plant'!H8) -> 56.7 | G40: ='FW nonmetal plant'!AF3 -> Invertebrate | H40: ='FW nonmetal plant'!AI3 -> Arthropoda | I40: ='FW nonmetal plant'!AO3 -> Freshwater | J40: ='FW nonmetal plant'!AR3 -> 22.9 C | K40: ='FW nonmetal plant'!AR3 -> 22.9 C | L40: ='FW nonmetal plant'!AU3 -> Chronic | M40: ='FW nonmetal plant'!AX3 -> 8 | N40: ='FW nonmetal plant'!BA3 -> N.A. | O40: =IF('FW nonmetal plant'!E4="","",'FW nonmetal plant'!E4) -> Wang N, Dorman RA, Ivey CD, Soucek DJ, Dickinson A, Kunz BK, Steevens JA, Hammer EJ and Bauer CR. (2020). Acute and chronic toxicity of sodium nitrate and sodium sulfate to several freshwater organisms in water-only exposures. Environmental Toxicology and Chemistry, 39, 1071-1085. | P40: =IF('FW nonmetal plant'!H2="","",'FW nonmetal plant'!H2) -> N
A41: =#REF! ->  | B41: =#REF! ->  | C41: =#REF! ->  | D41: =#REF! ->  | E41: =#REF! ->  | F41: =#REF! ->  | G41: =#REF! ->  | H41: =#REF! ->  | I41: =#REF! ->  | J41: =#REF! ->  | K41: =#REF! ->  | L41: =#REF! ->  | M41: =#REF! ->  | N41: =#REF! ->  | O41: =#REF! ->  | P41: =#REF! ->  | Q41: =#REF! ->  | R41: =#REF! ->  | S41: =#REF! ->  | T41: =#REF! ->  | U41: =#REF! ->  | V41: =#REF! ->  | W41: =#REF! ->  | X41: =#REF! -> 
A42: =#REF! ->  | B42: =#REF! ->  | C42: =#REF! ->  | D42: =#REF! -> 
A43: =#REF! ->  | B43: =#REF! ->  | C43: =#REF! ->  | D43: =#REF! ->  | E43: =#REF! ->  | F43: =#REF! ->  | G43: =#REF! ->  | H43: =#REF! ->  | I43: =#REF! ->  | J43: =#REF! ->  | K43: =#REF! ->  | L43: =#REF! ->  | M43: =#REF! ->  | N43: =#REF! ->  | O43: =#REF! ->  | P43: =#REF! ->  | Q43: =#REF! ->  | R43: =#REF! ->  | S43: =#REF! ->  | T43: =#REF! ->  | U43: =#REF! ->  | V43: =#REF! ->  | W43: =#REF! ->  | X43: =#REF! ->  | Y43: =#REF! -> 
A44: =#REF! ->  | B44: =IF(#REF!="","",#REF!) ->  | C44: =IF(#REF!="","",#REF!) ->  | D44: =IF(#REF!="","",#REF!) ->  | E44: =IF(#REF!="","",#REF!) ->  | F44: =IF(#REF!="","",#REF!) ->  | G44: =IF(#REF!="","",#REF!) ->  | H44: =IF(#REF!="","",#REF!) ->  | I44: =IF(#REF!="","",#REF!) ->  | J44: =IF(#REF!="","",#REF!) ->  | K44: =IF(#REF!="","",#REF!) ->  | L44: =IF(#REF!="","",#REF!) ->  | M44: =IF(#REF!="","",#REF!) ->  | N44: =IF(#REF!="","",#REF!) ->  | O44: =IF(#REF!="","",#REF!) ->  | P44: =IF(#REF!="","",#REF!) ->  | Q44: =IF(#REF!="","",#REF!) ->  | R44: =IF(#REF!="","",#REF!) ->  | S44: =IF(#REF!="","",#REF!) ->  | T44: =IF(#REF!="","",#REF!) ->  | U44: =IF(#REF!="","",#REF!) ->  | V44: =IF(#REF!="","",#REF!) -> 
A45: =#REF! ->  | B45: =#REF! ->  | C45: =#REF! ->  | D45: =#REF! ->  | E45: =#REF! ->  | F45: =#REF! ->  | G45: =#REF! ->  | H45: =#REF! ->  | I45: =#REF! ->  | J45: =#REF! ->  | K45: =#REF! ->  | L45: =#REF! ->  | M45: =#REF! ->  | N45: =#REF! ->  | O45: =#REF! ->  | P45: =#REF! -> 
A46: =#REF! ->  | B46: =#REF! ->  | C46: =#REF! ->  | D46: =#REF! ->  | E46: =#REF! ->  | F46: =IF(#REF!="","",#REF!) ->  | G46: =#REF! ->  | H46: =#REF! ->  | I46: =#REF! ->  | J46: =#REF! ->  | K46: =#REF! ->  | L46: =#REF! ->  | M46: =#REF! ->  | N46: =#REF! ->  | O46: =IF(#REF!="","",#REF!) ->  | P46: =IF(#REF!="","",#REF!) -> 
A47: =#REF! ->  | B47: =#REF! ->  | C47: =#REF! ->  | D47: =#REF! ->  | E47: =#REF! ->  | F47: =#REF! ->  | G47: =#REF! ->  | H47: =#REF! ->  | I47: =#REF! ->  | J47: =#REF! ->  | K47: =#REF! ->  | L47: =#REF! ->  | M47: =#REF! ->  | N47: =#REF! ->  | O47: =#REF! ->  | P47: =#REF! ->  | Q47: =#REF! ->  | R47: =#REF! ->  | S47: =#REF! ->  | T47: =#REF! ->  | U47: =#REF! ->  | V47: =#REF! -> 
A48: =#REF! ->  | B48: =#REF! ->  | C48: =#REF! ->  | D48: =#REF! -> 
A49: =#REF! ->  | B49: =#REF! ->  | C49: =#REF! ->  | D49: =#REF! ->  | E49: =#REF! ->  | F49: =#REF! ->  | G49: =#REF! ->  | H49: =#REF! ->  | I49: =#REF! ->  | J49: =#REF! ->  | K49: =#REF! ->  | L49: =#REF! ->  | M49: =#REF! ->  | N49: =#REF! ->  | O49: =#REF! ->  | P49: =#REF! ->  | Q49: =#REF! ->  | R49: =#REF! ->  | S49: =#REF! ->  | T49: =#REF! ->  | U49: =#REF! ->  | V49: =#REF! ->  | X49: =#REF! -> 
A50: =#REF! ->  | B50: =IF(#REF!="","",#REF!) ->  | C50: =IF(#REF!="","",#REF!) ->  | D50: =IF(#REF!="","",#REF!) ->  | E50: =IF(#REF!="","",#REF!) ->  | F50: =IF(#REF!="","",#REF!) ->  | G50: =IF(#REF!="","",#REF!) ->  | H50: =IF(#REF!="","",#REF!) ->  | I50: =IF(#REF!="","",#REF!) ->  | J50: =IF(#REF!="","",#REF!) ->  | K50: =IF(#REF!="","",#REF!) ->  | L50: =IF(#REF!="","",#REF!) ->  | M50: =IF(#REF!="","",#REF!) ->  | N50: =IF(#REF!="","",#REF!) ->  | O50: =IF(#REF!="","",#REF!) ->  | P50: =IF(#REF!="","",#REF!) ->  | Q50: =IF(#REF!="","",#REF!) ->  | R50: =IF(#REF!="","",#REF!) ->  | S50: =IF(#REF!="","",#REF!) ->  | T50: =IF(#REF!="","",#REF!) -> 
A51: =#REF! ->  | B51: =#REF! ->  | C51: =#REF! ->  | D51: =#REF! ->  | E51: =#REF! ->  | F51: =#REF! ->  | G51: =#REF! ->  | H51: =#REF! ->  | I51: =#REF! ->  | J51: =#REF! ->  | K51: =#REF! ->  | L51: =#REF! ->  | M51: =#REF! ->  | N51: =#REF! ->  | O51: =#REF! ->  | P51: =#REF! -> 
A52: =#REF! ->  | B52: =#REF! ->  | C52: =#REF! ->  | D52: =#REF! ->  | E52: =#REF! ->  | F52: =IF(#REF!="","",#REF!) ->  | G52: =#REF! ->  | H52: =#REF! ->  | I52: =#REF! ->  | J52: =#REF! ->  | K52: =#REF! ->  | L52: =#REF! ->  | M52: =#REF! ->  | N52: =#REF! ->  | O52: =IF(#REF!="","",#REF!) ->  | P52: =IF(#REF!="","",#REF!) -> 
A53: =#REF! ->  | B53: =#REF! ->  | C53: =#REF! ->  | D53: =#REF! ->  | E53: =#REF! ->  | F53: =#REF! ->  | G53: =#REF! ->  | H53: =#REF! ->  | I53: =#REF! ->  | J53: =#REF! ->  | K53: =#REF! ->  | L53: =#REF! ->  | M53: =#REF! ->  | N53: =#REF! ->  | O53: =#REF! ->  | P53: =#REF! ->  | Q53: =#REF! ->  | R53: =#REF! ->  | S53: =#REF! ->  | T53: =#REF! ->  | U53: =#REF! ->  | V53: =#REF! ->  | W53: =#REF! ->  | X53: =#REF! ->  | Y53: =#REF! -> 
A54: =#REF! ->  | B54: =#REF! ->  | C54: =#REF! ->  | D54: =#REF! -> 
A55: =#REF! ->  | B55: =#REF! ->  | C55: =#REF! ->  | D55: =#REF! ->  | E55: =#REF! ->  | F55: =#REF! ->  | G55: =#REF! ->  | H55: =#REF! ->  | I55: =#REF! ->  | J55: =#REF! ->  | K55: =#REF! ->  | L55: =#REF! ->  | M55: =#REF! ->  | N55: =#REF! ->  | O55: =#REF! ->  | P55: =#REF! ->  | Q55: =#REF! ->  | R55: =#REF! ->  | S55: =#REF! ->  | T55: =#REF! ->  | U55: =#REF! ->  | V55: =#REF! ->  | W55: =#REF! ->  | X55: =#REF! ->  | Y55: =#REF! ->  | Z55: =#REF! -> 
A56: =#REF! ->  | B56: =IF(#REF!="","",#REF!) ->  | C56: =IF(#REF!="","",#REF!) ->  | D56: =IF(#REF!="","",#REF!) ->  | E56: =IF(#REF!="","",#REF!) ->  | F56: =IF(#REF!="","",#REF!) ->  | G56: =IF(#REF!="","",#REF!) ->  | H56: =IF(#REF!="","",#REF!) ->  | I56: =IF(#REF!="","",#REF!) ->  | J56: =IF(#REF!="","",#REF!) ->  | K56: =IF(#REF!="","",#REF!) ->  | L56: =IF(#REF!="","",#REF!) ->  | M56: =IF(#REF!="","",#REF!) ->  | N56: =IF(#REF!="","",#REF!) ->  | O56: =IF(#REF!="","",#REF!) ->  | P56: =IF(#REF!="","",#REF!) ->  | Q56: =IF(#REF!="","",#REF!) ->  | R56: =IF(#REF!="","",#REF!) ->  | S56: =IF(#REF!="","",#REF!) ->  | T56: =IF(#REF!="","",#REF!) ->  | U56: =IF(#REF!="","",#REF!) ->  | V56: =IF(#REF!="","",#REF!) ->  | W56: =IF(#REF!="","",#REF!) -> 
A57: =#REF! ->  | B57: =#REF! ->  | C57: =#REF! ->  | D57: =#REF! ->  | E57: =#REF! ->  | F57: =#REF! ->  | G57: =#REF! ->  | H57: =#REF! ->  | I57: =#REF! ->  | J57: =#REF! ->  | K57: =#REF! ->  | L57: =#REF! ->  | M57: =#REF! ->  | N57: =#REF! ->  | O57: =#REF! ->  | P57: =#REF! -> 
A58: =#REF! ->  | B58: =#REF! ->  | C58: =#REF! ->  | D58: =#REF! ->  | E58: =#REF! ->  | F58: =IF(#REF!="","",#REF!) ->  | G58: =#REF! ->  | H58: =#REF! ->  | I58: =#REF! ->  | J58: =#REF! ->  | K58: =#REF! ->  | L58: =#REF! ->  | M58: =#REF! ->  | N58: =#REF! ->  | O58: =IF(#REF!="","",#REF!) ->  | P58: =IF(#REF!="","",#REF!) -> 
A59: =#REF! ->  | B59: =#REF! ->  | C59: =#REF! ->  | D59: =#REF! ->  | E59: =#REF! ->  | F59: =#REF! ->  | G59: =#REF! ->  | H59: =#REF! ->  | I59: =#REF! ->  | J59: =#REF! ->  | K59: =#REF! ->  | L59: =#REF! ->  | M59: =#REF! ->  | N59: =#REF! ->  | O59: =#REF! ->  | P59: =#REF! ->  | Q59: =#REF! ->  | R59: =#REF! ->  | S59: =#REF! ->  | T59: =#REF! ->  | U59: =#REF! ->  | V59: =#REF! ->  | W59: =#REF! -> 
A60: =#REF! ->  | B60: =#REF! ->  | C60: =#REF! ->  | D60: =#REF! -> 
A61: =#REF! ->  | B61: =#REF! ->  | C61: =#REF! ->  | D61: =#REF! ->  | E61: =#REF! ->  | F61: =#REF! ->  | G61: =#REF! ->  | H61: =#REF! ->  | I61: =#REF! ->  | J61: =#REF! ->  | K61: =#REF! ->  | L61: =#REF! ->  | M61: =#REF! ->  | N61: =#REF! ->  | O61: =#REF! ->  | P61: =#REF! ->  | Q61: =#REF! ->  | R61: =#REF! ->  | S61: =#REF! ->  | T61: =#REF! ->  | U61: =#REF! ->  | V61: =#REF! ->  | W61: =#REF! ->  | X61: =#REF! -> 
A62: =#REF! ->  | B62: =IF(#REF!="","",#REF!) ->  | C62: =IF(#REF!="","",#REF!) ->  | D62: =IF(#REF!="","",#REF!) ->  | E62: =IF(#REF!="","",#REF!) ->  | F62: =IF(#REF!="","",#REF!) ->  | G62: =IF(#REF!="","",#REF!) ->  | H62: =IF(#REF!="","",#REF!) ->  | I62: =IF(#REF!="","",#REF!) ->  | J62: =IF(#REF!="","",#REF!) ->  | K62: =IF(#REF!="","",#REF!) ->  | L62: =IF(#REF!="","",#REF!) ->  | M62: =IF(#REF!="","",#REF!) ->  | N62: =IF(#REF!="","",#REF!) ->  | O62: =IF(#REF!="","",#REF!) ->  | P62: =IF(#REF!="","",#REF!) ->  | Q62: =IF(#REF!="","",#REF!) ->  | R62: =IF(#REF!="","",#REF!) ->  | S62: =IF(#REF!="","",#REF!) ->  | T62: =IF(#REF!="","",#REF!) ->  | U62: =IF(#REF!="","",#REF!) -> 
A63: =#REF! ->  | B63: =#REF! ->  | C63: =#REF! ->  | D63: =#REF! ->  | E63: =#REF! ->  | F63: =#REF! ->  | G63: =#REF! ->  | H63: =#REF! ->  | I63: =#REF! ->  | J63: =#REF! ->  | K63: =#REF! ->  | L63: =#REF! ->  | M63: =#REF! ->  | N63: =#REF! ->  | O63: =#REF! ->  | P63: =#REF! -> 
A64: =#REF! ->  | B64: =#REF! ->  | C64: =#REF! ->  | D64: =#REF! ->  | E64: =#REF! ->  | F64: =IF(#REF!="","",#REF!) ->  | G64: =#REF! ->  | H64: =#REF! ->  | I64: =#REF! ->  | J64: =#REF! ->  | K64: =#REF! ->  | L64: =#REF! ->  | M64: =#REF! ->  | N64: =#REF! ->  | O64: =IF(#REF!="", "",#REF!) ->  | P64: =IF(#REF!="", "",#REF!) -> 
A65: =#REF! ->  | B65: =#REF! ->  | C65: =#REF! ->  | D65: =#REF! ->  | E65: =#REF! ->  | F65: =#REF! ->  | G65: =#REF! ->  | H65: =#REF! ->  | I65: =#REF! ->  | J65: =#REF! ->  | K65: =#REF! ->  | L65: =#REF! ->  | M65: =#REF! ->  | N65: =#REF! ->  | O65: =#REF! ->  | P65: =#REF! ->  | Q65: =#REF! ->  | R65: =#REF! ->  | S65: =#REF! ->  | T65: =#REF! ->  | U65: =#REF! ->  | V65: =#REF! -> 
A66: =#REF! ->  | B66: =#REF! ->  | C66: =#REF! ->  | D66: =#REF! -> 
A67: =#REF! ->  | B67: =#REF! ->  | C67: =#REF! ->  | D67: =#REF! ->  | E67: =#REF! ->  | F67: =#REF! ->  | G67: =#REF! ->  | H67: =#REF! ->  | I67: =#REF! ->  | J67: =#REF! ->  | K67: =#REF! ->  | L67: =#REF! ->  | M67: =#REF! ->  | N67: =#REF! ->  | O67: =#REF! ->  | P67: =#REF! ->  | Q67: =#REF! ->  | R67: =#REF! ->  | S67: =#REF! ->  | T67: =#REF! ->  | U67: =#REF! ->  | V67: =#REF! ->  | W67: =#REF! -> 
A68: =#REF! ->  | B68: =IF(#REF!="","",#REF!) ->  | C68: =IF(#REF!="","",#REF!) ->  | D68: =IF(#REF!="","",#REF!) ->  | E68: =IF(#REF!="","",#REF!) ->  | F68: =IF(#REF!="","",#REF!) ->  | G68: =IF(#REF!="","",#REF!) ->  | H68: =IF(#REF!="","",#REF!) ->  | I68: =IF(#REF!="","",#REF!) ->  | J68: =IF(#REF!="","",#REF!) ->  | K68: =IF(#REF!="","",#REF!) ->  | L68: =IF(#REF!="","",#REF!) ->  | M68: =IF(#REF!="","",#REF!) ->  | N68: =IF(#REF!="","",#REF!) ->  | O68: =IF(#REF!="","",#REF!) ->  | P68: =IF(#REF!="","",#REF!) ->  | Q68: =IF(#REF!="","",#REF!) ->  | R68: =IF(#REF!="","",#REF!) ->  | S68: =IF(#REF!="","",#REF!) ->  | T68: =IF(#REF!="","",#REF!) -> 
A69: =#REF! ->  | B69: =#REF! ->  | C69: =#REF! ->  | D69: =#REF! ->  | E69: =#REF! ->  | F69: =#REF! ->  | G69: =#REF! ->  | H69: =#REF! ->  | I69: =#REF! ->  | J69: =#REF! ->  | K69: =#REF! ->  | L69: =#REF! ->  | M69: =#REF! ->  | N69: =#REF! ->  | O69: =#REF! ->  | P69: =#REF! -> 
A70: =#REF! ->  | B70: =#REF! ->  | C70: =#REF! ->  | D70: =#REF! ->  | E70: =#REF! ->  | F70: =IF(#REF!="","",#REF!) ->  | G70: =#REF! ->  | H70: =#REF! ->  | I70: =#REF! ->  | J70: =#REF! ->  | K70: =#REF! ->  | L70: =#REF! ->  | M70: =#REF! ->  | N70: =#REF! ->  | O70: =IF(#REF!="","",#REF!) ->  | P70: =IF(#REF!="","",#REF!) -> 

Sheet FW nonmetal plant
B1: 1 | C1: Fill in the blank cells below, based on information provided in the paper being assessed. You can either pick an option from the dropdown list or add the appropriate detail using the 'Add to list' button. | O1: * All the text in RED are used for drop down list ,make changes with caution.
C2: Category | D2: =IF(AF3="",0,1) -> 1 | E2: Freshwater/non-metal/plant | F2: =IF(E3="",0,1) -> 1 | G2: Citation No. | H2: =IF(ISERROR(FIND("-",E3)),E3,LEFT(E3,FIND("-",E3)-1)) -> N | J2: Taxonomic group | O2: Species | R2: Lifestage | U2: Exposure duration | X2: Measure of toxicity | AA2: Toxicity endpoint | AD2: Taxonomic group | AG2: Phylum | AJ2: Class | AM2: Media | AP2: Temperature | AS2: Acute Or Chronic | AV2: PH | AY2: Salinity/Conductivity
C3: Paper and data unique identifier(eg. 1-1,10-150) | D3: =IF(AI3="",0,1) -> 1 | E3: N-25-1 | F3: =IF(E4="",0,1) -> 1 | G3: Species (Scientific name) | J3: Phylum | O3: Aedes albopictus | P3: 42 | Q3: =IF(P3=0,"",INDEX(O3:O100,P3)) -> Hyalella azteca | R3: 1 month | S3: 19 | T3: =IF(S3=0,"",INDEX(R3:R100,S3)) -> Juveniles | U3: 10d | V3: 35 | W3: =IF(V3=0,"",INDEX(U3:U100,V3)) -> 42 d | X3: EC50 | Y3: 12 | Z3: =IF(Y3=0,"",INDEX(X3:X100,Y3)) -> EC20 | AA3: Development | AB3: 16 | AC3: =IF(AB3=0,"",INDEX(AA3:AA100,AB3)) -> Mortality, growth, reproduction | AD3: Alga | AE3: 15 | AF3: =IF(AE3=0,"",INDEX(AD3:AD100,AE3)) -> Invertebrate | AG3: Chordata | AH3: 15 | AI3: =IF(AH3=0,"",INDEX(AG3:AG100,AH3)) -> Arthropoda | AJ3: Branchiopoda | AK3: 22 | AL3: =IF(AK3=0,"",INDEX(AJ3:AJ102,AK3)) -> Malacostraca | AM3: Freshwater | AN3: 1 | AO3: =IF(AN3=0,"",INDEX(AM3:AM100,AN3)) -> Freshwater | AP3: 7.5 | AQ3: 24 | AR3: =IF(AQ3=0,"",INDEX(AP3:AP100,AQ3)) -> 22.9 C | AS3: 10 | AT3: 3 | AU3: =IF(AT3=0,"",INDEX(AS3:AS100,AT3)) -> Chronic | AV3: 6.2 | AW3: 33 | AX3: =IF(AW3=0,"",INDEX(AV3:AV100,AW3)) -> 8 | AY3: 30 ppt | BA3: N.A.
C4: Citation | D4: =IF(AL3="",0,1) -> 1 | E4: Wang N, Dorman RA, Ivey CD, Soucek DJ, Dickinson A, Kunz BK, Steevens JA, Hammer EJ and Bauer CR. (2020). Acute and chronic toxicity of sodium nitrate and sodium sulfate to several freshwater organisms in water-only exposures. Environmental Toxicology and Chemistry, 39, 1071-1085. | F4: =IF(AX3="",0,1) -> 1 | G4: Lifestage | J4: Class | O4: Astacus astacus | R4: 1 year old | U4: 11 hours | X4: LC50 | AA4: Growth | AD4: Amphibian | AG4: Mollusca | AJ4: Gastropoda | AM4: Marinewater | AP4: 10 | AS4: Acute | AV4: 6.5 | AY4: 150 uS/cm
D5: =IF(AO3="",0,1) -> 1 | F5: =IF(H8="",0,1) -> 1 | G5: Exposure duration | J5: Media | O5: Australian Bass | R5: Egg | U5: 11d | X5: LC50 and EC50 | AA5: Growth and mortality | AD5: Fish | AG5: Arthropoda | AJ5: Insecta | AM5: N.A. | AP5: 13 | AS5: Chronic | AV5: 6.8 | AY5: N.A.
D6: =IF(AR3="",0,1) -> 1 | F6: =IF(Q3="",0,1) -> 1 | G6: Measure of toxicity | J6: Temperature | O6: Bufo americanus | R6: Embryo | U6: 126 d | X6: N.A. | AA6: hatched | AD6: Invertebrate | AG6: Arthropoda | AJ6: Malacostraca | AP6: 14 | AS6: Chronic | AV6: 7.6
D7: =IF(AU3="",0,1) -> 1 | F7: =IF(T3="",0,1) -> 1 | G7: Toxicity endpoint | J7: Acute Or Chronic | O7: Ceriodaphnia dubia | R7: Embryo-Alevin-Fry | U7: 13 days | X7: NOAEL | AA7: Mortality | AD7: Microalga | AG7: Chlorophyta | AJ7: Malacostraca | AP7: 22 | AS7: N.A. | AV7: 8.25
F8: =IF(W3="",0,1) -> 1 | G8: Toxicity value | H8: 56.7 | J8: PH | O8: Chironomus dilutus | R8: Embryo-larvae | U8: 14 d | X8: NOEC | AA8: N.A. | AD8: N.A. | AG8: Chlorophyta | AJ8: Actinopterygii | AP8: 23 | AV8: 8.3
B9: 2 | C9: Select the appropriate answer option to each question. Comments can be added to the cells in column H. | F9: =IF(Z3="",0,1) -> 1 | J9: Salinity/Conductivity | K9: N.A. | O9: Chironomus dilutus | R9: exponential | U9: 146 d | X9: LC10 | AA9: Reproduction | AD9: Mollusc | AG9: Chordata | AJ9: Amphibia | AP9: 23.1 | AV9: 6.4-7.3
B10: * | C10: If the selected answer option does not work try clicking on any other cell first and then click back on the answer option again. | F10: =IF(AC3="",0,1) -> 1 | O10: Coregonus clupeaformis | R10: Fry | U10: 16 d | X10: EC10 | AA10: Survival and reproduction | AD10: Arthropoda | AG10: N.A. | AJ10: Branchiopoda | AP10: 23.4 | AV10: 6-7.4
B11: No. | C11: Question | D11: Marks Awarded | E11: Answer Options | F11: Option References | G11: Scores | H11: Answers | O11: Daphnia magna | R11: Juvenile | U11: 20 d | X11: LOEC | AA11: Mortality and growth | AD11: Crayfish | AG11: Tracheophyta | AJ11: Chlorophyceae | AP11: 24 | AV11: 7.0-7.4
C12: Was the duration of the exposure stated (e.g. 48 or 96 h)? | D12: 10 | F12: 1 | G12: =IF(F15=0,0,INDEX($D12:$D13,F12,1)) -> 10 | O12: Deleatidium sp. | R12: Larvae | U12: 21 d | X12: IC25 | AA12: Reproduction | AD12: Amphipod | AG12: Mollusca | AJ12: Chlorophyceae | AP12: 25 | AV12: 7.0-7.6
B13: 1 | D13: 0 | O13: Galaxias maculatus | R13: N.A. | U13: 23 d | X13: NOEC | AA13: Hatching | AD13: Mollusc | AG13: Arthropoda | AJ13: N.A. | AP13: 28 | AV13: 7.21-7.47
O14: Galaxias maculatus | R14: Neonates | U14: 3 d | X14: EC20 | AA14: Growht (wt) | AD14: Cladoceran | AG14: Mollusca | AJ14: Actinopterygii | AP14: 2016-05-10 | AV14: 7.34-8.27
C15: Was the biological endpoint (e.g., immobilization or population growth) stated and defined (10 marks)? Award 5 marks if the biological endpoint is only stated. | D15: 10 | F15: 1 | G15: =IF(F15=0,0,INDEX($D15:$D17,F15,1)) -> 10 | O15: Hyalella azteca | R15: sub-adult | U15: 30d | AA15: Growth (wt) | AD15: Invertebrate | AG15: Arthropoda | AJ15: Bivalvia | AP15: 15°C | AV15: 7.48-7.74
B16: 2 | D16: 5 | O16: Macrobrachium rosenbergii | R16: Tadpole | U16: 31 d | AA16: Mortality and growth | AD16: Fish | AG16: Chordata | AJ16: Gastropoda | AP16: 21-24 | AV16: 7.50-7.59
D17: 0 | O17: N.A. | R17: Neonate | U17: 32 d | AA17: Reproduction | AD17: Invertebrate | AG17: Arthropoda | AJ17: Gastropoda | AP17: 25°C | AV17: 7.51-7.79
C18: Was the biological effect stated (e.g. LC or NOEC)? | D18: 5 | F18: 1 | G18: =IF(F18=0,0,INDEX($D18:$D19,F18,1)) -> 5 | O18: Notropis topeka | R18: Larvae | U18: 37-40 d | AA18: Mortality, growth, reproduction | AJ18: Malacostraca | AP18: N.A. | AV18: 7.52-8.60
B19: 3 | D19: 0 | O19: Oncorhynchus kisutch | R19: Juvenile | U19: 40 d | AJ19: Gastropoda | AP19: 20 C | AV19: 7.5-8.5
O20: Oncorhynchus mykiss | R20: Neonates | U20: 42 d | AJ20: Branchiopoda | AP20: 15 C | AV20: 7.6-7.7
B21: 4 | C21: Was the biological effect quantified (e.g. 50% effect, 25% effect)? Note: The effect for NOEC and LOEC data must be quantified. | D21: 5 | F21: 1 | G21: =IF(F21=0,0,INDEX($D21:$D22,F21,1)) -> 5 | O21: Oncorhynchus mykiss | R21: Juveniles | U21: 5d | AJ21: Insecta | AP21: 18.5 | AV21: 7.89-8.25
D22: 0 | O22: Oncorhynchus tshawytscha | U22: 64-68 d | AJ22: Actinopterygii | AP22: 25 C | AV22: 7.92-8.43
B23: 5 | C23: Were appropriate controls (e.g. a no-toxicant control and/or solvent control) used? | D23: 5 | F23: 1 | G23: =IF(F23=0,0,INDEX($D23:$D24,F23,1)) -> 5 | O23: Pimephales promelas | U23: 64d | AJ23: Branchiopoda | AP23: 24 C | AV23: 7.97-8.32
D24: 0 | O24: Pomacea paludosa | U24: 7 d | AJ24: Malacostraca | AP24: 28 C | AV24: N.A.
O25: Pseudacris regilla | U25: N.A. | AP25: 24.9 C | AV25: PH11
B26: 6 | C26: Was each control and contaminant concentration at least duplicated? | D26: 5 | F26: 1 | G26: =IF(F26=0,0,INDEX($D26:$D27,F26,1)) -> 5 | O26: Pseudacris regilla | U26: 60 d | AP26: 22.9 C | AV26: PH7.0
D27: 0 | O27: Pseudokirchneriella subcapitata | U27: 31 d | AV27: 6.6-6.7
O28: Rana aurora | U28: 40 d | AV28: 7.8
B29: 7 | C29: Were test acceptability criteria stated (e.g. mortality in controls must not exceed a certain percentage) (5 marks)? OR Were test acceptability criteria inferred (e.g. test method used [USEPA, OECD, ASTM etc.]) (award 2 marks). Note: Data that fail the acceptability criteria are automatically deemed to be of unacceptable quality and must not be used. | D29: 5 | F29: 1 | G29: =IF(F29=0,0,INDEX($D29:$D31,F29,1)) -> 5 | O29: Salmo clarki | U29: 60 d | AV29: 7.8-8.2
D30: 2 | O30: Salvelinus namaycush | U30: 21 d | AV30: 8.55
D31: 0 | O31: Xenopus laevis | U31: 35 d | AV31: 8
B32: 8 | C32: Were the characteristics of the test organism (e.g. length, mass, age) stated? | D32: 5 | F32: 1 | G32: =IF(F32=0,0,INDEX($D32:$D34,F32,1)) -> 5 | O32: Xenopus laevis | U32: 7 d | AV32: 7.23
D33: 0 | O33: Gobiomorphus cotidianus | U33: 20 d | AV33: 7.1-7.98
O34: Sphaerium novaezelandiae | U34: 42 d | AV34: 8.2
B35: 9 | C35: Was the type of test media used stated? | D35: 5 | F35: 1 | G35: =IF(F35=0,0,INDEX($D35:$D37,F35,1)) -> 5 | O35: Potamopyrgus antipodarum | U35: 29 d | AV35: 8
D36: 0 | O36: Paranephrops planifrons | U36: 7 d
O37: Gammarus pseudolimnaeus | U37: 42 d
C38: Was the type of exposure (e.g. static, flow through) stated? | D38: 4 | F38: 1 | G38: =IF(F38=0,0,INDEX($D38:$D40,F38,1)) -> 4 | O38: Potamopyrgus antipodarum
B39: 10 | D39: 0 | O39: Ceriodaphnia silvestrii
O40: Chironomus xanthus
C41: Were the contaminant concentrations measured at the beginning and end of the exposure (4 marks)? Award 2 marks if they were measured only once during the test. Note: If the concentrations were not measured then automatically the data cannot be high quality. | D41: 4 | F41: 2 | G41: =IF(F41=0,0,INDEX($D41:$D43,F41,1)) -> 2 | O41: Sander lucioperca
B42: 11 | D42: 2 | O42: Danio rerio
D43: 0 | O43: Ceriodaphnia dubia
C44: Were parallel reference toxicant toxicity tests conducted? | D44: 4 | F44: 2 | G44: =IF(F44=0,0,INDEX($D44:$D46,F44,1)) -> 0 | O44: Hyalella azteca
B45: 12 | D45: 0
C47: Was there a concentration–response relationship either observable or stated? | D47: 4 | F47: 1 | G47: =IF(F47=0,0,INDEX($D47:$D49,F47,1)) -> 4
B48: 13 | D48: 0
C50: Was an appropriate statistical method or model used to determine the toxicity? Note: They should be accepted by a recognised national or international regulatory body (e.g. USEPA, OECD, ASTM). | D50: 4 | F50: 1 | G50: =IF(F50=0,0,INDEX($D50:$D52,F50,1)) -> 4
B51: 14 | D51: 0
B53: 15 | C53: For LC/EC/BEC data was an estimate of variability provided? OR For NO EC/LOEC data was the significance level 0.05 or less? | D53: 4 | F53: 1 | G53: =IF(F53=0,0,INDEX($D53:$D55,F53,1)) -> 4
D54: 0
B56: 16 | C56: Were the following parameters measured and stated? (3 marks if measured and stated, 1 mark if just measured).
C57: pH | D57: 3 | F57: 1 | G57: =IF(F57=0,0,INDEX($D57:$D59,F57,1)) -> 3
B58: 16.1 | D58: 1
D59: 0
C61: Was the temperature measured and stated (3 marks)? Award 1 mark if the temperature was measured but not stated or if only the temperature settings of the room or chamber are stated. | D61: 3 | F61: 1 | G61: =IF(F61=0,0,INDEX($D61:$D63,F61,1)) -> 3
B62: 17 | D62: 1
D63: 0
C64: Were test solutions, blanks and/or controls tested for contamination OR were analytical reagent grade chemicals used or the highest possible purity chemicals used for the experiment? (3 marks). | D64: 3 | F64: 1 | G64: =IF(F64=0,0,INDEX($D64:$D65,F64,1)) -> 3
B65: 18 | D65: 0
I67: =COUNTIF(D2:D7,"=0")+COUNTIF(F2:F10,"=0")+COUNTIF(F12:F64,"=0") -> 0
C70: Total score | G70: =IF(SUM(G12:G67)=0,"",SUM(G12:G67)) -> 82
C71: Total Max. possible score for the various types of data and contaminants | E71: =D12+D15+D18+D21+D23+D26+D29+D32+D35+D38+D41+D44+D47+D50+D53+D57+D61+D64 -> 88
C72: Quality Score | E72: ="= [Total score / Total possible score] * 100 = " -> = [Total score / Total possible score] * 100 = | G72: =IF(ISERROR(G70/E71),#N/A,G70/E71) -> 0.9318181818 | H72: =IF(F41=3,"The highest possible grade for this datum is acceptable.","") -> 
C74: H = high quality Quality score ≥ 80%
C75: A = acceptable quality > 50% Quality score < 80%
C76: U = unacceptable quality Quality score ≤ 50%
A78: 3 | C78: Click the 'Save & Update' button to save and export the answers to the 'All results' worksheet.
C79: Select the 'Reset Answers' button if you wish to clear all answers.

Sheet FW nonmetal plant_WS
S1: MAX | T1: 88
A2: Question No. | B2: 1 | C2: 2 | D2: 3 | E2: 4 | F2: 5 | G2: 6 | H2: 7 | I2: 8 | J2: 9 | K2: 10 | L2: 11 | M2: 12 | N2: 13 | O2: 14 | P2: 15 | Q2: 16.1 | R2: 17 | S2: 18 | T2: Total Score | U2: Quality Score | V2: Comment
A3: Short Questions | B3: Duration of the exposure | C3: Biological endpoint | D3: Biological effect stated or not | E3: Biological effect quantified or not | F3: Appropriate controls | G3: Control & contaminant concentration | H3: Test acceptability criteria | I3: Characteristics of the test organism | J3: Type of test media | K3: Type of exposure | L3: Contaminant concentrations | M3: Parallel reference toxicant toxicity tests | N3: Concentration–response relationship | O3: Determine the toxicity | P3: NOEC/LOEC or LC/EC/BEC | Q3: pH | R3: Temperature | S3: Grade or purity
A4: Category | B4: Freshwater/non-metal/plant | C4: Paper and data unique identifier(eg. 1-1,10-150) | D4: N01-1
A5: Scores | B5: 10 | C5: 10 | D5: 5 | E5: 5 | F5: 5 | G5: 5 | H5: 2 | I5: 5 | J5: 5 | K5: 4 | L5: 4 | M5: 4 | N5: 4 | O5: 4 | P5: 4 | Q5: 3 | R5: 1 | S5: 3 | T5: =SUM(B5:S5) -> 83 | U5: =T5/MAX -> 0.9431818182
A6: Answers | B6: 146 days | C6: growth | D6: NOEC and LC50, cannot find LCx or Ecx.. | F6: (also hardness control) | H6: " No specific acceptability criteria for the two test species were used in the present study. However, Environment Canada [8] defines an acceptable rainbow trout embryo evelopment test as one in which the control has 60% or more survivors at the time when 50% of the embryos reach the swim-up stage." | K6: STATIC | Q6: PH was a range of 6-7.4 also the DO was stated. | R6: not sure about this one because it says room temperature was measured.
A7: Category | B7: Freshwater/non-metal/plant | C7: Paper and data unique identifier(eg. 1-1,10-150) | D7: N01-2
A8: Scores | B8: 10 | C8: 10 | D8: 5 | E8: 5 | F8: 5 | G8: 5 | H8: 2 | I8: 5 | J8: 5 | K8: 4 | L8: 4 | M8: 4 | N8: 4 | O8: 4 | P8: 4 | Q8: 3 | R8: 1 | S8: 3 | T8: =SUM(B8:S8) -> 83 | U8: =T8/MAX -> 0.9431818182
A9: Answers | B9: 126 Days | G9: 4 replicates per treatment 10 larve per replicate | H9: Not too sure about this.. It says: No specific acceptability criteria for the two test species were used in the present study. | K9: static | R9: Room temperature was measured daily
A10: Category | B10: Freshwater/non-metal/plant | C10: Paper and data unique identifier(eg. 1-1,10-150) | D10: N02-1
A11: Scores | B11: 10 | C11: 10 | D11: 5 | E11: 5 | F11: 5 | G11: 5 | H11: 2 | I11: 5 | J11: 5 | K11: 4 | L11: 2 | M11: 4 | N11: 4 | O11: 4 | P11: 4 | Q11: 3 | R11: 3 | S11: 3 | T11: =SUM(B11:S11) -> 83 | U11: =T11/MAX -> 0.9431818182
A12: Answers | H12: Not sure | K12: flow through | L12: Not very clear about this | O12: sig 0.05 | P12: sig 0.05
A13: Category | B13: Freshwater/non-metal/plant | C13: Paper and data unique identifier(eg. 1-1,10-150) | D13: N02-2
A14: Scores | B14: 10 | C14: 10 | D14: 5 | E14: 5 | F14: 5 | G14: 5 | H14: 2 | I14: 5 | J14: 5 | K14: 4 | L14: 2 | M14: 4 | N14: 4 | O14: 4 | P14: 4 | Q14: 3 | R14: 3 | S14: 3 | T14: =SUM(B14:S14) -> 83 | U14: =T14/MAX -> 0.9431818182
A15: Answers | H15: Not sure | K15: flow through | L15: Not very clear about this | O15: sig 0.05 | P15: sig 0.05
A16: Category | B16: Freshwater/non-metal/plant | C16: Paper and data unique identifier(eg. 1-1,10-150) | D16: N02-3
A17: Scores | B17: 10 | C17: 10 | D17: 5 | E17: 5 | F17: 5 | G17: 5 | H17: 2 | I17: 5 | J17: 5 | K17: 4 | L17: 2 | M17: 4 | N17: 4 | O17: 4 | P17: 4 | Q17: 3 | R17: 3 | S17: 3 | T17: =SUM(B17:S17) -> 83 | U17: =T17/MAX -> 0.9431818182 | V17: rainbow trout
A18: Answers | H18: Not sure | K18: flow through | L18: Not very clear about this | O18: sig 0.05 | P18: sig 0.05
A19: Category | B19: Freshwater/non-metal/plant | C19: Paper and data unique identifier(eg. 1-1,10-150) | D19: N02-4
A20: Scores | B20: 10 | C20: 10 | D20: 5 | E20: 5 | F20: 5 | G20: 5 | H20: 2 | I20: 5 | J20: 5 | K20: 4 | L20: 2 | M20: 4 | N20: 4 | O20: 4 | P20: 4 | Q20: 3 | R20: 3 | S20: 3 | T20: =SUM(B20:S20) -> 83 | U20: =T20/MAX -> 0.9431818182 | V20: Steelhead trout
A21: Answers | H21: Not sure | K21: flow through | L21: Not very clear about this | O21: sig 0.05 | P21: sig 0.05
A22: Scores | B22: 10 | C22: 10 | D22: 5 | E22: 5 | F22: 5 | G22: 5 | H22: 2 | I22: 5 | J22: 5 | K22: 4 | L22: 2 | M22: 4 | N22: 4 | O22: 4 | P22: 4 | Q22: 3 | R22: 3 | S22: 3 | T22: =SUM(B22:S22) -> 83 | U22: =T22/MAX -> 0.9431818182
A23: Answers | H23: Not sure | K23: flow through | L23: Not very clear about this | O23: sig 0.05 | P23: sig 0.05
A24: Category | B24: Freshwater/non-metal/plant | C24: Paper and data unique identifier(eg. 1-1,10-150) | D24: N02-5
A25: Scores | B25: 10 | C25: 10 | D25: 5 | E25: 5 | F25: 5 | G25: 5 | H25: 2 | I25: 5 | J25: 5 | K25: 4 | L25: 2 | M25: 4 | N25: 4 | O25: 4 | P25: 4 | Q25: 3 | R25: 3 | S25: 3 | T25: =SUM(B25:S25) -> 83 | U25: =T25/MAX -> 0.9431818182
A26: Answers | H26: Not sure | K26: flow through | L26: Not very clear about this | O26: sig 0.05 | P26: sig 0.05
A27: Category | B27: Freshwater/non-metal/plant | C27: Paper and data unique identifier(eg. 1-1,10-150) | D27: N03-1
A28: Scores | B28: 10 | C28: 10 | D28: 5 | E28: 5 | F28: 5 | G28: 5 | H28: 2 | I28: 5 | J28: 5 | K28: 0 | L28: 4 | M28: 4 | N28: 4 | O28: 4 | P28: 4 | Q28: 3 | R28: 3 | S28: 3 | T28: =SUM(B28:S28) -> 81 | U28: =T28/MAX -> 0.9204545455
A29: Answers | I29: age | K29: But is seems to be static: " Boron tests were conducted in 60 2.4-L polyethylene containers and nitrate tests in 80 2-L glass bowls." | L29: They stated that the concentration changed a little bit over the course (less than 5%) | Q29: 6.5 | R29: kept at 5 the first 4 days and then raised till 10
A30: Category | B30: Freshwater/non-metal/plant | C30: Paper and data unique identifier(eg. 1-1,10-150) | D30: N04-1
A31: Scores | B31: 10 | C31: 10 | D31: 5 | E31: 5 | F31: 5 | G31: 5 | H31: 5 | I31: 5 | J31: 5 | K31: 4 | L31: 4 | M31: 4 | N31: 4 | O31: 4 | P31: 4 | Q31: 3 | R31: 3 | S31: 3 | T31: =SUM(B31:S31) -> 88 | U31: =T31/MAX -> 1
A32: Answers | D32: Also LC50 and NOAEL | H32: It doesn’t state criteria but does say that no control animals died | I32: length and weight | K32: static renewed daily | L32: measured every 3-4 days
A33: Category | B33: Freshwater/non-metal/plant | C33: Paper and data unique identifier(eg. 1-1,10-150) | D33: N04-2
A34: Scores | B34: 10 | C34: 5 | D34: 0 | E34: 0 | F34: 5 | G34: 5 | H34: 5 | I34: 5 | J34: 5 | K34: 4 | L34: 2 | M34: 4 | N34: 4 | O34: 4 | P34: 4 | Q34: 3 | R34: 3 | S34: 3 | T34: =SUM(B34:S34) -> 71 | U34: =T34/MAX -> 0.8068181818
A35: Answers | C35: It is therefore important to examine to what extent physiological disturbances induced by nitrite can be reversed upon a return to nitrite-free water. On the basis of the documented extensive uptake of | H35: there was not mortality in the controls it says. | I35: only: intermoult stage of the moulting cycle | J35: tab water | K35: tab water daily 50% water renewal (seems static) | L35: says it was measured not when | O35: p<0.01 | P35: p<0.01
A36: Category | B36: Freshwater/non-metal/plant | C36: Paper and data unique identifier(eg. 1-1,10-150) | D36: N04-3
A37: Scores | B37: 10 | C37: 10 | D37: 5 | E37: 5 | F37: 5 | G37: 5 | H37: 2 | I37: 5 | J37: 5 | K37: 4 | L37: 2 | M37: 4 | N37: 4 | O37: 4 | P37: 4 | Q37: 3 | R37: 1 | S37: 3 | T37: =SUM(B37:S37) -> 81 | U37: =T37/MAX -> 0.9204545455
A38: Answers | H38: ?? They do not check mortality.. The number of neonates per cup was counted and recorded each day. Young were discarded. | I38: (<24 h old) | J38: At the end of 7 d, larvae were sacrificed in 70% | K38: static renewal | L38: Nitrate | R38: stated it was in a room with a 25 degree temp. does not explicitly say the water was tested but it does say it was 25 degrees.
A39: Category | B39: Freshwater/non-metal/plant | C39: Paper and data unique identifier(eg. 1-1,10-150) | D39: N05-1
A40: Scores | B40: 10 | C40: 10 | D40: 5 | E40: 5 | F40: 5 | G40: 5 | H40: 2 | I40: 5 | J40: 5 | K40: 4 | L40: 2 | M40: 4 | N40: 4 | O40: 4 | P40: 4 | Q40: 3 | R40: 1 | S40: 3 | T40: =SUM(B40:S40) -> 81 | U40: =T40/MAX -> 0.9204545455
A41: Answers | H41: ?? They do not check mortality.. The number of neonates per cup was counted and recorded each day. Young were discarded. | I41: (<24 h old) | J41: At the end of 7 d, larvae were sacrificed in 70% | K41: static renewal | L41: Nitrate | R41: stated it was in a room with a 25 degree temp. does not explicitly say the water was tested but it does say it was 25 degrees.
A42: Category | B42: Freshwater/non-metal/plant | C42: Paper and data unique identifier(eg. 1-1,10-150) | D42: N05-1
A43: Scores | B43: 10 | C43: 10 | D43: 5 | E43: 5 | F43: 5 | G43: 5 | H43: 2 | I43: 5 | J43: 5 | K43: 4 | L43: 2 | M43: 4 | N43: 4 | O43: 4 | P43: 4 | Q43: 3 | R43: 1 | S43: 3 | T43: =SUM(B43:S43) -> 81 | U43: =T43/MAX -> 0.9204545455
A44: Answers | H44: ?? They do not check mortality.. The number of neonates per cup was counted and recorded each day. Young were discarded. | I44: (<24 h old) | J44: At the end of 7 d, larvae were sacrificed in 70% | K44: static renewal | L44: Nitrate | R44: stated it was in a room with a 25 degree temp. does not explicitly say the water was tested but it does say it was 25 degrees.
A45: Category | B45: Freshwater/non-metal/plant | C45: Paper and data unique identifier(eg. 1-1,10-150) | D45: N06-1
A46: Scores | B46: 10 | C46: 10 | D46: 5 | E46: 5 | F46: 5 | G46: 5 | H46: 2 | I46: 5 | J46: 5 | K46: 4 | L46: 2 | M46: 4 | N46: 4 | O46: 4 | P46: 4 | Q46: 3 | R46: 1 | S46: 3 | T46: =SUM(B46:S46) -> 81 | U46: =T46/MAX -> 0.9204545455
A47: Answers | H47: ?? They do not check mortality.. The number of neonates per cup was counted and recorded each day. Young were discarded. | I47: (<24 h old) | J47: At the end of 7 d, larvae were sacrificed in 70% | K47: static renewal | L47: Nitrate | R47: stated it was in a room with a 25 degree temp. does not explicitly say the water was tested but it does say it was 25 degrees.
A48: Category | B48: Freshwater/non-metal/plant | C48: Paper and data unique identifier(eg. 1-1,10-150) | D48: N07-1
A49: Scores | B49: 10 | C49: 10 | D49: 5 | E49: 5 | F49: 5 | G49: 5 | H49: 2 | I49: 5 | J49: 5 | K49: 4 | L49: 2 | M49: 4 | N49: 4 | O49: 4 | P49: 4 | Q49: 3 | R49: 1 | S49: 3 | T49: =SUM(B49:S49) -> 81 | U49: =T49/MAX -> 0.9204545455
A50: Answers | H50: ?? They do not check mortality.. The number of neonates per cup was counted and recorded each day. Young were discarded. | I50: (<24 h old) | J50: At the end of 7 d, larvae were sacrificed in 70% | K50: static renewal | L50: Nitrate | R50: stated it was in a room with a 25 degree temp. does not explicitly say the water was tested but it does say it was 25 degrees.
A51: Category | B51: Freshwater/non-metal/plant | C51: Paper and data unique identifier(eg. 1-1,10-150) | D51: N07-2
A52: Scores | B52: 10 | C52: 10 | D52: 5 | E52: 5 | F52: 5 | G52: 5 | H52: 5 | I52: 5 | J52: 5 | K52: 4 | L52: 2 | M52: 4 | N52: 4 | O52: 4 | P52: 4 | Q52: 0 | R52: 3 | S52: 3 | T52: =SUM(B52:S52) -> 83 | U52: =T52/MAX -> 0.9431818182
A53: Answers | C53: Survival and reproduction | H53: 80% survival and 15% young per surviving control | I53: < 24 h. | K53: Static renewal daily | L53: Not clear | Q53: PH is measured in the Annex papers but not in the article itself
A54: Category | B54: Freshwater/non-metal/plant | C54: Paper and data unique identifier(eg. 1-1,10-150) | D54: N07-3
A55: Scores | B55: 10 | C55: 10 | D55: 5 | E55: 5 | F55: 5 | G55: 5 | H55: 5 | I55: 5 | J55: 5 | K55: 4 | L55: 2 | M55: 4 | N55: 4 | O55: 4 | P55: 4 | Q55: 0 | R55: 3 | S55: 3 | T55: =SUM(B55:S55) -> 83 | U55: =T55/MAX -> 0.9431818182
A56: Answers | C56: Survival and reproduction | H56: 80% survival and 15% young per surviving control | I56: < 24 h. | K56: Static renewal daily | L56: Not clear | Q56: PH is measured in the Annex papers but not in the article itself
A57: Category | B57: Freshwater/non-metal/plant | C57: Paper and data unique identifier(eg. 1-1,10-150) | D57: N07-4
A58: Scores | B58: 10 | C58: 10 | D58: 5 | E58: 5 | F58: 5 | G58: 5 | H58: 5 | I58: 5 | J58: 5 | K58: 4 | L58: 2 | M58: 4 | N58: 4 | O58: 4 | P58: 4 | Q58: 0 | R58: 3 | S58: 3 | T58: =SUM(B58:S58) -> 83 | U58: =T58/MAX -> 0.9431818182
A59: Answers | C59: Survival and reproduction | H59: 80% survival and 15% young per surviving control | I59: < 24 h. | K59: Static renewal daily | L59: Not clear | Q59: PH is measured in the Annex papers but not in the article itself
A60: Category | B60: Freshwater/non-metal/plant | C60: Paper and data unique identifier(eg. 1-1,10-150) | D60: N07-5
A61: Scores | B61: 10 | C61: 10 | D61: 5 | E61: 5 | F61: 5 | G61: 5 | H61: 5 | I61: 5 | J61: 5 | K61: 4 | L61: 2 | M61: 4 | N61: 4 | O61: 4 | P61: 4 | Q61: 0 | R61: 3 | S61: 3 | T61: =SUM(B61:S61) -> 83 | U61: =T61/MAX -> 0.9431818182
A62: Answers | C62: survival and dry weight | I62: 3rd instar | K62: static renewal | L62: Not clearly stated
A63: Category | B63: Freshwater/non-metal/plant | C63: Paper and data unique identifier(eg. 1-1,10-150) | D63: N07-6
A64: Scores | B64: 10 | C64: 10 | D64: 5 | E64: 5 | F64: 5 | G64: 5 | H64: 5 | I64: 5 | J64: 5 | K64: 4 | L64: 2 | M64: 4 | N64: 4 | O64: 4 | P64: 4 | Q64: 0 | R64: 3 | S64: 3 | T64: =SUM(B64:S64) -> 83 | U64: =T64/MAX -> 0.9431818182
A65: Answers | C65: survival and dry weight | I65: 3rd instar | K65: static renewal | L65: Not clearly stated
A66: Category | B66: Freshwater/non-metal/plant | C66: Paper and data unique identifier(eg. 1-1,10-150) | D66: N07-8
A67: Scores | B67: 10 | C67: 10 | D67: 5 | E67: 5 | F67: 5 | G67: 5 | H67: 5 | I67: 5 | J67: 5 | K67: 4 | L67: 2 | M67: 4 | N67: 4 | O67: 4 | P67: 4 | Q67: 0 | R67: 3 | S67: 3 | T67: =SUM(B67:S67) -> 83 | U67: =T67/MAX -> 0.9431818182
A68: Answers | C68: survival and dry weight | I68: 3rd instar | K68: static renewal | L68: Not clearly stated
A69: Category | B69: Freshwater/non-metal/plant | C69: Paper and data unique identifier(eg. 1-1,10-150) | D69: N08-1
A70: Scores | B70: 10 | C70: 10 | D70: 5 | E70: 5 | F70: 5 | G70: 5 | H70: 5 | I70: 5 | J70: 5 | K70: 4 | L70: 2 | M70: 4 | N70: 4 | O70: 4 | P70: 4 | Q70: 0 | R70: 3 | S70: 3 | T70: =SUM(B70:S70) -> 83 | U70: =T70/MAX -> 0.9431818182
A71: Answers | C71: survival and dry weight | D71: IC25 | I71: 6-8 days old | K71: static renewal | L71: Not clearly stated
A72: Category | B72: Freshwater/non-metal/plant | C72: Paper and data unique identifier(eg. 1-1,10-150) | D72: N08-2
A73: Scores | B73: 10 | C73: 10 | D73: 5 | E73: 5 | F73: 5 | G73: 5 | H73: 5 | I73: 5 | J73: 5 | K73: 4 | L73: 2 | M73: 4 | N73: 4 | O73: 4 | P73: 4 | Q73: 0 | R73: 3 | S73: 3 | T73: =SUM(B73:S73) -> 83 | U73: =T73/MAX -> 0.9431818182
A74: Answers | C74: survival and dry weight | D74: IC25 | I74: 6-8 days old | K74: static renewal | L74: Not clearly stated
A75: Category | B75: Freshwater/non-metal/plant | C75: Paper and data unique identifier(eg. 1-1,10-150) | D75: N08-3
A76: Scores | B76: 10 | C76: 10 | D76: 5 | E76: 5 | F76: 5 | G76: 5 | H76: 5 | I76: 5 | J76: 5 | K76: 4 | L76: 2 | M76: 4 | N76: 4 | O76: 4 | P76: 4 | Q76: 0 | R76: 3 | S76: 3 | T76: =SUM(B76:S76) -> 83 | U76: =T76/MAX -> 0.9431818182
A77: Answers | C77: survival and dry weight | D77: IC25 | I77: 6-8 days old | K77: static renewal | L77: Not clearly stated
A78: Category | B78: Freshwater/non-metal/plant | C78: Paper and data unique identifier(eg. 1-1,10-150) | D78: N08-4
A79: Scores | B79: 10 | C79: 10 | D79: 5 | E79: 5 | F79: 5 | G79: 5 | H79: 5 | I79: 5 | J79: 5 | K79: 4 | L79: 2 | M79: 4 | N79: 4 | O79: 4 | P79: 4 | Q79: 0 | R79: 3 | S79: 3 | T79: =SUM(B79:S79) -> 83 | U79: =T79/MAX -> 0.9431818182
A80: Answers | C80: survival and dry weight | D80: IC25 | I80: <24 h post hatch | K80: static renewal | L80: Not clearly stated
A81: Category | B81: Freshwater/non-metal/plant | C81: Paper and data unique identifier(eg. 1-1,10-150) | D81: N09-1
A82: Scores | B82: 10 | C82: 10 | D82: 5 | E82: 5 | F82: 5 | G82: 5 | H82: 5 | I82: 5 | J82: 5 | K82: 4 | L82: 2 | M82: 4 | N82: 4 | O82: 4 | P82: 4 | Q82: 0 | R82: 3 | S82: 3 | T82: =SUM(B82:S82) -> 83 | U82: =T82/MAX -> 0.9431818182
A83: Answers | C83: survival and dry weight | D83: IC25 | I83: <24 h post hatch | K83: static renewal | L83: Not clearly stated
A84: Category | B84: Freshwater/non-metal/plant | C84: Paper and data unique identifier(eg. 1-1,10-150) | D84: N09-10
A85: Scores | B85: 10 | C85: 10 | D85: 5 | E85: 5 | F85: 5 | G85: 5 | H85: 5 | I85: 5 | J85: 5 | K85: 4 | L85: 2 | M85: 4 | N85: 4 | O85: 4 | P85: 4 | Q85: 0 | R85: 3 | S85: 3 | T85: =SUM(B85:S85) -> 83 | U85: =T85/MAX -> 0.9431818182
A86: Answers | C86: survival and dry weight | D86: IC25 | I86: <24 h post hatch | K86: static renewal | L86: Not clearly stated
A87: Category | B87: Freshwater/non-metal/plant | C87: Paper and data unique identifier(eg. 1-1,10-150) | D87: N09-11
A88: Scores | B88: 10 | C88: 10 | D88: 5 | E88: 5 | F88: 5 | G88: 5 | H88: 5 | I88: 5 | J88: 5 | K88: 4 | L88: 2 | M88: 4 | N88: 4 | O88: 4 | P88: 4 | Q88: 0 | R88: 3 | S88: 3 | T88: =SUM(B88:S88) -> 83 | U88: =T88/MAX -> 0.9431818182
A89: Answers | C89: survival and dry weight | D89: IC25 | I89: <24 h post hatch | K89: static renewal | L89: Not clearly stated
A90: Category | B90: Freshwater/non-metal/plant | C90: Paper and data unique identifier(eg. 1-1,10-150) | D90: N09-12
A91: Scores | B91: 10 | C91: 10 | D91: 5 | E91: 5 | F91: 5 | G91: 5 | H91: 5 | I91: 5 | J91: 5 | K91: 4 | L91: 2 | M91: 4 | N91: 4 | O91: 4 | P91: 4 | Q91: 0 | R91: 3 | S91: 3 | T91: =SUM(B91:S91) -> 83 | U91: =T91/MAX -> 0.9431818182
A92: Answers | C92: survival and dry weight | D92: IC25 | I92: 4-7 days old | K92: static no water renewal | L92: Not clearly stated
A93: Category | B93: Freshwater/non-metal/plant | C93: Paper and data unique identifier(eg. 1-1,10-150) | D93: N09-13
A94: Scores | B94: 10 | C94: 10 | D94: 5 | E94: 5 | F94: 5 | G94: 5 | H94: 5 | I94: 5 | J94: 5 | K94: 4 | L94: 4 | M94: 4 | N94: 4 | O94: 4 | P94: 4 | Q94: 3 | R94: 3 | S94: 3 | T94: =SUM(B94:S94) -> 88 | U94: =T94/MAX -> 1
A95: Answers | C95: survival | H95: 90% ( in the test it was 92% so within the range | I95: larvae early instar <5mm | K95: static, solution replaced twice weekly, held in a tank with bubbles | L95: 4 times | O95: not clearly stated but the P value is used in the statistical section | P95: not clearly stated but the P value is used in the statistical section
A96: Category | B96: Freshwater/non-metal/plant | C96: Paper and data unique identifier(eg. 1-1,10-150) | D96: N09-14
A97: Scores | B97: 10 | C97: 10 | D97: 5 | E97: 5 | F97: 5 | G97: 5 | H97: 5 | I97: 5 | J97: 5 | K97: 4 | L97: 4 | M97: 4 | N97: 4 | O97: 4 | P97: 4 | Q97: 3 | R97: 3 | S97: 3 | T97: =SUM(B97:S97) -> 88 | U97: =T97/MAX -> 1
A98: Answers | C98: survival, (fecundity, growth) | H98: control survival at least 90% | I98: 0.97g, 60mm | K98: flow through with water exchanges per day | O98: not clearly stated but the P value is used in the statistical section | P98: not clearly stated but the P value is used in the statistical section
A99: Category | B99: Freshwater/non-metal/plant | C99: Paper and data unique identifier(eg. 1-1,10-150) | D99: N09-2
A100: Scores | B100: 10 | C100: 10 | D100: 0 | E100: 0 | F100: 5 | G100: 5 | H100: 2 | I100: 5 | J100: 5 | K100: 4 | L100: 4 | M100: 4 | N100: 4 | O100: 4 | P100: 4 | Q100: 3 | R100: 3 | S100: 3 | T100: =SUM(B100:S100) -> 75 | U100: =T100/MAX -> 0.8522727273
A101: Answers | C101: mortality | D101: EC50 had to calculate this | H101: they do refer to some standard but I am not sure that is this. | I101: one or two weeks since hatching | K101: snails are held in a aquarium with 40L and daily a 10l water change | L101: twice weekly 4 in total
A102: Category | B102: Freshwater/non-metal/plant | C102: Paper and data unique identifier(eg. 1-1,10-150) | D102: N09-3
A103: Scores | B103: 10 | C103: 10 | D103: 0 | E103: 0 | F103: 5 | G103: 5 | H103: 2 | I103: 5 | J103: 5 | K103: 4 | L103: 4 | M103: 4 | N103: 4 | O103: 4 | P103: 4 | Q103: 3 | R103: 3 | S103: 3 | T103: =SUM(B103:S103) -> 75 | U103: =T103/MAX -> 0.8522727273
A104: Answers | C104: mortality | D104: EC50 had to calculate this | H104: they do refer to some standard but I am not sure that is this. | I104: one or two weeks since hatching | K104: snails are held in a aquarium with 40L and daily a 10l water change | L104: twice weekly 4 in total
A105: Category | B105: Freshwater/non-metal/plant | C105: Paper and data unique identifier(eg. 1-1,10-150) | D105: N09-4
A106: Scores | B106: 10 | C106: 10 | D106: 5 | E106: 5 | F106: 5 | G106: 5 | H106: 2 | I106: 5 | J106: 5 | K106: 4 | L106: 2 | M106: 4 | N106: 4 | O106: 4 | P106: 4 | Q106: 0 | R106: 3 | S106: 3 | T106: =SUM(B106:S106) -> 80 | U106: =T106/MAX -> 0.9090909091
A107: Answers | C107: weight and achieving swim up | H107: Not very clear to me | K107: Flow through | L107: Not very cleary stated (water change was 3 times a week
A108: Category | B108: Freshwater/non-metal/plant | C108: Paper and data unique identifier(eg. 1-1,10-150) | D108: N09-5
A109: Scores | B109: 10 | C109: 10 | D109: 5 | E109: 5 | F109: 5 | G109: 5 | H109: 2 | I109: 5 | J109: 5 | K109: 4 | L109: 2 | M109: 4 | N109: 4 | O109: 4 | P109: 4 | Q109: 0 | R109: 3 | S109: 3 | T109: =SUM(B109:S109) -> 80 | U109: =T109/MAX -> 0.9090909091
A110: Answers | C110: weight and achieving swim up | H110: Not very clear to me | K110: Flow through | L110: Not very cleary stated (water change was 3 times a week
A111: Category | B111: Freshwater/non-metal/plant | C111: Paper and data unique identifier(eg. 1-1,10-150) | D111: N09-6
A112: Scores | B112: 10 | C112: 10 | D112: 5 | E112: 5 | F112: 5 | G112: 5 | H112: 2 | I112: 5 | J112: 5 | K112: 4 | L112: 2 | M112: 4 | N112: 4 | O112: 4 | P112: 4 | Q112: 0 | R112: 3 | S112: 3 | T112: =SUM(B112:S112) -> 80 | U112: =T112/MAX -> 0.9090909091
A113: Answers | C113: weight and achieving swim up | H113: Not very clear to me | K113: Flow through | L113: Not very cleary stated (water change was 3 times a week
A114: Category | B114: Freshwater/non-metal/plant | C114: Paper and data unique identifier(eg. 1-1,10-150) | D114: N09-7
A115: Scores | B115: 10 | C115: 10 | D115: 5 | E115: 5 | F115: 5 | G115: 5 | H115: 2 | I115: 5 | J115: 5 | K115: 4 | L115: 2 | M115: 4 | N115: 4 | O115: 4 | P115: 4 | Q115: 0 | R115: 3 | S115: 3 | T115: =SUM(B115:S115) -> 80 | U115: =T115/MAX -> 0.9090909091
A116: Answers | C116: weight and achieving swim up | H116: Not very clear to me | K116: Flow through | L116: Not very cleary stated (water change was 3 times a week
A117: Category | B117: Freshwater/non-metal/plant | C117: Paper and data unique identifier(eg. 1-1,10-150) | D117: N09-8
A118: Scores | B118: 10 | C118: 10 | D118: 5 | E118: 5 | F118: 5 | G118: 5 | H118: 5 | I118: 5 | J118: 5 | K118: 4 | L118: 4 | M118: 4 | N118: 4 | O118: 4 | P118: 4 | Q118: 1 | R118: 3 | S118: 3 | T118: =SUM(B118:S118) -> 86 | U118: =T118/MAX -> 0.9772727273
A119: Answers | H119: >60% fry survival in control | I119: <20min old embryo | K119: static 3 times changed per week | M119: KCI | Q119: not stated only stated that it was measured 3 times a week..
A120: Category | B120: Freshwater/non-metal/plant | C120: Paper and data unique identifier(eg. 1-1,10-150) | D120: N09-9
A121: Scores | B121: 10 | C121: 10 | D121: 5 | E121: 5 | F121: 5 | G121: 5 | H121: 5 | I121: 5 | J121: 5 | K121: 4 | L121: 4 | M121: 0 | N121: 4 | O121: 4 | P121: 4 | Q121: 3 | R121: 3 | S121: 3 | T121: =SUM(B121:S121) -> 84 | U121: =T121/MAX -> 0.9545454545
A122: Answers | I122: Eggs and milt. The Yolk development is measured (& length and weight | K122: static 3 times changed per week | M122: I could not find this | Q122: In the appendix (7.6-7.7) | R122: In the article it says that the temp was 14 but in the overall sheet it says 16..
A123: Category | B123: Freshwater/non-metal/plant | C123: Paper and data unique identifier(eg. 1-1,10-150) | D123: N10-1
A124: Scores | B124: 10 | C124: 10 | D124: 5 | E124: 5 | F124: 5 | G124: 5 | H124: 5 | I124: 5 | J124: 5 | K124: 4 | L124: 4 | M124: 0 | N124: 4 | O124: 4 | P124: 4 | Q124: 3 | R124: 3 | S124: 3 | T124: =SUM(B124:S124) -> 84 | U124: =T124/MAX -> 0.9545454545
A125: Answers | H125: Control survival at least 90% | I125: mean 0.32g 50mm | K125: flow through 2 water exchanges per day | M125: there is a reference method OECD but that is the test method I think..
A126: Category | B126: Freshwater/non-metal/plant | C126: Paper and data unique identifier(eg. 1-1,10-150) | D126: N10-2
A127: Scores | B127: 10 | C127: 10 | D127: 5 | E127: 5 | F127: 5 | G127: 5 | H127: 5 | I127: 5 | J127: 5 | K127: 4 | L127: 4 | M127: 0 | N127: 4 | O127: 4 | P127: 4 | Q127: 3 | R127: 3 | S127: 3 | T127: =SUM(B127:S127) -> 84 | U127: =T127/MAX -> 0.9545454545
A128: Answers | H128: Control survival at least 90% | I128: mean 0.31g, 48mm | K128: flow through 2 water exchanges per day | M128: there is a reference method OECD but that is the test method I think..
A129: Category | B129: Freshwater/non-metal/plant | C129: Paper and data unique identifier(eg. 1-1,10-150) | D129: N11-1
A130: Scores | B130: 10 | C130: 10 | D130: 5 | E130: 5 | F130: 5 | G130: 0 | H130: 2 | I130: 5 | J130: 5 | K130: 4 | L130: 4 | M130: 4 | N130: 4 | O130: 4 | P130: 0 | Q130: 3 | R130: 3 | S130: 3 | T130: =SUM(B130:S130) -> 76 | U130: =T130/MAX -> 0.8636363636
A131: Answers | B131: 3 weeks | C131: Growth or dead | D131: LC 50, EC50 | E131: EC50 | G131: not stated | H131: yes table 4. How much the control group grew comparred to controlgroups in other literature | J131: freshwater with a little sea water | K131: flow through (single pass) | L131: every week | M131: I think so not sure | O131: significance 0.05-0.10 | P131: significance 0.05-0.10 | S131: I think so
A132: Category | B132: Freshwater/non-metal/plant | C132: Paper and data unique identifier(eg. 1-1,10-150) | D132: N11-2
A133: Scores | B133: 10 | C133: 10 | D133: 5 | E133: 5 | F133: 5 | G133: 5 | H133: 5 | I133: 5 | J133: 5 | K133: 4 | L133: 4 | M133: 0 | N133: 4 | O133: 4 | P133: 4 | Q133: 0 | R133: 3 | S133: 3 | T133: =SUM(B133:S133) -> 81 | U133: =T133/MAX -> 0.9204545455
A134: Answers | B134: 10 d | C134: growth | D134: NOEC and LC50 | H134: >80% for control and >0.1mg growth | K134: static renewal | M134: not needed it says | Q134: Says it was measured for water quality but the numbers are not mentioned.
A135: Category | B135: Freshwater/non-metal/plant | C135: Paper and data unique identifier(eg. 1-1,10-150) | D135: N12-1
A136: Scores | B136: 10 | C136: 10 | D136: 5 | E136: 5 | F136: 5 | G136: 5 | H136: 0 | I136: 5 | J136: 5 | K136: 4 | L136: 4 | M136: 0 | N136: 4 | O136: 4 | P136: 4 | Q136: 3 | R136: 3 | S136: 3 | T136: =SUM(B136:S136) -> 79 | U136: =T136/MAX -> 0.8977272727
A137: Answers | H137: I could not find this but it did say that no larvae in the control died. | I137: eggs <8 hours | K137: flow through
A138: Category | B138: Freshwater/non-metal/plant | C138: Paper and data unique identifier(eg. 1-1,10-150) | D138: N12-2
A139: Scores | B139: 10 | C139: 10 | D139: 5 | E139: 5 | F139: 5 | G139: 5 | H139: 2 | I139: 5 | J139: 5 | K139: 4 | L139: 4 | M139: 0 | N139: 4 | O139: 4 | P139: 4 | Q139: 3 | R139: 3 | S139: 3 | T139: =SUM(B139:S139) -> 81 | U139: =T139/MAX -> 0.9204545455
A140: Answers | C140: survival | H140: not stated but it does say no fish died In the controls. | I140: Weight | K140: flow through
A141: Category | B141: Freshwater/non-metal/plant | C141: Paper and data unique identifier(eg. 1-1,10-150) | D141: N13-1
A142: Scores | B142: 10 | C142: 10 | D142: 5 | E142: 5 | F142: 5 | G142: 5 | H142: 2 | I142: 5 | J142: 5 | K142: 4 | L142: 4 | M142: 0 | N142: 4 | O142: 4 | P142: 4 | Q142: 3 | R142: 3 | S142: 3 | T142: =SUM(B142:S142) -> 81 | U142: =T142/MAX -> 0.9204545455
A143: Answers | C143: growth | H143: not stated but it does say no fish died In the controls. | I143: Weight | K143: flow through
A144: Category | B144: Freshwater/non-metal/plant | C144: Paper and data unique identifier(eg. 1-1,10-150) | D144: N14-1
A145: Scores | B145: 10 | C145: 10 | D145: 5 | E145: 5 | F145: 5 | G145: 5 | H145: 2 | I145: 5 | J145: 5 | K145: 4 | L145: 4 | M145: 0 | N145: 4 | O145: 4 | P145: 4 | Q145: 3 | R145: 3 | S145: 3 | T145: =SUM(B145:S145) -> 81 | U145: =T145/MAX -> 0.9204545455
A146: Answers | H146: No but the survival rate of the controll was 88.8 | K146: flow through | M146: only in the acute test
A147: Category | B147: Freshwater/non-metal/plant | C147: Paper and data unique identifier(eg. 1-1,10-150) | D147: N14-2
A148: Scores | B148: 10 | C148: 5 | D148: 5 | E148: 5 | F148: 5 | G148: 5 | H148: 2 | I148: 5 | J148: 5 | K148: 4 | L148: 2 | M148: 0 | N148: 4 | O148: 4 | P148: 4 | Q148: 3 | R148: 3 | S148: 3 | T148: =SUM(B148:S148) -> 74 | U148: =T148/MAX -> 0.8409090909
A149: Answers | H149: not mentioned but it is mentioned that there are no mortalities in the control. | K149: static renewal
A150: Category | B150: Freshwater/non-metal/plant | C150: Paper and data unique identifier(eg. 1-1,10-150) | D150: N15-1
A151: Scores | B151: 10 | C151: 5 | D151: 5 | E151: 5 | F151: 5 | G151: 5 | H151: 2 | I151: 5 | J151: 5 | K151: 4 | L151: 2 | M151: 0 | N151: 4 | O151: 4 | P151: 4 | Q151: 3 | R151: 1 | S151: 3 | T151: =SUM(B151:S151) -> 72 | U151: =T151/MAX -> 0.8181818182
A152: Answers | C152: mortality and growth | H152: not mentioned but the % of dead is given which was 0% for control | K152: Not stated specific but tested in 100ml dishes with water renewal so static | N152: for wet weight but not length
A153: Category | B153: Freshwater/non-metal/plant | C153: Paper and data unique identifier(eg. 1-1,10-150) | D153: N15-2
A154: Scores | B154: 10 | C154: 5 | D154: 5 | E154: 5 | F154: 5 | G154: 5 | H154: 2 | I154: 5 | J154: 5 | K154: 0 | L154: 2 | M154: 0 | N154: 4 | O154: 4 | P154: 4 | Q154: 3 | R154: 1 | S154: 3 | T154: =SUM(B154:S154) -> 68 | U154: =T154/MAX -> 0.7727272727
A155: Answers | H155: No but it does say 0% deads in the control. | K155: it does say in 1000ml. Beakers So I take it it is static
A156: Category | B156: Freshwater/non-metal/plant | C156: Paper and data unique identifier(eg. 1-1,10-150) | D156: N16-1
A157: Scores | B157: 10 | C157: 5 | D157: 5 | E157: 5 | F157: 5 | G157: 5 | H157: 2 | I157: 5 | J157: 5 | K157: 0 | L157: 2 | M157: 0 | N157: 4 | O157: 4 | P157: 4 | Q157: 3 | R157: 1 | S157: 3 | T157: =SUM(B157:S157) -> 68 | U157: =T157/MAX -> 0.7727272727
A158: Answers | H158: No but it does say 0% deads in the control. | K158: it does say in 1000ml. Beakers So I take it it is static
A159: Category | B159: Freshwater/non-metal/plant | C159: Paper and data unique identifier(eg. 1-1,10-150) | D159: N17-1
A160: Scores | B160: 10 | C160: 5 | D160: 5 | E160: 5 | F160: 5 | G160: 5 | H160: 2 | I160: 5 | J160: 5 | K160: 4 | L160: 4 | M160: 0 | N160: 4 | O160: 4 | P160: 4 | Q160: 3 | R160: 3 | S160: 3 | T160: =SUM(B160:S160) -> 76 | U160: =T160/MAX -> 0.8636363636
A162: Category | B162: Freshwater/non-metal/plant | C162: Paper and data unique identifier(eg. 1-1,10-150) | D162: N18-1
A163: Scores | B163: 10 | C163: 10 | D163: 5 | E163: 5 | F163: 5 | G163: 5 | H163: 5 | I163: 5 | J163: 5 | K163: 4 | L163: 2 | M163: 0 | N163: 4 | O163: 4 | P163: 4 | Q163: 3 | R163: 3 | S163: 3 | T163: 82 | U163: 0.9318181818
A165: Category | B165: Freshwater/non-metal/plant | C165: Paper and data unique identifier(eg. 1-1,10-150) | D165: N18-2
A166: Scores | B166: 10 | C166: 10 | D166: 5 | E166: 5 | F166: 5 | G166: 5 | H166: 5 | I166: 5 | J166: 5 | K166: 4 | L166: 2 | M166: 0 | N166: 4 | O166: 4 | P166: 4 | Q166: 3 | R166: 3 | S166: 3 | T166: 82 | U166: 0.9318181818
A168: Category | B168: Freshwater/non-metal/plant | C168: Paper and data unique identifier(eg. 1-1,10-150) | D168: N18-3
A169: Scores | B169: 10 | C169: 10 | D169: 5 | E169: 5 | F169: 5 | G169: 5 | H169: 5 | I169: 5 | J169: 5 | K169: 4 | L169: 2 | M169: 0 | N169: 4 | O169: 4 | P169: 4 | Q169: 3 | R169: 3 | S169: 3 | T169: 82 | U169: 0.9318181818
A171: Category | B171: Freshwater/non-metal/plant | C171: Paper and data unique identifier(eg. 1-1,10-150) | D171: N18-4
A172: Scores | B172: 10 | C172: 10 | D172: 5 | E172: 5 | F172: 5 | G172: 5 | H172: 5 | I172: 5 | J172: 5 | K172: 4 | L172: 2 | M172: 0 | N172: 4 | O172: 4 | P172: 4 | Q172: 3 | R172: 3 | S172: 3 | T172: 82 | U172: 0.9318181818
A174: Category | B174: Freshwater/non-metal/plant | C174: Paper and data unique identifier(eg. 1-1,10-150) | D174: N18-4
A175: Scores | B175: 10 | C175: 10 | D175: 5 | E175: 5 | F175: 5 | G175: 5 | H175: 5 | I175: 5 | J175: 5 | K175: 4 | L175: 2 | M175: 0 | N175: 4 | O175: 4 | P175: 4 | Q175: 3 | R175: 3 | S175: 3 | T175: 82 | U175: 0.9318181818
A177: Category | B177: Freshwater/non-metal/plant | C177: Paper and data unique identifier(eg. 1-1,10-150) | D177: N19-1
A178: Scores | B178: 10 | C178: 10 | D178: 5 | E178: 5 | F178: 5 | G178: 5 | H178: 5 | I178: 5 | J178: 5 | K178: 4 | L178: 2 | M178: 0 | N178: 4 | O178: 4 | P178: 4 | Q178: 3 | R178: 3 | S178: 3 | T178: 82 | U178: 0.9318181818
A179: Answers
A180: Category | B180: Freshwater/non-metal/plant | C180: Paper and data unique identifier(eg. 1-1,10-150) | D180: N20-1
A181: Scores | B181: 10 | C181: 10 | D181: 5 | E181: 5 | F181: 5 | G181: 5 | H181: 5 | I181: 5 | J181: 5 | K181: 4 | L181: 2 | M181: 0 | N181: 4 | O181: 4 | P181: 4 | Q181: 3 | R181: 3 | S181: 3 | T181: 82 | U181: 0.9318181818
A182: Answers
A183: Category | B183: Freshwater/non-metal/plant | C183: Paper and data unique identifier(eg. 1-1,10-150) | D183: N21-1
A184: Scores | B184: 10 | C184: 10 | D184: 5 | E184: 5 | F184: 5 | G184: 5 | H184: 5 | I184: 5 | J184: 5 | K184: 4 | L184: 2 | M184: 0 | N184: 4 | O184: 4 | P184: 4 | Q184: 3 | R184: 3 | S184: 3 | T184: 82 | U184: 0.9318181818
A185: Answers
A186: Category | B186: Freshwater/non-metal/plant | C186: Paper and data unique identifier(eg. 1-1,10-150) | D186: N21-2
A187: Scores | B187: 10 | C187: 10 | D187: 5 | E187: 5 | F187: 5 | G187: 5 | H187: 5 | I187: 5 | J187: 5 | K187: 4 | L187: 2 | M187: 0 | N187: 4 | O187: 4 | P187: 4 | Q187: 3 | R187: 3 | S187: 3 | T187: 82 | U187: 0.9318181818
A188: Answers
A189: Category | B189: Freshwater/non-metal/plant | C189: Paper and data unique identifier(eg. 1-1,10-150) | D189: N22-2
A190: Scores | B190: 10 | C190: 10 | D190: 5 | E190: 5 | F190: 5 | G190: 5 | H190: 5 | I190: 5 | J190: 5 | K190: 4 | L190: 2 | M190: 0 | N190: 4 | O190: 4 | P190: 4 | Q190: 3 | R190: 3 | S190: 3 | T190: 82 | U190: 0.9318181818
A191: Answers
A192: Category | B192: Freshwater/non-metal/plant | C192: Paper and data unique identifier(eg. 1-1,10-150) | D192: N23-1
A193: Scores | B193: 10 | C193: 10 | D193: 5 | E193: 5 | F193: 5 | G193: 5 | H193: 5 | I193: 5 | J193: 5 | K193: 4 | L193: 2 | M193: 0 | N193: 4 | O193: 4 | P193: 4 | Q193: 3 | R193: 3 | S193: 3 | T193: 82 | U193: 0.9318181818
A194: Answers
A195: Category | B195: Freshwater/non-metal/plant | C195: Paper and data unique identifier(eg. 1-1,10-150) | D195: N24-1
A196: Scores | B196: 10 | C196: 10 | D196: 5 | E196: 5 | F196: 5 | G196: 5 | H196: 5 | I196: 5 | J196: 5 | K196: 4 | L196: 2 | M196: 0 | N196: 4 | O196: 4 | P196: 4 | Q196: 3 | R196: 3 | S196: 3 | T196: 82 | U196: 0.9318181818
A197: Answers
A198: Category | B198: Freshwater/non-metal/plant | C198: Paper and data unique identifier(eg. 1-1,10-150) | D198: N24-2
A199: Scores | B199: 10 | C199: 10 | D199: 5 | E199: 5 | F199: 5 | G199: 5 | H199: 5 | I199: 5 | J199: 5 | K199: 4 | L199: 2 | M199: 0 | N199: 4 | O199: 4 | P199: 4 | Q199: 3 | R199: 3 | S199: 3 | T199: 82 | U199: 0.9318181818
A200: Answers

Sheet Reference list
A1: Code | B1: Reference | C1: Full reference
A2: N01-1 | B2: McGurk et al (2006) | C2: McGurk, M.D.; Landry, F.; Tang, A.; Hanks, C.C. (2006). Acute and chronic toxicity of nitrate to early life stages of lake trout (Salvelinus namaycush) and lake whitefish (Coregonus clupeaformis). Environmental Toxicology and Chemistry 25: 2187-2196.
A3: N01-2 | B3: McGurk et al (2006) | C3: McGurk, M.D.; Landry, F.; Tang, A.; Hanks, C.C. (2006). Acute and chronic toxicity of nitrate to early life stages of lake trout (Salvelinus namaycush) and lake whitefish (Coregonus clupeaformis). Environmental Toxicology and Chemistry 25: 2187-2196.
A4: N02-1 | B4: Kinchloe et al (1979) | C4: Kincheloe, J.W.; Wedemeyer, G.A.; Koch, D.L. (1979). Tolerance of developing salmonid eggs and fry to nitrate exposure. Bulletin of Environmental Contamination and Toxicology 23: 575-578.
A5: N02-2 | B5: Kinchloe et al (1979) | C5: Kincheloe, J.W.; Wedemeyer, G.A.; Koch, D.L. (1979). Tolerance of developing salmonid eggs and fry to nitrate exposure. Bulletin of Environmental Contamination and Toxicology 23: 575-578.
A6: N02-3 | B6: Kinchloe et al (1979) | C6: Kincheloe, J.W.; Wedemeyer, G.A.; Koch, D.L. (1979). Tolerance of developing salmonid eggs and fry to nitrate exposure. Bulletin of Environmental Contamination and Toxicology 23: 575-578.
A7: N02-4 | B7: Kinchloe et al (1979) | C7: Kincheloe, J.W.; Wedemeyer, G.A.; Koch, D.L. (1979). Tolerance of developing salmonid eggs and fry to nitrate exposure. Bulletin of Environmental Contamination and Toxicology 23: 575-578.
A8: N02-5 | B8: Kinchloe et al (1979) | C8: Kincheloe, J.W.; Wedemeyer, G.A.; Koch, D.L. (1979). Tolerance of developing salmonid eggs and fry to nitrate exposure. Bulletin of Environmental Contamination and Toxicology 23: 575-578.
A9: N03-1 | B9: Laposata & Dunson (1998) | C9: Laposata, M.M.; Dunson, W.A. (1998). Effects of boron and nitrate on hatching success of amphibian eggs. Archives of Environmental and Contamination Toxicology 35: 615-619.
A10: N04-1 | B10: Hickey et al (2013) | C10: Hickey, C.W.; Thompson, K.J.; Albert, A.; Martin, M.L. (2013). Chronic sensitivity of juvenile inanga (Galaxias maculatus) and early life-stage rainbow trout (Oncorhynchus mykiss) to nitrate. No. HBR13207; HAM2013-012. NIWA report for Hawke's Bay Regional Council
A11: N04-2 | B11: Hickey et al (2013) | C11: Hickey, C.W.; Thompson, K.J.; Albert, A.; Martin, M.L. (2013). Chronic sensitivity of juvenile inanga (Galaxias maculatus) and early life-stage rainbow trout (Oncorhynchus mykiss) to nitrate. No. HBR13207; HAM2013-012. NIWA report for Hawke's Bay Regional Council
A12: N04-3 | B12: Hickey et al (2013) | C12: Hickey, C.W.; Thompson, K.J.; Albert, A.; Martin, M.L. (2013). Chronic sensitivity of juvenile inanga (Galaxias maculatus) and early life-stage rainbow trout (Oncorhynchus mykiss) to nitrate. No. HBR13207; HAM2013-012. NIWA report for Hawke's Bay Regional Council
A13: N05-1 | B13: Schuytema & Nebeker (1999a) | C13: Schuytema, G.S.; Nebeker, A.V. (1999a). Comparative toxicity of ammonium and nitrate compounds to Pacific tree frog and clawed frog tadpoles. Environmental Toxicology and Chemistry 18: 2251-2257
A14: N06-1 | B14: Jensen (1996) | C14: Jensen, F.B. (1996). Uptake, elimination and effects of nitrite and nitrate in freshwater crayfish (Astacus astacus). Aquatic Toxicology 34: 94-104.
A15: N07-1 | B15: Scott & Crunkilton (2000) | C15: Scott, G.; Crunkilton, R.L. (2000). Acute and chronic toxicity of nitrate to fathead minnows (Pimephales promelas), Ceriodaphnia dubia, and Daphnia magna. Environmental Toxicology and Chemistry 19: 2918-2922.
A16: N07-2 | B16: Scott & Crunkilton (2000) | C16: Scott, G.; Crunkilton, R.L. (2000). Acute and chronic toxicity of nitrate to fathead minnows (Pimephales promelas), Ceriodaphnia dubia, and Daphnia magna. Environmental Toxicology and Chemistry 19: 2918-2922.
A17: N07-3 | B17: Scott & Crunkilton (2000) | C17: Scott, G.; Crunkilton, R.L. (2000). Acute and chronic toxicity of nitrate to fathead minnows (Pimephales promelas), Ceriodaphnia dubia, and Daphnia magna. Environmental Toxicology and Chemistry 19: 2918-2922.
A18: N07-4 | B18: Scott & Crunkilton (2000) | C18: Scott, G.; Crunkilton, R.L. (2000). Acute and chronic toxicity of nitrate to fathead minnows (Pimephales promelas), Ceriodaphnia dubia, and Daphnia magna. Environmental Toxicology and Chemistry 19: 2918-2922.
A19: N07-5 | B19: Scott & Crunkilton (2000) | C19: Scott, G.; Crunkilton, R.L. (2000). Acute and chronic toxicity of nitrate to fathead minnows (Pimephales promelas), Ceriodaphnia dubia, and Daphnia magna. Environmental Toxicology and Chemistry 19: 2918-2922.
A20: N07-6 | B20: Scott & Crunkilton (2000) | C20: Scott, G.; Crunkilton, R.L. (2000). Acute and chronic toxicity of nitrate to fathead minnows (Pimephales promelas), Ceriodaphnia dubia, and Daphnia magna. Environmental Toxicology and Chemistry 19: 2918-2922.
A21: N07-8 | B21: Scott & Crunkilton (2000) | C21: Scott, G.; Crunkilton, R.L. (2000). Acute and chronic toxicity of nitrate to fathead minnows (Pimephales promelas), Ceriodaphnia dubia, and Daphnia magna. Environmental Toxicology and Chemistry 19: 2918-2922.
A22: N08-1 | B22: Nautilus Environmental (2011a) | C22: Nautilus Environmental (2011a). Evaluation of the role of hardness in modifying the toxicity of nitrate to rainbow trout. No. Final Report Submitted to Mining Association of BC. , Vancouver, BC. 12 September 2011. pp. 252.
A23: N08-2 | B23: Nautilus Environmental (2011a) | C23: Nautilus Environmental (2011a). Evaluation of the role of hardness in modifying the toxicity of nitrate to rainbow trout. No. Final Report Submitted to Mining Association of BC. , Vancouver, BC. 12 September 2011. pp. 252.
A24: N08-3 | B24: Nautilus Environmental (2011a) | C24: Nautilus Environmental (2011a). Evaluation of the role of hardness in modifying the toxicity of nitrate to rainbow trout. No. Final Report Submitted to Mining Association of BC. , Vancouver, BC. 12 September 2011. pp. 252.
A25: N08-4 | B25: Nautilus Environmental (2011a) | C25: Nautilus Environmental (2011a). Evaluation of the role of hardness in modifying the toxicity of nitrate to rainbow trout. No. Final Report Submitted to Mining Association of BC. , Vancouver, BC. 12 September 2011. pp. 252.
A26: N09-1 | B26: Nautilus Environmental (2011b) | C26: Nautilus Environmental (2011b). Evaluation of the role of hardness in modifying the toxicity of nitrate to freshwater organisms. No. Final Report Submitted to Mining Association of BC, Vancouver, B.C. 4 April 2011. pp. 216.
A27: N09-10 | B27: Nautilus Environmental (2011b) | C27: Nautilus Environmental (2011b). Evaluation of the role of hardness in modifying the toxicity of nitrate to freshwater organisms. No. Final Report Submitted to Mining Association of BC, Vancouver, B.C. 4 April 2011. pp. 216.
A28: N09-10 | B28: Nautilus Environmental (2011b) | C28: Nautilus Environmental (2011b). Evaluation of the role of hardness in modifying the toxicity of nitrate to freshwater organisms. No. Final Report Submitted to Mining Association of BC, Vancouver, B.C. 4 April 2011. pp. 216.
A29: N09-11 | B29: Nautilus Environmental (2011b) | C29: Nautilus Environmental (2011b). Evaluation of the role of hardness in modifying the toxicity of nitrate to freshwater organisms. No. Final Report Submitted to Mining Association of BC, Vancouver, B.C. 4 April 2011. pp. 216.
A30: N09-12 | B30: Nautilus Environmental (2011b) | C30: Nautilus Environmental (2011b). Evaluation of the role of hardness in modifying the toxicity of nitrate to freshwater organisms. No. Final Report Submitted to Mining Association of BC, Vancouver, B.C. 4 April 2011. pp. 216.
A31: N09-13 | B31: Nautilus Environmental (2011b) | C31: Nautilus Environmental (2011b). Evaluation of the role of hardness in modifying the toxicity of nitrate to freshwater organisms. No. Final Report Submitted to Mining Association of BC, Vancouver, B.C. 4 April 2011. pp. 216.
A32: N09-2 | B32: Nautilus Environmental (2011b) | C32: Nautilus Environmental (2011b). Evaluation of the role of hardness in modifying the toxicity of nitrate to freshwater organisms. No. Final Report Submitted to Mining Association of BC, Vancouver, B.C. 4 April 2011. pp. 216.
A33: N09-3 | B33: Nautilus Environmental (2011b) | C33: Nautilus Environmental (2011b). Evaluation of the role of hardness in modifying the toxicity of nitrate to freshwater organisms. No. Final Report Submitted to Mining Association of BC, Vancouver, B.C. 4 April 2011. pp. 216.
A34: N09-4 | B34: Nautilus Environmental (2011b) | C34: Nautilus Environmental (2011b). Evaluation of the role of hardness in modifying the toxicity of nitrate to freshwater organisms. No. Final Report Submitted to Mining Association of BC, Vancouver, B.C. 4 April 2011. pp. 216.
A35: N09-5 | B35: Nautilus Environmental (2011b) | C35: Nautilus Environmental (2011b). Evaluation of the role of hardness in modifying the toxicity of nitrate to freshwater organisms. No. Final Report Submitted to Mining Association of BC, Vancouver, B.C. 4 April 2011. pp. 216.
A36: N09-6 | B36: Nautilus Environmental (2011b) | C36: Nautilus Environmental (2011b). Evaluation of the role of hardness in modifying the toxicity of nitrate to freshwater organisms. No. Final Report Submitted to Mining Association of BC, Vancouver, B.C. 4 April 2011. pp. 216.
A37: N09-7 | B37: Nautilus Environmental (2011b) | C37: Nautilus Environmental (2011b). Evaluation of the role of hardness in modifying the toxicity of nitrate to freshwater organisms. No. Final Report Submitted to Mining Association of BC, Vancouver, B.C. 4 April 2011. pp. 216.
A38: N09-8 | B38: Nautilus Environmental (2011b) | C38: Nautilus Environmental (2011b). Evaluation of the role of hardness in modifying the toxicity of nitrate to freshwater organisms. No. Final Report Submitted to Mining Association of BC, Vancouver, B.C. 4 April 2011. pp. 216.
A39: N09-9 | B39: Nautilus Environmental (2011b) | C39: Nautilus Environmental (2011b). Evaluation of the role of hardness in modifying the toxicity of nitrate to freshwater organisms. No. Final Report Submitted to Mining Association of BC, Vancouver, B.C. 4 April 2011. pp. 216.
A40: N10-1 | B40: Martin & Thompson (2012) | C40: Martin, M.L.; Thompson, K.J. (2012). Chronic sensitivity of two native New Zealand species (freshwater fish – Inanga Galaxias maculatus and mayfly – Deleatidium sp.) to nitrate. No. HBR12230. NIWA report for Hawke's Bay Regional Council, Hamilton. pp. 26.
A41: N10-2 | B41: Martin & Thompson (2012) | C41: Martin, M.L.; Thompson, K.J. (2012). Chronic sensitivity of two native New Zealand species (freshwater fish – Inanga Galaxias maculatus and mayfly – Deleatidium sp.) to nitrate. No. HBR12230. NIWA report for Hawke's Bay Regional Council, Hamilton. pp. 26.
A42: N11-1 | B42: Corrao et al (2006) | C42: Corrao, N.; Darby, P.; Pomory, C. (2006). Nitrate impacts on the Florida apple snail, Pomacea paludosa. Hydrobiologia 568: 135-143.
A43: N11-2 | B43: Corrao et al (2006) | C43: Corrao, N.; Darby, P.; Pomory, C. (2006). Nitrate impacts on the Florida apple snail, Pomacea paludosa. Hydrobiologia 568: 135-143.
A44: N12-1 | B44: Stantec (2006) | C44: Stantec Consulting Ltd. (2006). Report on the toxicity of nitrate to Canadian fish and aquatic invertebrate species. No. Stantec Project No. 162704276. Prepared for: Environment Canada, National Guidelines Standards Office, pp. 110.
A45: N12-2 | B45: Stantec (2006) | C45: Stantec Consulting Ltd. (2006). Report on the toxicity of nitrate to Canadian fish and aquatic invertebrate species. No. Stantec Project No. 162704276. Prepared for: Environment Canada, National Guidelines Standards Office, pp. 110.
A46: N13-1 | B46: Wickins (1976) | C46: Wickins, J. (1976). The tolerance of warm-water prawns to recirculated water. Aquaculture 9: 19-37.
A47: N14-1 | B47: Schuytema & Nebeker (1999b) | C47: Schuytema, G.S.; Nebeker, A.V. (1999b). Comparative effects of ammonium and nitrate compounds on Pacific treefrog and African clawed frog embryos. Archives of Environmental and Contamination Toxicology 36: 200-206.
A48: N15-1 | B48: Adelman et al (2009) | C48: Adelman, I.R.; Kusilek, L.I.; Koehle, J.; Hess, J. (2009). Acute and chronic toxicity of ammonia, nitrite, and nitrate to the endangered Topeka shiner (Notropis topeka) and fathead minnows (Pimephales promelas). Environmental Toxicology and Chemistry 28: 2216-2223.
A49: N15-2 | B49: Adelman et al (2009) | C49: Adelman, I.R.; Kusilek, L.I.; Koehle, J.; Hess, J. (2009). Acute and chronic toxicity of ammonia, nitrite, and nitrate to the endangered Topeka shiner (Notropis topeka) and fathead minnows (Pimephales promelas). Environmental Toxicology and Chemistry 28: 2216-2223.
A50: N16-1 | B50: US EPA (2010) | C50: U.S. EPA (2010). Final report on acute and chronic toxicity of nitrate, nitrite, boron, manganese, fluoride, chloride and sulphate to several aquatic animal species. No. EPA 905-R-10-002. United States Environmental Protection Agency, Chicago, IL. pp. 174.
A51: N17-1 | B51: Schuytema & Nebeker (1999c) | C51: Schuytema, G.S.; Nebeker, A.V. (1999c). Effects of ammonium nitrate, sodium nitrate amd urea on red-legged frogs, Pacific tree frog and African clawed frogs. Bulletin of Envrionmental and Contamination Toxicology 63: 357-364
A52: N18-1 | B52: Hickey et al (2016) | C52: Hickey, C.W.; Thompson, K.J.; Martin, M.L.; Albert, A.; Bell, S.; Raymond, M. (2016). Data report for chronic nitrate toxicity to freshwater species: common bully, sphaeriid bivalve, freshwater crayfish and snail. No. FWWQ1703. NIWA data report
A53: N19-1 | B53: Stelzer and Joachim (2010) | C53: Stelzer, R.S.; Joachim, B.L. (2010). Effects of Elevated Nitrate Concentration on Mortality, Growth, and Egestion Rates of Gammarus pseudolimnaeus Amphipods. Archives of Environmental Contamination and Toxicology 58: 694-699.
A54: N20-1 | B54: Alonso and Camago (2013) | C54: Alonso, Á.; Camargo, J. (2013). Nitrate causes deleterious effects on the behaviour and reproduction of the aquatic snail Potamopyrgus antipodarum (Hydrobiidae, Mollusca). Environmental Science and Pollution Research 20: 5388-5396.
A55: N21-1 | B55: Sueitt et al (2015) | C55: Sueitt, A.P.E.; Yamada-Ferraz, T.M.; Oliveira, A.F.; Botta, C.M.R.; Fadini, P.S.; Nascimento, M.R.L.; Faria, B.M.; Mozeto, A.A. (2015). Ecotoxicological risks of calcium nitrate exposure to freshwater tropical organisms: Laboratory and field experiments. Ecotoxicology and Environmental Safety 117: 155-163.
A56: N21-2 | B56: Sueitt et al (2015) | C56: Sueitt, A.P.E.; Yamada-Ferraz, T.M.; Oliveira, A.F.; Botta, C.M.R.; Fadini, P.S.; Nascimento, M.R.L.; Faria, B.M.; Mozeto, A.A. (2015). Ecotoxicological risks of calcium nitrate exposure to freshwater tropical organisms: Laboratory and field experiments. Ecotoxicology and Environmental Safety 117: 155-163.
A57: N22-1 | B57: Schram et al (2014) | C57: Schram, E.; Roques, J.A.C.; van Kuijk, T.; Abbink, W.; van de Heul, J.; de Vries, P.; Bierman, S.; van de Vis, H.; Flik, G. (2014). The impact of elevated water ammonia and nitrate concentrations on physiology, growth and feed intake of pikeperch (Sander lucioperca). Aquaculture 420–421: 95-104.
A58: N23-1 | B58: Learmonth & Carvalho (2015) | C58: Learmonth, C.; Carvalho, A.P. (2015). Acute and Chronic Toxicity of Nitrate to Early Life Stages of Zebrafish-Setting Nitrate Safety Levels for Zebrafish Rearing. Zebrafish 12: 305-311.
A59: N24-1 | B59: Soucek & Dickinson (2016) | C59: Soucek, D.J.; Dickinson, A. (2016). Influence of chloride on the chronic toxicity of sodium nitrate to Ceriodaphnia dubia and Hyalella azteca. Ecotoxicology 25: 1406-1416.
A60: N24-2 | B60: Soucek & Dickinson (2016) | C60: Soucek, D.J.; Dickinson, A. (2016). Influence of chloride on the chronic toxicity of sodium nitrate to Ceriodaphnia dubia and Hyalella azteca. Ecotoxicology 25: 1406-1416.
A61: N25-1 | B61: Wang et al. (2020) | C61: Wang N, Dorman RA, Ivey CD, Soucek DJ, Dickinson A, Kunz BK, Steevens JA, Hammer EJ and Bauer CR. (2020). Acute and chronic toxicity of sodium nitrate and sodium sulfate to several freshwater organisms in water-only exposures. Environmental Toxicology and Chemistry, 39, 1071-1085.
A62: N26 | B62: ESA (2019) | C62: ESA [Ecotox Services Australia] 2019a. Toxicity Assessment of Nitrate using Cultured Local Species – Rio Tinto Iron Ore, Test Report, September 2019.
A63: N27 | B63: van Dam (2019) | C63: van Dam RA 2019. Analysis of nitrate toxicity data for algae and generation of species sensitivity distribution. Report prepared for Rio Tinto, Perth, WA, December 2019.

Sheet Sheet2
